{"text_format":"3","workbook":"xlsx","n_sheets":1,"sheets":["Lånekalkylator"],"not_rendered":{"defined_names":24},"read":"whole","date_system":"1900"}

{"sheet":"Lånekalkylator","index":0,"n_rows":372,"n_cols":8,"rows_kept":372,"merged":[[1,1,1,4],[2,1,2,3],[3,1,3,3],[4,1,4,3],[5,1,5,3],[7,1,7,3],[8,1,8,3],[9,1,9,3],[10,1,10,3]]}
[null,"Enkel lånekalkylator"]
[null,"Ange värden"]
[null,"Lånebelopp",null,null,{"v":5000,"d":"5,000.00 kr"}]
[null,"Årlig räntesats",null,null,{"v":0.055,"d":"5.50%"}]
[null,"Låneperiod i antal år",null,null,5]
[null,"Startdatum för lån",null,null,{"$f":"TODAY()","v":"2020-04-15"}]
[]
[null,"Månadsbetalning",null,null,{"$f":"IFERROR(IF(Angivna_Värden,Månadsbetalning,\"\"), \"\")","v":{"v":95.5058108589112,"d":"95.51 kr"}}]
[null,"Antal betalningar",null,null,{"$f":"IFERROR(IF(Angivna_Värden,Låneår*12,\"\"), \"\")","v":60}]
[null,"Summa ränta",null,null,{"$f":"IFERROR(IF(Angivna_Värden,Total_Kostnad-Lånebelopp,\"\"), \"\")","v":{"v":730.3486515346722,"d":"730.35 kr"}}]
[null,"Total kostnad för lånet",null,null,{"$f":"IFERROR(IF(Angivna_Värden,Månadsbetalning*Antal_Betalningar,\"\"), \"\")","v":{"v":5730.348651534672,"d":"5,730.35 kr"}}]
[null,"Nr.","Betalning\nDatum","Ingående\nsaldo","Betalning","Amortering","Ränta","Utgående\nsaldo"]
[null,{"$f":"IFERROR(IF(Ej_Betalat_Lån*Angivna_Värden,Betalningsnummer,\"\"), \"\")","v":1},{"$f":"IFERROR(IF(Ej_Betalat_Lån*Angivna_Värden,Betalningsdatum,\"\"), \"\")","v":"2020-05-15"},{"$f":"IFERROR(IF(Ej_Betalat_Lån*Angivna_Värden,Ingående_Saldo,\"\"), \"\")","v":{"v":5000,"d":"5,000.00 kr"}},{"$f":"IFERROR(IF(Ej_Betalat_Lån*Angivna_Värden,Månadsbetalning,\"\"), \"\")","v":{"v":95.5058108589112,"d":"95.51 kr"}},{"$f":"IFERROR(IF(Ej_Betalat_Lån*Angivna_Värden,Amortering,\"\"), \"\")","v":{"v":72.58914419224453,"d":"72.59 kr"}},{"$f":"IFERROR(IF(Ej_Betalat_Lån*Angivna_Värden,Ränta,\"\"), \"\")","v":{"v":22.916666666666668,"d":"22.92 kr"}},{"$f":"IFERROR(IF(Ej_Betalat_Lån*Angivna_Värden,Utgående_Saldo,\"\"), \"\")","v":{"v":4927.410855807755,"d":"4,927.41 kr"}}]
[null,{"$f":"IFERROR(IF(Ej_Betalat_Lån*Angivna_Värden,Betalningsnummer,\"\"), \"\")","v":2},{"$f":"IFERROR(IF(Ej_Betalat_Lån*Angivna_Värden,Betalningsdatum,\"\"), \"\")","v":"2020-06-15"},{"$f":"IFERROR(IF(Ej_Betalat_Lån*Angivna_Värden,Ingående_Saldo,\"\"), \"\")","v":{"v":4927.410855807755,"d":"4,927.41 kr"}},{"$f":"IFERROR(IF(Ej_Betalat_Lån*Angivna_Värden,Månadsbetalning,\"\"), \"\")","v":{"v":95.5058108589112,"d":"95.51 kr"}},{"$f":"IFERROR(IF(Ej_Betalat_Lån*Angivna_Värden,Amortering,\"\"), \"\")","v":{"v":72.921844436459,"d":"72.92 kr"}},{"$f":"IFERROR(IF(Ej_Betalat_Lån*Angivna_Värden,Ränta,\"\"), \"\")","v":{"v":22.58396642245221,"d":"22.58 kr"}},{"$f":"IFERROR(IF(Ej_Betalat_Lån*Angivna_Värden,Utgående_Saldo,\"\"), \"\")","v":{"v":4854.489011371295,"d":"4,854.49 kr"}}]
[null,{"$f":"IFERROR(IF(Ej_Betalat_Lån*Angivna_Värden,Betalningsnummer,\"\"), \"\")","v":3},{"$f":"IFERROR(IF(Ej_Betalat_Lån*Angivna_Värden,Betalningsdatum,\"\"), \"\")","v":"2020-07-15"},{"$f":"IFERROR(IF(Ej_Betalat_Lån*Angivna_Värden,Ingående_Saldo,\"\"), \"\")","v":{"v":4854.489011371295,"d":"4,854.49 kr"}},{"$f":"IFERROR(IF(Ej_Betalat_Lån*Angivna_Värden,Månadsbetalning,\"\"), \"\")","v":{"v":95.5058108589112,"d":"95.51 kr"}},{"$f":"IFERROR(IF(Ej_Betalat_Lån*Angivna_Värden,Amortering,\"\"), \"\")","v":{"v":73.25606955679277,"d":"73.26 kr"}},{"$f":"IFERROR(IF(Ej_Betalat_Lån*Angivna_Värden,Ränta,\"\"), \"\")","v":{"v":22.249741302118437,"d":"22.25 kr"}},{"$f":"IFERROR(IF(Ej_Betalat_Lån*Angivna_Värden,Utgående_Saldo,\"\"), \"\")","v":{"v":4781.232941814503,"d":"4,781.23 kr"}}]
[null,{"$f":"IFERROR(IF(Ej_Betalat_Lån*Angivna_Värden,Betalningsnummer,\"\"), \"\")","v":4},{"$f":"IFERROR(IF(Ej_Betalat_Lån*Angivna_Värden,Betalningsdatum,\"\"), \"\")","v":"2020-08-15"},{"$f":"IFERROR(IF(Ej_Betalat_Lån*Angivna_Värden,Ingående_Saldo,\"\"), \"\")","v":{"v":4781.232941814503,"d":"4,781.23 kr"}},{"$f":"IFERROR(IF(Ej_Betalat_Lån*Angivna_Värden,Månadsbetalning,\"\"), \"\")","v":{"v":95.5058108589112,"d":"95.51 kr"}},{"$f":"IFERROR(IF(Ej_Betalat_Lån*Angivna_Värden,Amortering,\"\"), \"\")","v":{"v":73.5918265422614,"d":"73.59 kr"}},{"$f":"IFERROR(IF(Ej_Betalat_Lån*Angivna_Värden,Ränta,\"\"), \"\")","v":{"v":21.913984316649806,"d":"21.91 kr"}},{"$f":"IFERROR(IF(Ej_Betalat_Lån*Angivna_Värden,Utgående_Saldo,\"\"), \"\")","v":{"v":4707.641115272242,"d":"4,707.64 kr"}}]
[null,{"$f":"IFERROR(IF(Ej_Betalat_Lån*Angivna_Värden,Betalningsnummer,\"\"), \"\")","v":5},{"$f":"IFERROR(IF(Ej_Betalat_Lån*Angivna_Värden,Betalningsdatum,\"\"), \"\")","v":"2020-09-15"},{"$f":"IFERROR(IF(Ej_Betalat_Lån*Angivna_Värden,Ingående_Saldo,\"\"), \"\")","v":{"v":4707.641115272242,"d":"4,707.64 kr"}},{"$f":"IFERROR(IF(Ej_Betalat_Lån*Angivna_Värden,Månadsbetalning,\"\"), \"\")","v":{"v":95.5058108589112,"d":"95.51 kr"}},{"$f":"IFERROR(IF(Ej_Betalat_Lån*Angivna_Värden,Amortering,\"\"), \"\")","v":{"v":73.92912241391343,"d":"73.93 kr"}},{"$f":"IFERROR(IF(Ej_Betalat_Lån*Angivna_Värden,Ränta,\"\"), \"\")","v":{"v":21.576688444997778,"d":"21.58 kr"}},{"$f":"IFERROR(IF(Ej_Betalat_Lån*Angivna_Värden,Utgående_Saldo,\"\"), \"\")","v":{"v":4633.711992858327,"d":"4,633.71 kr"}}]
[null,{"$f":"IFERROR(IF(Ej_Betalat_Lån*Angivna_Värden,Betalningsnummer,\"\"), \"\")","v":6},{"$f":"IFERROR(IF(Ej_Betalat_Lån*Angivna_Värden,Betalningsdatum,\"\"), \"\")","v":"2020-10-15"},{"$f":"IFERROR(IF(Ej_Betalat_Lån*Angivna_Värden,Ingående_Saldo,\"\"), \"\")","v":{"v":4633.711992858327,"d":"4,633.71 kr"}},{"$f":"IFERROR(IF(Ej_Betalat_Lån*Angivna_Värden,Månadsbetalning,\"\"), \"\")","v":{"v":95.5058108589112,"d":"95.51 kr"}},{"$f":"IFERROR(IF(Ej_Betalat_Lån*Angivna_Värden,Amortering,\"\"), \"\")","v":{"v":74.2679642249772,"d":"74.27 kr"}},{"$f":"IFERROR(IF(Ej_Betalat_Lån*Angivna_Värden,Ränta,\"\"), \"\")","v":{"v":21.237846633934,"d":"21.24 kr"}},{"$f":"IFERROR(IF(Ej_Betalat_Lån*Angivna_Värden,Utgående_Saldo,\"\"), \"\")","v":{"v":4559.444028633349,"d":"4,559.44 kr"}}]
[null,{"$f":"IFERROR(IF(Ej_Betalat_Lån*Angivna_Värden,Betalningsnummer,\"\"), \"\")","v":7},{"$f":"IFERROR(IF(Ej_Betalat_Lån*Angivna_Värden,Betalningsdatum,\"\"), \"\")","v":"2020-11-15"},{"$f":"IFERROR(IF(Ej_Betalat_Lån*Angivna_Värden,Ingående_Saldo,\"\"), \"\")","v":{"v":4559.444028633349,"d":"4,559.44 kr"}},{"$f":"IFERROR(IF(Ej_Betalat_Lån*Angivna_Värden,Månadsbetalning,\"\"), \"\")","v":{"v":95.5058108589112,"d":"95.51 kr"}},{"$f":"IFERROR(IF(Ej_Betalat_Lån*Angivna_Värden,Amortering,\"\"), \"\")","v":{"v":74.60835906100834,"d":"74.61 kr"}},{"$f":"IFERROR(IF(Ej_Betalat_Lån*Angivna_Värden,Ränta,\"\"), \"\")","v":{"v":20.89745179790286,"d":"20.90 kr"}},{"$f":"IFERROR(IF(Ej_Betalat_Lån*Angivna_Värden,Utgående_Saldo,\"\"), \"\")","v":{"v":4484.835669572343,"d":"4,484.84 kr"}}]
[null,{"$f":"IFERROR(IF(Ej_Betalat_Lån*Angivna_Värden,Betalningsnummer,\"\"), \"\")","v":8},{"$f":"IFERROR(IF(Ej_Betalat_Lån*Angivna_Värden,Betalningsdatum,\"\"), \"\")","v":"2020-12-15"},{"$f":"IFERROR(IF(Ej_Betalat_Lån*Angivna_Värden,Ingående_Saldo,\"\"), \"\")","v":{"v":4484.835669572343,"d":"4,484.84 kr"}},{"$f":"IFERROR(IF(Ej_Betalat_Lån*Angivna_Värden,Månadsbetalning,\"\"), \"\")","v":{"v":95.5058108589112,"d":"95.51 kr"}},{"$f":"IFERROR(IF(Ej_Betalat_Lån*Angivna_Värden,Amortering,\"\"), \"\")","v":{"v":74.95031404003797,"d":"74.95 kr"}},{"$f":"IFERROR(IF(Ej_Betalat_Lån*Angivna_Värden,Ränta,\"\"), \"\")","v":{"v":20.55549681887324,"d":"20.56 kr"}},{"$f":"IFERROR(IF(Ej_Betalat_Lån*Angivna_Värden,Utgående_Saldo,\"\"), \"\")","v":{"v":4409.885355532304,"d":"4,409.89 kr"}}]
[null,{"$f":"IFERROR(IF(Ej_Betalat_Lån*Angivna_Värden,Betalningsnummer,\"\"), \"\")","v":9},{"$f":"IFERROR(IF(Ej_Betalat_Lån*Angivna_Värden,Betalningsdatum,\"\"), \"\")","v":"2021-01-15"},{"$f":"IFERROR(IF(Ej_Betalat_Lån*Angivna_Värden,Ingående_Saldo,\"\"), \"\")","v":{"v":4409.885355532304,"d":"4,409.89 kr"}},{"$f":"IFERROR(IF(Ej_Betalat_Lån*Angivna_Värden,Månadsbetalning,\"\"), \"\")","v":{"v":95.5058108589112,"d":"95.51 kr"}},{"$f":"IFERROR(IF(Ej_Betalat_Lån*Angivna_Värden,Amortering,\"\"), \"\")","v":{"v":75.29383631272148,"d":"75.29 kr"}},{"$f":"IFERROR(IF(Ej_Betalat_Lån*Angivna_Värden,Ränta,\"\"), \"\")","v":{"v":20.21197454618973,"d":"20.21 kr"}},{"$f":"IFERROR(IF(Ej_Betalat_Lån*Angivna_Värden,Utgående_Saldo,\"\"), \"\")","v":{"v":4334.5915192195835,"d":"4,334.59 kr"}}]
[null,{"$f":"IFERROR(IF(Ej_Betalat_Lån*Angivna_Värden,Betalningsnummer,\"\"), \"\")","v":10},{"$f":"IFERROR(IF(Ej_Betalat_Lån*Angivna_Värden,Betalningsdatum,\"\"), \"\")","v":"2021-02-15"},{"$f":"IFERROR(IF(Ej_Betalat_Lån*Angivna_Värden,Ingående_Saldo,\"\"), \"\")","v":{"v":4334.5915192195835,"d":"4,334.59 kr"}},{"$f":"IFERROR(IF(Ej_Betalat_Lån*Angivna_Värden,Månadsbetalning,\"\"), \"\")","v":{"v":95.5058108589112,"d":"95.51 kr"}},{"$f":"IFERROR(IF(Ej_Betalat_Lån*Angivna_Värden,Amortering,\"\"), \"\")","v":{"v":75.63893306248812,"d":"75.64 kr"}},{"$f":"IFERROR(IF(Ej_Betalat_Lån*Angivna_Värden,Ränta,\"\"), \"\")","v":{"v":19.86687779642309,"d":"19.87 kr"}},{"$f":"IFERROR(IF(Ej_Betalat_Lån*Angivna_Värden,Utgående_Saldo,\"\"), \"\")","v":{"v":4258.952586157094,"d":"4,258.95 kr"}}]
[null,{"$f":"IFERROR(IF(Ej_Betalat_Lån*Angivna_Värden,Betalningsnummer,\"\"), \"\")","v":11},{"$f":"IFERROR(IF(Ej_Betalat_Lån*Angivna_Värden,Betalningsdatum,\"\"), \"\")","v":"2021-03-15"},{"$f":"IFERROR(IF(Ej_Betalat_Lån*Angivna_Värden,Ingående_Saldo,\"\"), \"\")","v":{"v":4258.952586157094,"d":"4,258.95 kr"}},{"$f":"IFERROR(IF(Ej_Betalat_Lån*Angivna_Värden,Månadsbetalning,\"\"), \"\")","v":{"v":95.5058108589112,"d":"95.51 kr"}},{"$f":"IFERROR(IF(Ej_Betalat_Lån*Angivna_Värden,Amortering,\"\"), \"\")","v":{"v":75.9856115056912,"d":"75.99 kr"}},{"$f":"IFERROR(IF(Ej_Betalat_Lån*Angivna_Värden,Ränta,\"\"), \"\")","v":{"v":19.520199353220022,"d":"19.52 kr"}},{"$f":"IFERROR(IF(Ej_Betalat_Lån*Angivna_Värden,Utgående_Saldo,\"\"), \"\")","v":{"v":4182.966974651403,"d":"4,182.97 kr"}}]
[null,{"$f":"IFERROR(IF(Ej_Betalat_Lån*Angivna_Värden,Betalningsnummer,\"\"), \"\")","v":12},{"$f":"IFERROR(IF(Ej_Betalat_Lån*Angivna_Värden,Betalningsdatum,\"\"), \"\")","v":"2021-04-15"},{"$f":"IFERROR(IF(Ej_Betalat_Lån*Angivna_Värden,Ingående_Saldo,\"\"), \"\")","v":{"v":4182.966974651403,"d":"4,182.97 kr"}},{"$f":"IFERROR(IF(Ej_Betalat_Lån*Angivna_Värden,Månadsbetalning,\"\"), \"\")","v":{"v":95.5058108589112,"d":"95.51 kr"}},{"$f":"IFERROR(IF(Ej_Betalat_Lån*Angivna_Värden,Amortering,\"\"), \"\")","v":{"v":76.33387889175894,"d":"76.33 kr"}},{"$f":"IFERROR(IF(Ej_Betalat_Lån*Angivna_Värden,Ränta,\"\"), \"\")","v":{"v":19.17193196715227,"d":"19.17 kr"}},{"$f":"IFERROR(IF(Ej_Betalat_Lån*Angivna_Värden,Utgående_Saldo,\"\"), \"\")","v":{"v":4106.633095759646,"d":"4,106.63 kr"}}]
[null,{"$f":"IFERROR(IF(Ej_Betalat_Lån*Angivna_Värden,Betalningsnummer,\"\"), \"\")","v":13},{"$f":"IFERROR(IF(Ej_Betalat_Lån*Angivna_Värden,Betalningsdatum,\"\"), \"\")","v":"2021-05-15"},{"$f":"IFERROR(IF(Ej_Betalat_Lån*Angivna_Värden,Ingående_Saldo,\"\"), \"\")","v":{"v":4106.633095759646,"d":"4,106.63 kr"}},{"$f":"IFERROR(IF(Ej_Betalat_Lån*Angivna_Värden,Månadsbetalning,\"\"), \"\")","v":{"v":95.5058108589112,"d":"95.51 kr"}},{"$f":"IFERROR(IF(Ej_Betalat_Lån*Angivna_Värden,Amortering,\"\"), \"\")","v":{"v":76.68374250334618,"d":"76.68 kr"}},{"$f":"IFERROR(IF(Ej_Betalat_Lån*Angivna_Värden,Ränta,\"\"), \"\")","v":{"v":18.822068355565037,"d":"18.82 kr"}},{"$f":"IFERROR(IF(Ej_Betalat_Lån*Angivna_Värden,Utgående_Saldo,\"\"), \"\")","v":{"v":4029.9493532562983,"d":"4,029.95 kr"}}]
[null,{"$f":"IFERROR(IF(Ej_Betalat_Lån*Angivna_Värden,Betalningsnummer,\"\"), \"\")","v":14},{"$f":"IFERROR(IF(Ej_Betalat_Lån*Angivna_Värden,Betalningsdatum,\"\"), \"\")","v":"2021-06-15"},{"$f":"IFERROR(IF(Ej_Betalat_Lån*Angivna_Värden,Ingående_Saldo,\"\"), \"\")","v":{"v":4029.9493532562983,"d":"4,029.95 kr"}},{"$f":"IFERROR(IF(Ej_Betalat_Lån*Angivna_Värden,Månadsbetalning,\"\"), \"\")","v":{"v":95.5058108589112,"d":"95.51 kr"}},{"$f":"IFERROR(IF(Ej_Betalat_Lån*Angivna_Värden,Amortering,\"\"), \"\")","v":{"v":77.0352096564865,"d":"77.04 kr"}},{"$f":"IFERROR(IF(Ej_Betalat_Lån*Angivna_Värden,Ränta,\"\"), \"\")","v":{"v":18.470601202424707,"d":"18.47 kr"}},{"$f":"IFERROR(IF(Ej_Betalat_Lån*Angivna_Värden,Utgående_Saldo,\"\"), \"\")","v":{"v":3952.914143599811,"d":"3,952.91 kr"}}]
[null,{"$f":"IFERROR(IF(Ej_Betalat_Lån*Angivna_Värden,Betalningsnummer,\"\"), \"\")","v":15},{"$f":"IFERROR(IF(Ej_Betalat_Lån*Angivna_Värden,Betalningsdatum,\"\"), \"\")","v":"2021-07-15"},{"$f":"IFERROR(IF(Ej_Betalat_Lån*Angivna_Värden,Ingående_Saldo,\"\"), \"\")","v":{"v":3952.914143599811,"d":"3,952.91 kr"}},{"$f":"IFERROR(IF(Ej_Betalat_Lån*Angivna_Värden,Månadsbetalning,\"\"), \"\")","v":{"v":95.5058108589112,"d":"95.51 kr"}},{"$f":"IFERROR(IF(Ej_Betalat_Lån*Angivna_Värden,Amortering,\"\"), \"\")","v":{"v":77.3882877007454,"d":"77.39 kr"}},{"$f":"IFERROR(IF(Ej_Betalat_Lån*Angivna_Värden,Ränta,\"\"), \"\")","v":{"v":18.11752315816581,"d":"18.12 kr"}},{"$f":"IFERROR(IF(Ej_Betalat_Lån*Angivna_Värden,Utgående_Saldo,\"\"), \"\")","v":{"v":3875.5258558990663,"d":"3,875.53 kr"}}]
[null,{"$f":"IFERROR(IF(Ej_Betalat_Lån*Angivna_Värden,Betalningsnummer,\"\"), \"\")","v":16},{"$f":"IFERROR(IF(Ej_Betalat_Lån*Angivna_Värden,Betalningsdatum,\"\"), \"\")","v":"2021-08-15"},{"$f":"IFERROR(IF(Ej_Betalat_Lån*Angivna_Värden,Ingående_Saldo,\"\"), \"\")","v":{"v":3875.5258558990663,"d":"3,875.53 kr"}},{"$f":"IFERROR(IF(Ej_Betalat_Lån*Angivna_Värden,Månadsbetalning,\"\"), \"\")","v":{"v":95.5058108589112,"d":"95.51 kr"}},{"$f":"IFERROR(IF(Ej_Betalat_Lån*Angivna_Värden,Amortering,\"\"), \"\")","v":{"v":77.74298401937381,"d":"77.74 kr"}},{"$f":"IFERROR(IF(Ej_Betalat_Lån*Angivna_Värden,Ränta,\"\"), \"\")","v":{"v":17.762826839537393,"d":"17.76 kr"}},{"$f":"IFERROR(IF(Ej_Betalat_Lån*Angivna_Värden,Utgående_Saldo,\"\"), \"\")","v":{"v":3797.782871879692,"d":"3,797.78 kr"}}]
[null,{"$f":"IFERROR(IF(Ej_Betalat_Lån*Angivna_Värden,Betalningsnummer,\"\"), \"\")","v":17},{"$f":"IFERROR(IF(Ej_Betalat_Lån*Angivna_Värden,Betalningsdatum,\"\"), \"\")","v":"2021-09-15"},{"$f":"IFERROR(IF(Ej_Betalat_Lån*Angivna_Värden,Ingående_Saldo,\"\"), \"\")","v":{"v":3797.782871879692,"d":"3,797.78 kr"}},{"$f":"IFERROR(IF(Ej_Betalat_Lån*Angivna_Värden,Månadsbetalning,\"\"), \"\")","v":{"v":95.5058108589112,"d":"95.51 kr"}},{"$f":"IFERROR(IF(Ej_Betalat_Lån*Angivna_Värden,Amortering,\"\"), \"\")","v":{"v":78.09930602946262,"d":"78.10 kr"}},{"$f":"IFERROR(IF(Ej_Betalat_Lån*Angivna_Värden,Ränta,\"\"), \"\")","v":{"v":17.406504829448597,"d":"17.41 kr"}},{"$f":"IFERROR(IF(Ej_Betalat_Lån*Angivna_Värden,Utgående_Saldo,\"\"), \"\")","v":{"v":3719.683565850227,"d":"3,719.68 kr"}}]
[null,{"$f":"IFERROR(IF(Ej_Betalat_Lån*Angivna_Värden,Betalningsnummer,\"\"), \"\")","v":18},{"$f":"IFERROR(IF(Ej_Betalat_Lån*Angivna_Värden,Betalningsdatum,\"\"), \"\")","v":"2021-10-15"},{"$f":"IFERROR(IF(Ej_Betalat_Lån*Angivna_Värden,Ingående_Saldo,\"\"), \"\")","v":{"v":3719.683565850227,"d":"3,719.68 kr"}},{"$f":"IFERROR(IF(Ej_Betalat_Lån*Angivna_Värden,Månadsbetalning,\"\"), \"\")","v":{"v":95.5058108589112,"d":"95.51 kr"}},{"$f":"IFERROR(IF(Ej_Betalat_Lån*Angivna_Värden,Amortering,\"\"), \"\")","v":{"v":78.45726118209765,"d":"78.46 kr"}},{"$f":"IFERROR(IF(Ej_Betalat_Lån*Angivna_Värden,Ränta,\"\"), \"\")","v":{"v":17.048549676813558,"d":"17.05 kr"}},{"$f":"IFERROR(IF(Ej_Betalat_Lån*Angivna_Värden,Utgående_Saldo,\"\"), \"\")","v":{"v":3641.2263046681296,"d":"3,641.23 kr"}}]
[null,{"$f":"IFERROR(IF(Ej_Betalat_Lån*Angivna_Värden,Betalningsnummer,\"\"), \"\")","v":19},{"$f":"IFERROR(IF(Ej_Betalat_Lån*Angivna_Värden,Betalningsdatum,\"\"), \"\")","v":"2021-11-15"},{"$f":"IFERROR(IF(Ej_Betalat_Lån*Angivna_Värden,Ingående_Saldo,\"\"), \"\")","v":{"v":3641.2263046681296,"d":"3,641.23 kr"}},{"$f":"IFERROR(IF(Ej_Betalat_Lån*Angivna_Värden,Månadsbetalning,\"\"), \"\")","v":{"v":95.5058108589112,"d":"95.51 kr"}},{"$f":"IFERROR(IF(Ej_Betalat_Lån*Angivna_Värden,Amortering,\"\"), \"\")","v":{"v":78.8168569625156,"d":"78.82 kr"}},{"$f":"IFERROR(IF(Ej_Betalat_Lån*Angivna_Värden,Ränta,\"\"), \"\")","v":{"v":16.68895389639561,"d":"16.69 kr"}},{"$f":"IFERROR(IF(Ej_Betalat_Lån*Angivna_Värden,Utgående_Saldo,\"\"), \"\")","v":{"v":3562.409447705617,"d":"3,562.41 kr"}}]
[null,{"$f":"IFERROR(IF(Ej_Betalat_Lån*Angivna_Värden,Betalningsnummer,\"\"), \"\")","v":20},{"$f":"IFERROR(IF(Ej_Betalat_Lån*Angivna_Värden,Betalningsdatum,\"\"), \"\")","v":"2021-12-15"},{"$f":"IFERROR(IF(Ej_Betalat_Lån*Angivna_Värden,Ingående_Saldo,\"\"), \"\")","v":{"v":3562.409447705617,"d":"3,562.41 kr"}},{"$f":"IFERROR(IF(Ej_Betalat_Lån*Angivna_Värden,Månadsbetalning,\"\"), \"\")","v":{"v":95.5058108589112,"d":"95.51 kr"}},{"$f":"IFERROR(IF(Ej_Betalat_Lån*Angivna_Värden,Amortering,\"\"), \"\")","v":{"v":79.17810089026047,"d":"79.18 kr"}},{"$f":"IFERROR(IF(Ej_Betalat_Lån*Angivna_Värden,Ränta,\"\"), \"\")","v":{"v":16.327709968650748,"d":"16.33 kr"}},{"$f":"IFERROR(IF(Ej_Betalat_Lån*Angivna_Värden,Utgående_Saldo,\"\"), \"\")","v":{"v":3483.231346815355,"d":"3,483.23 kr"}}]
[null,{"$f":"IFERROR(IF(Ej_Betalat_Lån*Angivna_Värden,Betalningsnummer,\"\"), \"\")","v":21},{"$f":"IFERROR(IF(Ej_Betalat_Lån*Angivna_Värden,Betalningsdatum,\"\"), \"\")","v":"2022-01-15"},{"$f":"IFERROR(IF(Ej_Betalat_Lån*Angivna_Värden,Ingående_Saldo,\"\"), \"\")","v":{"v":3483.231346815355,"d":"3,483.23 kr"}},{"$f":"IFERROR(IF(Ej_Betalat_Lån*Angivna_Värden,Månadsbetalning,\"\"), \"\")","v":{"v":95.5058108589112,"d":"95.51 kr"}},{"$f":"IFERROR(IF(Ej_Betalat_Lån*Angivna_Värden,Amortering,\"\"), \"\")","v":{"v":79.54100051934081,"d":"79.54 kr"}},{"$f":"IFERROR(IF(Ej_Betalat_Lån*Angivna_Värden,Ränta,\"\"), \"\")","v":{"v":15.964810339570388,"d":"15.96 kr"}},{"$f":"IFERROR(IF(Ej_Betalat_Lån*Angivna_Värden,Utgående_Saldo,\"\"), \"\")","v":{"v":3403.6903462960136,"d":"3,403.69 kr"}}]
[null,{"$f":"IFERROR(IF(Ej_Betalat_Lån*Angivna_Värden,Betalningsnummer,\"\"), \"\")","v":22},{"$f":"IFERROR(IF(Ej_Betalat_Lån*Angivna_Värden,Betalningsdatum,\"\"), \"\")","v":"2022-02-15"},{"$f":"IFERROR(IF(Ej_Betalat_Lån*Angivna_Värden,Ingående_Saldo,\"\"), \"\")","v":{"v":3403.6903462960136,"d":"3,403.69 kr"}},{"$f":"IFERROR(IF(Ej_Betalat_Lån*Angivna_Värden,Månadsbetalning,\"\"), \"\")","v":{"v":95.5058108589112,"d":"95.51 kr"}},{"$f":"IFERROR(IF(Ej_Betalat_Lån*Angivna_Värden,Amortering,\"\"), \"\")","v":{"v":79.90556343838782,"d":"79.91 kr"}},{"$f":"IFERROR(IF(Ej_Betalat_Lån*Angivna_Värden,Ränta,\"\"), \"\")","v":{"v":15.600247420523408,"d":"15.60 kr"}},{"$f":"IFERROR(IF(Ej_Betalat_Lån*Angivna_Värden,Utgående_Saldo,\"\"), \"\")","v":{"v":3323.7847828576223,"d":"3,323.78 kr"}}]
[null,{"$f":"IFERROR(IF(Ej_Betalat_Lån*Angivna_Värden,Betalningsnummer,\"\"), \"\")","v":23},{"$f":"IFERROR(IF(Ej_Betalat_Lån*Angivna_Värden,Betalningsdatum,\"\"), \"\")","v":"2022-03-15"},{"$f":"IFERROR(IF(Ej_Betalat_Lån*Angivna_Värden,Ingående_Saldo,\"\"), \"\")","v":{"v":3323.7847828576223,"d":"3,323.78 kr"}},{"$f":"IFERROR(IF(Ej_Betalat_Lån*Angivna_Värden,Månadsbetalning,\"\"), \"\")","v":{"v":95.5058108589112,"d":"95.51 kr"}},{"$f":"IFERROR(IF(Ej_Betalat_Lån*Angivna_Värden,Amortering,\"\"), \"\")","v":{"v":80.27179727081375,"d":"80.27 kr"}},{"$f":"IFERROR(IF(Ej_Betalat_Lån*Angivna_Värden,Ränta,\"\"), \"\")","v":{"v":15.234013588097463,"d":"15.23 kr"}},{"$f":"IFERROR(IF(Ej_Betalat_Lån*Angivna_Värden,Utgående_Saldo,\"\"), \"\")","v":{"v":3243.5129855868117,"d":"3,243.51 kr"}}]
[null,{"$f":"IFERROR(IF(Ej_Betalat_Lån*Angivna_Värden,Betalningsnummer,\"\"), \"\")","v":24},{"$f":"IFERROR(IF(Ej_Betalat_Lån*Angivna_Värden,Betalningsdatum,\"\"), \"\")","v":"2022-04-15"},{"$f":"IFERROR(IF(Ej_Betalat_Lån*Angivna_Värden,Ingående_Saldo,\"\"), \"\")","v":{"v":3243.5129855868117,"d":"3,243.51 kr"}},{"$f":"IFERROR(IF(Ej_Betalat_Lån*Angivna_Värden,Månadsbetalning,\"\"), \"\")","v":{"v":95.5058108589112,"d":"95.51 kr"}},{"$f":"IFERROR(IF(Ej_Betalat_Lån*Angivna_Värden,Amortering,\"\"), \"\")","v":{"v":80.63970967497164,"d":"80.64 kr"}},{"$f":"IFERROR(IF(Ej_Betalat_Lån*Angivna_Värden,Ränta,\"\"), \"\")","v":{"v":14.866101183939566,"d":"14.87 kr"}},{"$f":"IFERROR(IF(Ej_Betalat_Lån*Angivna_Värden,Utgående_Saldo,\"\"), \"\")","v":{"v":3162.87327591184,"d":"3,162.87 kr"}}]
[null,{"$f":"IFERROR(IF(Ej_Betalat_Lån*Angivna_Värden,Betalningsnummer,\"\"), \"\")","v":25},{"$f":"IFERROR(IF(Ej_Betalat_Lån*Angivna_Värden,Betalningsdatum,\"\"), \"\")","v":"2022-05-15"},{"$f":"IFERROR(IF(Ej_Betalat_Lån*Angivna_Värden,Ingående_Saldo,\"\"), \"\")","v":{"v":3162.87327591184,"d":"3,162.87 kr"}},{"$f":"IFERROR(IF(Ej_Betalat_Lån*Angivna_Värden,Månadsbetalning,\"\"), \"\")","v":{"v":95.5058108589112,"d":"95.51 kr"}},{"$f":"IFERROR(IF(Ej_Betalat_Lån*Angivna_Värden,Amortering,\"\"), \"\")","v":{"v":81.00930834431526,"d":"81.01 kr"}},{"$f":"IFERROR(IF(Ej_Betalat_Lån*Angivna_Värden,Ränta,\"\"), \"\")","v":{"v":14.49650251459595,"d":"14.50 kr"}},{"$f":"IFERROR(IF(Ej_Betalat_Lån*Angivna_Värden,Utgående_Saldo,\"\"), \"\")","v":{"v":3081.8639675675254,"d":"3,081.86 kr"}}]
[null,{"$f":"IFERROR(IF(Ej_Betalat_Lån*Angivna_Värden,Betalningsnummer,\"\"), \"\")","v":26},{"$f":"IFERROR(IF(Ej_Betalat_Lån*Angivna_Värden,Betalningsdatum,\"\"), \"\")","v":"2022-06-15"},{"$f":"IFERROR(IF(Ej_Betalat_Lån*Angivna_Värden,Ingående_Saldo,\"\"), \"\")","v":{"v":3081.8639675675254,"d":"3,081.86 kr"}},{"$f":"IFERROR(IF(Ej_Betalat_Lån*Angivna_Värden,Månadsbetalning,\"\"), \"\")","v":{"v":95.5058108589112,"d":"95.51 kr"}},{"$f":"IFERROR(IF(Ej_Betalat_Lån*Angivna_Värden,Amortering,\"\"), \"\")","v":{"v":81.38060100756003,"d":"81.38 kr"}},{"$f":"IFERROR(IF(Ej_Betalat_Lån*Angivna_Värden,Ränta,\"\"), \"\")","v":{"v":14.125209851351169,"d":"14.13 kr"}},{"$f":"IFERROR(IF(Ej_Betalat_Lån*Angivna_Värden,Utgående_Saldo,\"\"), \"\")","v":{"v":3000.483366559965,"d":"3,000.48 kr"}}]
[null,{"$f":"IFERROR(IF(Ej_Betalat_Lån*Angivna_Värden,Betalningsnummer,\"\"), \"\")","v":27},{"$f":"IFERROR(IF(Ej_Betalat_Lån*Angivna_Värden,Betalningsdatum,\"\"), \"\")","v":"2022-07-15"},{"$f":"IFERROR(IF(Ej_Betalat_Lån*Angivna_Värden,Ingående_Saldo,\"\"), \"\")","v":{"v":3000.483366559965,"d":"3,000.48 kr"}},{"$f":"IFERROR(IF(Ej_Betalat_Lån*Angivna_Värden,Månadsbetalning,\"\"), \"\")","v":{"v":95.5058108589112,"d":"95.51 kr"}},{"$f":"IFERROR(IF(Ej_Betalat_Lån*Angivna_Värden,Amortering,\"\"), \"\")","v":{"v":81.75359542884469,"d":"81.75 kr"}},{"$f":"IFERROR(IF(Ej_Betalat_Lån*Angivna_Värden,Ränta,\"\"), \"\")","v":{"v":13.752215430066517,"d":"13.75 kr"}},{"$f":"IFERROR(IF(Ej_Betalat_Lån*Angivna_Värden,Utgående_Saldo,\"\"), \"\")","v":{"v":2918.729771131121,"d":"2,918.73 kr"}}]
[null,{"$f":"IFERROR(IF(Ej_Betalat_Lån*Angivna_Värden,Betalningsnummer,\"\"), \"\")","v":28},{"$f":"IFERROR(IF(Ej_Betalat_Lån*Angivna_Värden,Betalningsdatum,\"\"), \"\")","v":"2022-08-15"},{"$f":"IFERROR(IF(Ej_Betalat_Lån*Angivna_Värden,Ingående_Saldo,\"\"), \"\")","v":{"v":2918.729771131121,"d":"2,918.73 kr"}},{"$f":"IFERROR(IF(Ej_Betalat_Lån*Angivna_Värden,Månadsbetalning,\"\"), \"\")","v":{"v":95.5058108589112,"d":"95.51 kr"}},{"$f":"IFERROR(IF(Ej_Betalat_Lån*Angivna_Värden,Amortering,\"\"), \"\")","v":{"v":82.12829940789356,"d":"82.13 kr"}},{"$f":"IFERROR(IF(Ej_Betalat_Lån*Angivna_Värden,Ränta,\"\"), \"\")","v":{"v":13.377511451017645,"d":"13.38 kr"}},{"$f":"IFERROR(IF(Ej_Betalat_Lån*Angivna_Värden,Utgående_Saldo,\"\"), \"\")","v":{"v":2836.601471723228,"d":"2,836.60 kr"}}]
[null,{"$f":"IFERROR(IF(Ej_Betalat_Lån*Angivna_Värden,Betalningsnummer,\"\"), \"\")","v":29},{"$f":"IFERROR(IF(Ej_Betalat_Lån*Angivna_Värden,Betalningsdatum,\"\"), \"\")","v":"2022-09-15"},{"$f":"IFERROR(IF(Ej_Betalat_Lån*Angivna_Värden,Ingående_Saldo,\"\"), \"\")","v":{"v":2836.601471723228,"d":"2,836.60 kr"}},{"$f":"IFERROR(IF(Ej_Betalat_Lån*Angivna_Värden,Månadsbetalning,\"\"), \"\")","v":{"v":95.5058108589112,"d":"95.51 kr"}},{"$f":"IFERROR(IF(Ej_Betalat_Lån*Angivna_Värden,Amortering,\"\"), \"\")","v":{"v":82.50472078017975,"d":"82.50 kr"}},{"$f":"IFERROR(IF(Ej_Betalat_Lån*Angivna_Värden,Ränta,\"\"), \"\")","v":{"v":13.001090078731467,"d":"13.00 kr"}},{"$f":"IFERROR(IF(Ej_Betalat_Lån*Angivna_Värden,Utgående_Saldo,\"\"), \"\")","v":{"v":2754.0967509430457,"d":"2,754.10 kr"}}]
[null,{"$f":"IFERROR(IF(Ej_Betalat_Lån*Angivna_Värden,Betalningsnummer,\"\"), \"\")","v":30},{"$f":"IFERROR(IF(Ej_Betalat_Lån*Angivna_Värden,Betalningsdatum,\"\"), \"\")","v":"2022-10-15"},{"$f":"IFERROR(IF(Ej_Betalat_Lån*Angivna_Värden,Ingående_Saldo,\"\"), \"\")","v":{"v":2754.0967509430457,"d":"2,754.10 kr"}},{"$f":"IFERROR(IF(Ej_Betalat_Lån*Angivna_Värden,Månadsbetalning,\"\"), \"\")","v":{"v":95.5058108589112,"d":"95.51 kr"}},{"$f":"IFERROR(IF(Ej_Betalat_Lån*Angivna_Värden,Amortering,\"\"), \"\")","v":{"v":82.8828674170889,"d":"82.88 kr"}},{"$f":"IFERROR(IF(Ej_Betalat_Lån*Angivna_Värden,Ränta,\"\"), \"\")","v":{"v":12.622943441822311,"d":"12.62 kr"}},{"$f":"IFERROR(IF(Ej_Betalat_Lån*Angivna_Värden,Utgående_Saldo,\"\"), \"\")","v":{"v":2671.213883525958,"d":"2,671.21 kr"}}]
[null,{"$f":"IFERROR(IF(Ej_Betalat_Lån*Angivna_Värden,Betalningsnummer,\"\"), \"\")","v":31},{"$f":"IFERROR(IF(Ej_Betalat_Lån*Angivna_Värden,Betalningsdatum,\"\"), \"\")","v":"2022-11-15"},{"$f":"IFERROR(IF(Ej_Betalat_Lån*Angivna_Värden,Ingående_Saldo,\"\"), \"\")","v":{"v":2671.213883525958,"d":"2,671.21 kr"}},{"$f":"IFERROR(IF(Ej_Betalat_Lån*Angivna_Värden,Månadsbetalning,\"\"), \"\")","v":{"v":95.5058108589112,"d":"95.51 kr"}},{"$f":"IFERROR(IF(Ej_Betalat_Lån*Angivna_Värden,Amortering,\"\"), \"\")","v":{"v":83.26274722608389,"d":"83.26 kr"}},{"$f":"IFERROR(IF(Ej_Betalat_Lån*Angivna_Värden,Ränta,\"\"), \"\")","v":{"v":12.243063632827322,"d":"12.24 kr"}},{"$f":"IFERROR(IF(Ej_Betalat_Lån*Angivna_Värden,Utgående_Saldo,\"\"), \"\")","v":{"v":2587.951136299874,"d":"2,587.95 kr"}}]
[null,{"$f":"IFERROR(IF(Ej_Betalat_Lån*Angivna_Värden,Betalningsnummer,\"\"), \"\")","v":32},{"$f":"IFERROR(IF(Ej_Betalat_Lån*Angivna_Värden,Betalningsdatum,\"\"), \"\")","v":"2022-12-15"},{"$f":"IFERROR(IF(Ej_Betalat_Lån*Angivna_Värden,Ingående_Saldo,\"\"), \"\")","v":{"v":2587.951136299874,"d":"2,587.95 kr"}},{"$f":"IFERROR(IF(Ej_Betalat_Lån*Angivna_Värden,Månadsbetalning,\"\"), \"\")","v":{"v":95.5058108589112,"d":"95.51 kr"}},{"$f":"IFERROR(IF(Ej_Betalat_Lån*Angivna_Värden,Amortering,\"\"), \"\")","v":{"v":83.64436815087011,"d":"83.64 kr"}},{"$f":"IFERROR(IF(Ej_Betalat_Lån*Angivna_Värden,Ränta,\"\"), \"\")","v":{"v":11.8614427080411,"d":"11.86 kr"}},{"$f":"IFERROR(IF(Ej_Betalat_Lån*Angivna_Värden,Utgående_Saldo,\"\"), \"\")","v":{"v":2504.3067681490024,"d":"2,504.31 kr"}}]
[null,{"$f":"IFERROR(IF(Ej_Betalat_Lån*Angivna_Värden,Betalningsnummer,\"\"), \"\")","v":33},{"$f":"IFERROR(IF(Ej_Betalat_Lån*Angivna_Värden,Betalningsdatum,\"\"), \"\")","v":"2023-01-15"},{"$f":"IFERROR(IF(Ej_Betalat_Lån*Angivna_Värden,Ingående_Saldo,\"\"), \"\")","v":{"v":2504.3067681490024,"d":"2,504.31 kr"}},{"$f":"IFERROR(IF(Ej_Betalat_Lån*Angivna_Värden,Månadsbetalning,\"\"), \"\")","v":{"v":95.5058108589112,"d":"95.51 kr"}},{"$f":"IFERROR(IF(Ej_Betalat_Lån*Angivna_Värden,Amortering,\"\"), \"\")","v":{"v":84.0277381715616,"d":"84.03 kr"}},{"$f":"IFERROR(IF(Ej_Betalat_Lån*Angivna_Värden,Ränta,\"\"), \"\")","v":{"v":11.478072687349611,"d":"11.48 kr"}},{"$f":"IFERROR(IF(Ej_Betalat_Lån*Angivna_Värden,Utgående_Saldo,\"\"), \"\")","v":{"v":2420.279029977438,"d":"2,420.28 kr"}}]
[null,{"$f":"IFERROR(IF(Ej_Betalat_Lån*Angivna_Värden,Betalningsnummer,\"\"), \"\")","v":34},{"$f":"IFERROR(IF(Ej_Betalat_Lån*Angivna_Värden,Betalningsdatum,\"\"), \"\")","v":"2023-02-15"},{"$f":"IFERROR(IF(Ej_Betalat_Lån*Angivna_Värden,Ingående_Saldo,\"\"), \"\")","v":{"v":2420.279029977438,"d":"2,420.28 kr"}},{"$f":"IFERROR(IF(Ej_Betalat_Lån*Angivna_Värden,Månadsbetalning,\"\"), \"\")","v":{"v":95.5058108589112,"d":"95.51 kr"}},{"$f":"IFERROR(IF(Ej_Betalat_Lån*Angivna_Värden,Amortering,\"\"), \"\")","v":{"v":84.41286530484791,"d":"84.41 kr"}},{"$f":"IFERROR(IF(Ej_Betalat_Lån*Angivna_Värden,Ränta,\"\"), \"\")","v":{"v":11.092945554063288,"d":"11.09 kr"}},{"$f":"IFERROR(IF(Ej_Betalat_Lån*Angivna_Värden,Utgående_Saldo,\"\"), \"\")","v":{"v":2335.8661646725905,"d":"2,335.87 kr"}}]
[null,{"$f":"IFERROR(IF(Ej_Betalat_Lån*Angivna_Värden,Betalningsnummer,\"\"), \"\")","v":35},{"$f":"IFERROR(IF(Ej_Betalat_Lån*Angivna_Värden,Betalningsdatum,\"\"), \"\")","v":"2023-03-15"},{"$f":"IFERROR(IF(Ej_Betalat_Lån*Angivna_Värden,Ingående_Saldo,\"\"), \"\")","v":{"v":2335.8661646725905,"d":"2,335.87 kr"}},{"$f":"IFERROR(IF(Ej_Betalat_Lån*Angivna_Värden,Månadsbetalning,\"\"), \"\")","v":{"v":95.5058108589112,"d":"95.51 kr"}},{"$f":"IFERROR(IF(Ej_Betalat_Lån*Angivna_Värden,Amortering,\"\"), \"\")","v":{"v":84.79975760416181,"d":"84.80 kr"}},{"$f":"IFERROR(IF(Ej_Betalat_Lån*Angivna_Värden,Ränta,\"\"), \"\")","v":{"v":10.706053254749405,"d":"10.71 kr"}},{"$f":"IFERROR(IF(Ej_Betalat_Lån*Angivna_Värden,Utgående_Saldo,\"\"), \"\")","v":{"v":2251.0664070684293,"d":"2,251.07 kr"}}]
[null,{"$f":"IFERROR(IF(Ej_Betalat_Lån*Angivna_Värden,Betalningsnummer,\"\"), \"\")","v":36},{"$f":"IFERROR(IF(Ej_Betalat_Lån*Angivna_Värden,Betalningsdatum,\"\"), \"\")","v":"2023-04-15"},{"$f":"IFERROR(IF(Ej_Betalat_Lån*Angivna_Värden,Ingående_Saldo,\"\"), \"\")","v":{"v":2251.0664070684293,"d":"2,251.07 kr"}},{"$f":"IFERROR(IF(Ej_Betalat_Lån*Angivna_Värden,Månadsbetalning,\"\"), \"\")","v":{"v":95.5058108589112,"d":"95.51 kr"}},{"$f":"IFERROR(IF(Ej_Betalat_Lån*Angivna_Värden,Amortering,\"\"), \"\")","v":{"v":85.18842315984755,"d":"85.19 kr"}},{"$f":"IFERROR(IF(Ej_Betalat_Lån*Angivna_Värden,Ränta,\"\"), \"\")","v":{"v":10.317387699063662,"d":"10.32 kr"}},{"$f":"IFERROR(IF(Ej_Betalat_Lån*Angivna_Värden,Utgående_Saldo,\"\"), \"\")","v":{"v":2165.877983908582,"d":"2,165.88 kr"}}]
[null,{"$f":"IFERROR(IF(Ej_Betalat_Lån*Angivna_Värden,Betalningsnummer,\"\"), \"\")","v":37},{"$f":"IFERROR(IF(Ej_Betalat_Lån*Angivna_Värden,Betalningsdatum,\"\"), \"\")","v":"2023-05-15"},{"$f":"IFERROR(IF(Ej_Betalat_Lån*Angivna_Värden,Ingående_Saldo,\"\"), \"\")","v":{"v":2165.877983908582,"d":"2,165.88 kr"}},{"$f":"IFERROR(IF(Ej_Betalat_Lån*Angivna_Värden,Månadsbetalning,\"\"), \"\")","v":{"v":95.5058108589112,"d":"95.51 kr"}},{"$f":"IFERROR(IF(Ej_Betalat_Lån*Angivna_Värden,Amortering,\"\"), \"\")","v":{"v":85.57887009933019,"d":"85.58 kr"}},{"$f":"IFERROR(IF(Ej_Betalat_Lån*Angivna_Värden,Ränta,\"\"), \"\")","v":{"v":9.926940759581028,"d":"9.93 kr"}},{"$f":"IFERROR(IF(Ej_Betalat_Lån*Angivna_Värden,Utgående_Saldo,\"\"), \"\")","v":{"v":2080.2991138092493,"d":"2,080.30 kr"}}]
[null,{"$f":"IFERROR(IF(Ej_Betalat_Lån*Angivna_Värden,Betalningsnummer,\"\"), \"\")","v":38},{"$f":"IFERROR(IF(Ej_Betalat_Lån*Angivna_Värden,Betalningsdatum,\"\"), \"\")","v":"2023-06-15"},{"$f":"IFERROR(IF(Ej_Betalat_Lån*Angivna_Värden,Ingående_Saldo,\"\"), \"\")","v":{"v":2080.2991138092493,"d":"2,080.30 kr"}},{"$f":"IFERROR(IF(Ej_Betalat_Lån*Angivna_Värden,Månadsbetalning,\"\"), \"\")","v":{"v":95.5058108589112,"d":"95.51 kr"}},{"$f":"IFERROR(IF(Ej_Betalat_Lån*Angivna_Värden,Amortering,\"\"), \"\")","v":{"v":85.97110658728545,"d":"85.97 kr"}},{"$f":"IFERROR(IF(Ej_Betalat_Lån*Angivna_Värden,Ränta,\"\"), \"\")","v":{"v":9.534704271625763,"d":"9.53 kr"}},{"$f":"IFERROR(IF(Ej_Betalat_Lån*Angivna_Värden,Utgående_Saldo,\"\"), \"\")","v":{"v":1994.3280072219636,"d":"1,994.33 kr"}}]
[null,{"$f":"IFERROR(IF(Ej_Betalat_Lån*Angivna_Värden,Betalningsnummer,\"\"), \"\")","v":39},{"$f":"IFERROR(IF(Ej_Betalat_Lån*Angivna_Värden,Betalningsdatum,\"\"), \"\")","v":"2023-07-15"},{"$f":"IFERROR(IF(Ej_Betalat_Lån*Angivna_Värden,Ingående_Saldo,\"\"), \"\")","v":{"v":1994.3280072219636,"d":"1,994.33 kr"}},{"$f":"IFERROR(IF(Ej_Betalat_Lån*Angivna_Värden,Månadsbetalning,\"\"), \"\")","v":{"v":95.5058108589112,"d":"95.51 kr"}},{"$f":"IFERROR(IF(Ej_Betalat_Lån*Angivna_Värden,Amortering,\"\"), \"\")","v":{"v":86.36514082581051,"d":"86.37 kr"}},{"$f":"IFERROR(IF(Ej_Betalat_Lån*Angivna_Värden,Ränta,\"\"), \"\")","v":{"v":9.140670033100704,"d":"9.14 kr"}},{"$f":"IFERROR(IF(Ej_Betalat_Lån*Angivna_Värden,Utgående_Saldo,\"\"), \"\")","v":{"v":1907.9628663961566,"d":"1,907.96 kr"}}]
[null,{"$f":"IFERROR(IF(Ej_Betalat_Lån*Angivna_Värden,Betalningsnummer,\"\"), \"\")","v":40},{"$f":"IFERROR(IF(Ej_Betalat_Lån*Angivna_Värden,Betalningsdatum,\"\"), \"\")","v":"2023-08-15"},{"$f":"IFERROR(IF(Ej_Betalat_Lån*Angivna_Värden,Ingående_Saldo,\"\"), \"\")","v":{"v":1907.9628663961566,"d":"1,907.96 kr"}},{"$f":"IFERROR(IF(Ej_Betalat_Lån*Angivna_Värden,Månadsbetalning,\"\"), \"\")","v":{"v":95.5058108589112,"d":"95.51 kr"}},{"$f":"IFERROR(IF(Ej_Betalat_Lån*Angivna_Värden,Amortering,\"\"), \"\")","v":{"v":86.76098105459546,"d":"86.76 kr"}},{"$f":"IFERROR(IF(Ej_Betalat_Lån*Angivna_Värden,Ränta,\"\"), \"\")","v":{"v":8.74482980431574,"d":"8.74 kr"}},{"$f":"IFERROR(IF(Ej_Betalat_Lån*Angivna_Värden,Utgående_Saldo,\"\"), \"\")","v":{"v":1821.2018853415611,"d":"1,821.20 kr"}}]
[null,{"$f":"IFERROR(IF(Ej_Betalat_Lån*Angivna_Värden,Betalningsnummer,\"\"), \"\")","v":41},{"$f":"IFERROR(IF(Ej_Betalat_Lån*Angivna_Värden,Betalningsdatum,\"\"), \"\")","v":"2023-09-15"},{"$f":"IFERROR(IF(Ej_Betalat_Lån*Angivna_Värden,Ingående_Saldo,\"\"), \"\")","v":{"v":1821.2018853415611,"d":"1,821.20 kr"}},{"$f":"IFERROR(IF(Ej_Betalat_Lån*Angivna_Värden,Månadsbetalning,\"\"), \"\")","v":{"v":95.5058108589112,"d":"95.51 kr"}},{"$f":"IFERROR(IF(Ej_Betalat_Lån*Angivna_Värden,Amortering,\"\"), \"\")","v":{"v":87.1586355510957,"d":"87.16 kr"}},{"$f":"IFERROR(IF(Ej_Betalat_Lån*Angivna_Värden,Ränta,\"\"), \"\")","v":{"v":8.347175307815512,"d":"8.35 kr"}},{"$f":"IFERROR(IF(Ej_Betalat_Lån*Angivna_Värden,Utgående_Saldo,\"\"), \"\")","v":{"v":1734.0432497904649,"d":"1,734.04 kr"}}]
[null,{"$f":"IFERROR(IF(Ej_Betalat_Lån*Angivna_Värden,Betalningsnummer,\"\"), \"\")","v":42},{"$f":"IFERROR(IF(Ej_Betalat_Lån*Angivna_Värden,Betalningsdatum,\"\"), \"\")","v":"2023-10-15"},{"$f":"IFERROR(IF(Ej_Betalat_Lån*Angivna_Värden,Ingående_Saldo,\"\"), \"\")","v":{"v":1734.0432497904649,"d":"1,734.04 kr"}},{"$f":"IFERROR(IF(Ej_Betalat_Lån*Angivna_Värden,Månadsbetalning,\"\"), \"\")","v":{"v":95.5058108589112,"d":"95.51 kr"}},{"$f":"IFERROR(IF(Ej_Betalat_Lån*Angivna_Värden,Amortering,\"\"), \"\")","v":{"v":87.5581126307049,"d":"87.56 kr"}},{"$f":"IFERROR(IF(Ej_Betalat_Lån*Angivna_Värden,Ränta,\"\"), \"\")","v":{"v":7.947698228206322,"d":"7.95 kr"}},{"$f":"IFERROR(IF(Ej_Betalat_Lån*Angivna_Värden,Utgående_Saldo,\"\"), \"\")","v":{"v":1646.4851371597597,"d":"1,646.49 kr"}}]
[null,{"$f":"IFERROR(IF(Ej_Betalat_Lån*Angivna_Värden,Betalningsnummer,\"\"), \"\")","v":43},{"$f":"IFERROR(IF(Ej_Betalat_Lån*Angivna_Värden,Betalningsdatum,\"\"), \"\")","v":"2023-11-15"},{"$f":"IFERROR(IF(Ej_Betalat_Lån*Angivna_Värden,Ingående_Saldo,\"\"), \"\")","v":{"v":1646.4851371597597,"d":"1,646.49 kr"}},{"$f":"IFERROR(IF(Ej_Betalat_Lån*Angivna_Värden,Månadsbetalning,\"\"), \"\")","v":{"v":95.5058108589112,"d":"95.51 kr"}},{"$f":"IFERROR(IF(Ej_Betalat_Lån*Angivna_Värden,Amortering,\"\"), \"\")","v":{"v":87.95942064692895,"d":"87.96 kr"}},{"$f":"IFERROR(IF(Ej_Betalat_Lån*Angivna_Värden,Ränta,\"\"), \"\")","v":{"v":7.546390211982258,"d":"7.55 kr"}},{"$f":"IFERROR(IF(Ej_Betalat_Lån*Angivna_Värden,Utgående_Saldo,\"\"), \"\")","v":{"v":1558.5257165128278,"d":"1,558.53 kr"}}]
[null,{"$f":"IFERROR(IF(Ej_Betalat_Lån*Angivna_Värden,Betalningsnummer,\"\"), \"\")","v":44},{"$f":"IFERROR(IF(Ej_Betalat_Lån*Angivna_Värden,Betalningsdatum,\"\"), \"\")","v":"2023-12-15"},{"$f":"IFERROR(IF(Ej_Betalat_Lån*Angivna_Värden,Ingående_Saldo,\"\"), \"\")","v":{"v":1558.5257165128278,"d":"1,558.53 kr"}},{"$f":"IFERROR(IF(Ej_Betalat_Lån*Angivna_Värden,Månadsbetalning,\"\"), \"\")","v":{"v":95.5058108589112,"d":"95.51 kr"}},{"$f":"IFERROR(IF(Ej_Betalat_Lån*Angivna_Värden,Amortering,\"\"), \"\")","v":{"v":88.3625679915607,"d":"88.36 kr"}},{"$f":"IFERROR(IF(Ej_Betalat_Lån*Angivna_Värden,Ränta,\"\"), \"\")","v":{"v":7.143242867350499,"d":"7.14 kr"}},{"$f":"IFERROR(IF(Ej_Betalat_Lån*Angivna_Värden,Utgående_Saldo,\"\"), \"\")","v":{"v":1470.163148521272,"d":"1,470.16 kr"}}]
[null,{"$f":"IFERROR(IF(Ej_Betalat_Lån*Angivna_Värden,Betalningsnummer,\"\"), \"\")","v":45},{"$f":"IFERROR(IF(Ej_Betalat_Lån*Angivna_Värden,Betalningsdatum,\"\"), \"\")","v":"2024-01-15"},{"$f":"IFERROR(IF(Ej_Betalat_Lån*Angivna_Värden,Ingående_Saldo,\"\"), \"\")","v":{"v":1470.163148521272,"d":"1,470.16 kr"}},{"$f":"IFERROR(IF(Ej_Betalat_Lån*Angivna_Värden,Månadsbetalning,\"\"), \"\")","v":{"v":95.5058108589112,"d":"95.51 kr"}},{"$f":"IFERROR(IF(Ej_Betalat_Lån*Angivna_Värden,Amortering,\"\"), \"\")","v":{"v":88.76756309485536,"d":"88.77 kr"}},{"$f":"IFERROR(IF(Ej_Betalat_Lån*Angivna_Värden,Ränta,\"\"), \"\")","v":{"v":6.738247764055847,"d":"6.74 kr"}},{"$f":"IFERROR(IF(Ej_Betalat_Lån*Angivna_Värden,Utgående_Saldo,\"\"), \"\")","v":{"v":1381.395585426415,"d":"1,381.40 kr"}}]
[null,{"$f":"IFERROR(IF(Ej_Betalat_Lån*Angivna_Värden,Betalningsnummer,\"\"), \"\")","v":46},{"$f":"IFERROR(IF(Ej_Betalat_Lån*Angivna_Värden,Betalningsdatum,\"\"), \"\")","v":"2024-02-15"},{"$f":"IFERROR(IF(Ej_Betalat_Lån*Angivna_Värden,Ingående_Saldo,\"\"), \"\")","v":{"v":1381.395585426415,"d":"1,381.40 kr"}},{"$f":"IFERROR(IF(Ej_Betalat_Lån*Angivna_Värden,Månadsbetalning,\"\"), \"\")","v":{"v":95.5058108589112,"d":"95.51 kr"}},{"$f":"IFERROR(IF(Ej_Betalat_Lån*Angivna_Värden,Amortering,\"\"), \"\")","v":{"v":89.17441442570679,"d":"89.17 kr"}},{"$f":"IFERROR(IF(Ej_Betalat_Lån*Angivna_Värden,Ränta,\"\"), \"\")","v":{"v":6.331396433204427,"d":"6.33 kr"}},{"$f":"IFERROR(IF(Ej_Betalat_Lån*Angivna_Värden,Utgående_Saldo,\"\"), \"\")","v":{"v":1292.221171000705,"d":"1,292.22 kr"}}]
[null,{"$f":"IFERROR(IF(Ej_Betalat_Lån*Angivna_Värden,Betalningsnummer,\"\"), \"\")","v":47},{"$f":"IFERROR(IF(Ej_Betalat_Lån*Angivna_Värden,Betalningsdatum,\"\"), \"\")","v":"2024-03-15"},{"$f":"IFERROR(IF(Ej_Betalat_Lån*Angivna_Värden,Ingående_Saldo,\"\"), \"\")","v":{"v":1292.221171000705,"d":"1,292.22 kr"}},{"$f":"IFERROR(IF(Ej_Betalat_Lån*Angivna_Värden,Månadsbetalning,\"\"), \"\")","v":{"v":95.5058108589112,"d":"95.51 kr"}},{"$f":"IFERROR(IF(Ej_Betalat_Lån*Angivna_Värden,Amortering,\"\"), \"\")","v":{"v":89.5831304918246,"d":"89.58 kr"}},{"$f":"IFERROR(IF(Ej_Betalat_Lån*Angivna_Värden,Ränta,\"\"), \"\")","v":{"v":5.9226803670866035,"d":"5.92 kr"}},{"$f":"IFERROR(IF(Ej_Betalat_Lån*Angivna_Värden,Utgående_Saldo,\"\"), \"\")","v":{"v":1202.6380405088848,"d":"1,202.64 kr"}}]
[null,{"$f":"IFERROR(IF(Ej_Betalat_Lån*Angivna_Värden,Betalningsnummer,\"\"), \"\")","v":48},{"$f":"IFERROR(IF(Ej_Betalat_Lån*Angivna_Värden,Betalningsdatum,\"\"), \"\")","v":"2024-04-15"},{"$f":"IFERROR(IF(Ej_Betalat_Lån*Angivna_Värden,Ingående_Saldo,\"\"), \"\")","v":{"v":1202.6380405088848,"d":"1,202.64 kr"}},{"$f":"IFERROR(IF(Ej_Betalat_Lån*Angivna_Värden,Månadsbetalning,\"\"), \"\")","v":{"v":95.5058108589112,"d":"95.51 kr"}},{"$f":"IFERROR(IF(Ej_Betalat_Lån*Angivna_Värden,Amortering,\"\"), \"\")","v":{"v":89.99371983991213,"d":"89.99 kr"}},{"$f":"IFERROR(IF(Ej_Betalat_Lån*Angivna_Värden,Ränta,\"\"), \"\")","v":{"v":5.512091018999074,"d":"5.51 kr"}},{"$f":"IFERROR(IF(Ej_Betalat_Lån*Angivna_Värden,Utgående_Saldo,\"\"), \"\")","v":{"v":1112.64432066897,"d":"1,112.64 kr"}}]
[null,{"$f":"IFERROR(IF(Ej_Betalat_Lån*Angivna_Värden,Betalningsnummer,\"\"), \"\")","v":49},{"$f":"IFERROR(IF(Ej_Betalat_Lån*Angivna_Värden,Betalningsdatum,\"\"), \"\")","v":"2024-05-15"},{"$f":"IFERROR(IF(Ej_Betalat_Lån*Angivna_Värden,Ingående_Saldo,\"\"), \"\")","v":{"v":1112.64432066897,"d":"1,112.64 kr"}},{"$f":"IFERROR(IF(Ej_Betalat_Lån*Angivna_Värden,Månadsbetalning,\"\"), \"\")","v":{"v":95.5058108589112,"d":"95.51 kr"}},{"$f":"IFERROR(IF(Ej_Betalat_Lån*Angivna_Värden,Amortering,\"\"), \"\")","v":{"v":90.40619105584507,"d":"90.41 kr"}},{"$f":"IFERROR(IF(Ej_Betalat_Lån*Angivna_Värden,Ränta,\"\"), \"\")","v":{"v":5.099619803066144,"d":"5.10 kr"}},{"$f":"IFERROR(IF(Ej_Betalat_Lån*Angivna_Värden,Utgående_Saldo,\"\"), \"\")","v":{"v":1022.2381296131243,"d":"1,022.24 kr"}}]
[null,{"$f":"IFERROR(IF(Ej_Betalat_Lån*Angivna_Värden,Betalningsnummer,\"\"), \"\")","v":50},{"$f":"IFERROR(IF(Ej_Betalat_Lån*Angivna_Värden,Betalningsdatum,\"\"), \"\")","v":"2024-06-15"},{"$f":"IFERROR(IF(Ej_Betalat_Lån*Angivna_Värden,Ingående_Saldo,\"\"), \"\")","v":{"v":1022.2381296131243,"d":"1,022.24 kr"}},{"$f":"IFERROR(IF(Ej_Betalat_Lån*Angivna_Värden,Månadsbetalning,\"\"), \"\")","v":{"v":95.5058108589112,"d":"95.51 kr"}},{"$f":"IFERROR(IF(Ej_Betalat_Lån*Angivna_Värden,Amortering,\"\"), \"\")","v":{"v":90.82055276485103,"d":"90.82 kr"}},{"$f":"IFERROR(IF(Ej_Betalat_Lån*Angivna_Värden,Ränta,\"\"), \"\")","v":{"v":4.685258094060187,"d":"4.69 kr"}},{"$f":"IFERROR(IF(Ej_Betalat_Lån*Angivna_Värden,Utgående_Saldo,\"\"), \"\")","v":{"v":931.4175768482728,"d":"931.42 kr"}}]
[null,{"$f":"IFERROR(IF(Ej_Betalat_Lån*Angivna_Värden,Betalningsnummer,\"\"), \"\")","v":51},{"$f":"IFERROR(IF(Ej_Betalat_Lån*Angivna_Värden,Betalningsdatum,\"\"), \"\")","v":"2024-07-15"},{"$f":"IFERROR(IF(Ej_Betalat_Lån*Angivna_Värden,Ingående_Saldo,\"\"), \"\")","v":{"v":931.4175768482728,"d":"931.42 kr"}},{"$f":"IFERROR(IF(Ej_Betalat_Lån*Angivna_Värden,Månadsbetalning,\"\"), \"\")","v":{"v":95.5058108589112,"d":"95.51 kr"}},{"$f":"IFERROR(IF(Ej_Betalat_Lån*Angivna_Värden,Amortering,\"\"), \"\")","v":{"v":91.23681363168991,"d":"91.24 kr"}},{"$f":"IFERROR(IF(Ej_Betalat_Lån*Angivna_Värden,Ränta,\"\"), \"\")","v":{"v":4.268997227221286,"d":"4.27 kr"}},{"$f":"IFERROR(IF(Ej_Betalat_Lån*Angivna_Värden,Utgående_Saldo,\"\"), \"\")","v":{"v":840.1807632165828,"d":"840.18 kr"}}]
[null,{"$f":"IFERROR(IF(Ej_Betalat_Lån*Angivna_Värden,Betalningsnummer,\"\"), \"\")","v":52},{"$f":"IFERROR(IF(Ej_Betalat_Lån*Angivna_Värden,Betalningsdatum,\"\"), \"\")","v":"2024-08-15"},{"$f":"IFERROR(IF(Ej_Betalat_Lån*Angivna_Värden,Ingående_Saldo,\"\"), \"\")","v":{"v":840.1807632165828,"d":"840.18 kr"}},{"$f":"IFERROR(IF(Ej_Betalat_Lån*Angivna_Värden,Månadsbetalning,\"\"), \"\")","v":{"v":95.5058108589112,"d":"95.51 kr"}},{"$f":"IFERROR(IF(Ej_Betalat_Lån*Angivna_Värden,Amortering,\"\"), \"\")","v":{"v":91.65498236083516,"d":"91.65 kr"}},{"$f":"IFERROR(IF(Ej_Betalat_Lån*Angivna_Värden,Ränta,\"\"), \"\")","v":{"v":3.850828498076041,"d":"3.85 kr"}},{"$f":"IFERROR(IF(Ej_Betalat_Lån*Angivna_Värden,Utgående_Saldo,\"\"), \"\")","v":{"v":748.5257808557471,"d":"748.53 kr"}}]
[null,{"$f":"IFERROR(IF(Ej_Betalat_Lån*Angivna_Värden,Betalningsnummer,\"\"), \"\")","v":53},{"$f":"IFERROR(IF(Ej_Betalat_Lån*Angivna_Värden,Betalningsdatum,\"\"), \"\")","v":"2024-09-15"},{"$f":"IFERROR(IF(Ej_Betalat_Lån*Angivna_Värden,Ingående_Saldo,\"\"), \"\")","v":{"v":748.5257808557471,"d":"748.53 kr"}},{"$f":"IFERROR(IF(Ej_Betalat_Lån*Angivna_Värden,Månadsbetalning,\"\"), \"\")","v":{"v":95.5058108589112,"d":"95.51 kr"}},{"$f":"IFERROR(IF(Ej_Betalat_Lån*Angivna_Värden,Amortering,\"\"), \"\")","v":{"v":92.07506769665567,"d":"92.08 kr"}},{"$f":"IFERROR(IF(Ej_Betalat_Lån*Angivna_Värden,Ränta,\"\"), \"\")","v":{"v":3.4307431622555464,"d":"3.43 kr"}},{"$f":"IFERROR(IF(Ej_Betalat_Lån*Angivna_Värden,Utgående_Saldo,\"\"), \"\")","v":{"v":656.450713159089,"d":"656.45 kr"}}]
[null,{"$f":"IFERROR(IF(Ej_Betalat_Lån*Angivna_Värden,Betalningsnummer,\"\"), \"\")","v":54},{"$f":"IFERROR(IF(Ej_Betalat_Lån*Angivna_Värden,Betalningsdatum,\"\"), \"\")","v":"2024-10-15"},{"$f":"IFERROR(IF(Ej_Betalat_Lån*Angivna_Värden,Ingående_Saldo,\"\"), \"\")","v":{"v":656.450713159089,"d":"656.45 kr"}},{"$f":"IFERROR(IF(Ej_Betalat_Lån*Angivna_Värden,Månadsbetalning,\"\"), \"\")","v":{"v":95.5058108589112,"d":"95.51 kr"}},{"$f":"IFERROR(IF(Ej_Betalat_Lån*Angivna_Värden,Amortering,\"\"), \"\")","v":{"v":92.49707842359867,"d":"92.50 kr"}},{"$f":"IFERROR(IF(Ej_Betalat_Lån*Angivna_Värden,Ränta,\"\"), \"\")","v":{"v":3.0087324353125413,"d":"3.01 kr"}},{"$f":"IFERROR(IF(Ej_Betalat_Lån*Angivna_Värden,Utgående_Saldo,\"\"), \"\")","v":{"v":563.9536347354906,"d":"563.95 kr"}}]
[null,{"$f":"IFERROR(IF(Ej_Betalat_Lån*Angivna_Värden,Betalningsnummer,\"\"), \"\")","v":55},{"$f":"IFERROR(IF(Ej_Betalat_Lån*Angivna_Värden,Betalningsdatum,\"\"), \"\")","v":"2024-11-15"},{"$f":"IFERROR(IF(Ej_Betalat_Lån*Angivna_Värden,Ingående_Saldo,\"\"), \"\")","v":{"v":563.9536347354906,"d":"563.95 kr"}},{"$f":"IFERROR(IF(Ej_Betalat_Lån*Angivna_Värden,Månadsbetalning,\"\"), \"\")","v":{"v":95.5058108589112,"d":"95.51 kr"}},{"$f":"IFERROR(IF(Ej_Betalat_Lån*Angivna_Värden,Amortering,\"\"), \"\")","v":{"v":92.92102336637349,"d":"92.92 kr"}},{"$f":"IFERROR(IF(Ej_Betalat_Lån*Angivna_Värden,Ränta,\"\"), \"\")","v":{"v":2.584787492537714,"d":"2.58 kr"}},{"$f":"IFERROR(IF(Ej_Betalat_Lån*Angivna_Värden,Utgående_Saldo,\"\"), \"\")","v":{"v":471.03261136911897,"d":"471.03 kr"}}]
[null,{"$f":"IFERROR(IF(Ej_Betalat_Lån*Angivna_Värden,Betalningsnummer,\"\"), \"\")","v":56},{"$f":"IFERROR(IF(Ej_Betalat_Lån*Angivna_Värden,Betalningsdatum,\"\"), \"\")","v":"2024-12-15"},{"$f":"IFERROR(IF(Ej_Betalat_Lån*Angivna_Värden,Ingående_Saldo,\"\"), \"\")","v":{"v":471.03261136911897,"d":"471.03 kr"}},{"$f":"IFERROR(IF(Ej_Betalat_Lån*Angivna_Värden,Månadsbetalning,\"\"), \"\")","v":{"v":95.5058108589112,"d":"95.51 kr"}},{"$f":"IFERROR(IF(Ej_Betalat_Lån*Angivna_Värden,Amortering,\"\"), \"\")","v":{"v":93.34691139013603,"d":"93.35 kr"}},{"$f":"IFERROR(IF(Ej_Betalat_Lån*Angivna_Värden,Ränta,\"\"), \"\")","v":{"v":2.158899468775169,"d":"2.16 kr"}},{"$f":"IFERROR(IF(Ej_Betalat_Lån*Angivna_Värden,Utgående_Saldo,\"\"), \"\")","v":{"v":377.6856999789834,"d":"377.69 kr"}}]
[null,{"$f":"IFERROR(IF(Ej_Betalat_Lån*Angivna_Värden,Betalningsnummer,\"\"), \"\")","v":57},{"$f":"IFERROR(IF(Ej_Betalat_Lån*Angivna_Värden,Betalningsdatum,\"\"), \"\")","v":"2025-01-15"},{"$f":"IFERROR(IF(Ej_Betalat_Lån*Angivna_Värden,Ingående_Saldo,\"\"), \"\")","v":{"v":377.6856999789834,"d":"377.69 kr"}},{"$f":"IFERROR(IF(Ej_Betalat_Lån*Angivna_Värden,Månadsbetalning,\"\"), \"\")","v":{"v":95.5058108589112,"d":"95.51 kr"}},{"$f":"IFERROR(IF(Ej_Betalat_Lån*Angivna_Värden,Amortering,\"\"), \"\")","v":{"v":93.77475140067416,"d":"93.77 kr"}},{"$f":"IFERROR(IF(Ej_Betalat_Lån*Angivna_Värden,Ränta,\"\"), \"\")","v":{"v":1.7310594582370453,"d":"1.73 kr"}},{"$f":"IFERROR(IF(Ej_Betalat_Lån*Angivna_Värden,Utgående_Saldo,\"\"), \"\")","v":{"v":283.9109485783083,"d":"283.91 kr"}}]
[null,{"$f":"IFERROR(IF(Ej_Betalat_Lån*Angivna_Värden,Betalningsnummer,\"\"), \"\")","v":58},{"$f":"IFERROR(IF(Ej_Betalat_Lån*Angivna_Värden,Betalningsdatum,\"\"), \"\")","v":"2025-02-15"},{"$f":"IFERROR(IF(Ej_Betalat_Lån*Angivna_Värden,Ingående_Saldo,\"\"), \"\")","v":{"v":283.9109485783083,"d":"283.91 kr"}},{"$f":"IFERROR(IF(Ej_Betalat_Lån*Angivna_Värden,Månadsbetalning,\"\"), \"\")","v":{"v":95.5058108589112,"d":"95.51 kr"}},{"$f":"IFERROR(IF(Ej_Betalat_Lån*Angivna_Värden,Amortering,\"\"), \"\")","v":{"v":94.20455234459394,"d":"94.20 kr"}},{"$f":"IFERROR(IF(Ej_Betalat_Lån*Angivna_Värden,Ränta,\"\"), \"\")","v":{"v":1.3012585143172883,"d":"1.30 kr"}},{"$f":"IFERROR(IF(Ej_Betalat_Lån*Angivna_Värden,Utgående_Saldo,\"\"), \"\")","v":{"v":189.70639623371517,"d":"189.71 kr"}}]
[null,{"$f":"IFERROR(IF(Ej_Betalat_Lån*Angivna_Värden,Betalningsnummer,\"\"), \"\")","v":59},{"$f":"IFERROR(IF(Ej_Betalat_Lån*Angivna_Värden,Betalningsdatum,\"\"), \"\")","v":"2025-03-15"},{"$f":"IFERROR(IF(Ej_Betalat_Lån*Angivna_Värden,Ingående_Saldo,\"\"), \"\")","v":{"v":189.70639623371517,"d":"189.71 kr"}},{"$f":"IFERROR(IF(Ej_Betalat_Lån*Angivna_Värden,Månadsbetalning,\"\"), \"\")","v":{"v":95.5058108589112,"d":"95.51 kr"}},{"$f":"IFERROR(IF(Ej_Betalat_Lån*Angivna_Värden,Amortering,\"\"), \"\")","v":{"v":94.63632320950664,"d":"94.64 kr"}},{"$f":"IFERROR(IF(Ej_Betalat_Lån*Angivna_Värden,Ränta,\"\"), \"\")","v":{"v":0.8694876494045661,"d":"0.87 kr"}},{"$f":"IFERROR(IF(Ej_Betalat_Lån*Angivna_Värden,Utgående_Saldo,\"\"), \"\")","v":{"v":95.07007302420698,"d":"95.07 kr"}}]
[null,{"$f":"IFERROR(IF(Ej_Betalat_Lån*Angivna_Värden,Betalningsnummer,\"\"), \"\")","v":60},{"$f":"IFERROR(IF(Ej_Betalat_Lån*Angivna_Värden,Betalningsdatum,\"\"), \"\")","v":"2025-04-15"},{"$f":"IFERROR(IF(Ej_Betalat_Lån*Angivna_Värden,Ingående_Saldo,\"\"), \"\")","v":{"v":95.07007302420698,"d":"95.07 kr"}},{"$f":"IFERROR(IF(Ej_Betalat_Lån*Angivna_Värden,Månadsbetalning,\"\"), \"\")","v":{"v":95.5058108589112,"d":"95.51 kr"}},{"$f":"IFERROR(IF(Ej_Betalat_Lån*Angivna_Värden,Amortering,\"\"), \"\")","v":{"v":95.07007302421688,"d":"95.07 kr"}},{"$f":"IFERROR(IF(Ej_Betalat_Lån*Angivna_Värden,Ränta,\"\"), \"\")","v":{"v":0.4357378346943274,"d":"0.44 kr"}},{"$f":"IFERROR(IF(Ej_Betalat_Lån*Angivna_Värden,Utgående_Saldo,\"\"), \"\")","v":{"v":-9.094947017729282e-12,"d":"-0.00 kr"}}]
[null,{"$f":"IFERROR(IF(Ej_Betalat_Lån*Angivna_Värden,Betalningsnummer,\"\"), \"\")","v":""},{"$f":"IFERROR(IF(Ej_Betalat_Lån*Angivna_Värden,Betalningsdatum,\"\"), \"\")","v":""},{"$f":"IFERROR(IF(Ej_Betalat_Lån*Angivna_Värden,Ingående_Saldo,\"\"), \"\")","v":""},{"$f":"IFERROR(IF(Ej_Betalat_Lån*Angivna_Värden,Månadsbetalning,\"\"), \"\")","v":""},{"$f":"IFERROR(IF(Ej_Betalat_Lån*Angivna_Värden,Amortering,\"\"), \"\")","v":""},{"$f":"IFERROR(IF(Ej_Betalat_Lån*Angivna_Värden,Ränta,\"\"), \"\")","v":""},{"$f":"IFERROR(IF(Ej_Betalat_Lån*Angivna_Värden,Utgående_Saldo,\"\"), \"\")","v":""}]
[null,{"$f":"IFERROR(IF(Ej_Betalat_Lån*Angivna_Värden,Betalningsnummer,\"\"), \"\")","v":""},{"$f":"IFERROR(IF(Ej_Betalat_Lån*Angivna_Värden,Betalningsdatum,\"\"), \"\")","v":""},{"$f":"IFERROR(IF(Ej_Betalat_Lån*Angivna_Värden,Ingående_Saldo,\"\"), \"\")","v":""},{"$f":"IFERROR(IF(Ej_Betalat_Lån*Angivna_Värden,Månadsbetalning,\"\"), \"\")","v":""},{"$f":"IFERROR(IF(Ej_Betalat_Lån*Angivna_Värden,Amortering,\"\"), \"\")","v":""},{"$f":"IFERROR(IF(Ej_Betalat_Lån*Angivna_Värden,Ränta,\"\"), \"\")","v":""},{"$f":"IFERROR(IF(Ej_Betalat_Lån*Angivna_Värden,Utgående_Saldo,\"\"), \"\")","v":""}]
[null,{"$f":"IFERROR(IF(Ej_Betalat_Lån*Angivna_Värden,Betalningsnummer,\"\"), \"\")","v":""},{"$f":"IFERROR(IF(Ej_Betalat_Lån*Angivna_Värden,Betalningsdatum,\"\"), \"\")","v":""},{"$f":"IFERROR(IF(Ej_Betalat_Lån*Angivna_Värden,Ingående_Saldo,\"\"), \"\")","v":""},{"$f":"IFERROR(IF(Ej_Betalat_Lån*Angivna_Värden,Månadsbetalning,\"\"), \"\")","v":""},{"$f":"IFERROR(IF(Ej_Betalat_Lån*Angivna_Värden,Amortering,\"\"), \"\")","v":""},{"$f":"IFERROR(IF(Ej_Betalat_Lån*Angivna_Värden,Ränta,\"\"), \"\")","v":""},{"$f":"IFERROR(IF(Ej_Betalat_Lån*Angivna_Värden,Utgående_Saldo,\"\"), \"\")","v":""}]
[null,{"$f":"IFERROR(IF(Ej_Betalat_Lån*Angivna_Värden,Betalningsnummer,\"\"), \"\")","v":""},{"$f":"IFERROR(IF(Ej_Betalat_Lån*Angivna_Värden,Betalningsdatum,\"\"), \"\")","v":""},{"$f":"IFERROR(IF(Ej_Betalat_Lån*Angivna_Värden,Ingående_Saldo,\"\"), \"\")","v":""},{"$f":"IFERROR(IF(Ej_Betalat_Lån*Angivna_Värden,Månadsbetalning,\"\"), \"\")","v":""},{"$f":"IFERROR(IF(Ej_Betalat_Lån*Angivna_Värden,Amortering,\"\"), \"\")","v":""},{"$f":"IFERROR(IF(Ej_Betalat_Lån*Angivna_Värden,Ränta,\"\"), \"\")","v":""},{"$f":"IFERROR(IF(Ej_Betalat_Lån*Angivna_Värden,Utgående_Saldo,\"\"), \"\")","v":""}]
[null,{"$f":"IFERROR(IF(Ej_Betalat_Lån*Angivna_Värden,Betalningsnummer,\"\"), \"\")","v":""},{"$f":"IFERROR(IF(Ej_Betalat_Lån*Angivna_Värden,Betalningsdatum,\"\"), \"\")","v":""},{"$f":"IFERROR(IF(Ej_Betalat_Lån*Angivna_Värden,Ingående_Saldo,\"\"), \"\")","v":""},{"$f":"IFERROR(IF(Ej_Betalat_Lån*Angivna_Värden,Månadsbetalning,\"\"), \"\")","v":""},{"$f":"IFERROR(IF(Ej_Betalat_Lån*Angivna_Värden,Amortering,\"\"), \"\")","v":""},{"$f":"IFERROR(IF(Ej_Betalat_Lån*Angivna_Värden,Ränta,\"\"), \"\")","v":""},{"$f":"IFERROR(IF(Ej_Betalat_Lån*Angivna_Värden,Utgående_Saldo,\"\"), \"\")","v":""}]
[null,{"$f":"IFERROR(IF(Ej_Betalat_Lån*Angivna_Värden,Betalningsnummer,\"\"), \"\")","v":""},{"$f":"IFERROR(IF(Ej_Betalat_Lån*Angivna_Värden,Betalningsdatum,\"\"), \"\")","v":""},{"$f":"IFERROR(IF(Ej_Betalat_Lån*Angivna_Värden,Ingående_Saldo,\"\"), \"\")","v":""},{"$f":"IFERROR(IF(Ej_Betalat_Lån*Angivna_Värden,Månadsbetalning,\"\"), \"\")","v":""},{"$f":"IFERROR(IF(Ej_Betalat_Lån*Angivna_Värden,Amortering,\"\"), \"\")","v":""},{"$f":"IFERROR(IF(Ej_Betalat_Lån*Angivna_Värden,Ränta,\"\"), \"\")","v":""},{"$f":"IFERROR(IF(Ej_Betalat_Lån*Angivna_Värden,Utgående_Saldo,\"\"), \"\")","v":""}]
[null,{"$f":"IFERROR(IF(Ej_Betalat_Lån*Angivna_Värden,Betalningsnummer,\"\"), \"\")","v":""},{"$f":"IFERROR(IF(Ej_Betalat_Lån*Angivna_Värden,Betalningsdatum,\"\"), \"\")","v":""},{"$f":"IFERROR(IF(Ej_Betalat_Lån*Angivna_Värden,Ingående_Saldo,\"\"), \"\")","v":""},{"$f":"IFERROR(IF(Ej_Betalat_Lån*Angivna_Värden,Månadsbetalning,\"\"), \"\")","v":""},{"$f":"IFERROR(IF(Ej_Betalat_Lån*Angivna_Värden,Amortering,\"\"), \"\")","v":""},{"$f":"IFERROR(IF(Ej_Betalat_Lån*Angivna_Värden,Ränta,\"\"), \"\")","v":""},{"$f":"IFERROR(IF(Ej_Betalat_Lån*Angivna_Värden,Utgående_Saldo,\"\"), \"\")","v":""}]
[null,{"$f":"IFERROR(IF(Ej_Betalat_Lån*Angivna_Värden,Betalningsnummer,\"\"), \"\")","v":""},{"$f":"IFERROR(IF(Ej_Betalat_Lån*Angivna_Värden,Betalningsdatum,\"\"), \"\")","v":""},{"$f":"IFERROR(IF(Ej_Betalat_Lån*Angivna_Värden,Ingående_Saldo,\"\"), \"\")","v":""},{"$f":"IFERROR(IF(Ej_Betalat_Lån*Angivna_Värden,Månadsbetalning,\"\"), \"\")","v":""},{"$f":"IFERROR(IF(Ej_Betalat_Lån*Angivna_Värden,Amortering,\"\"), \"\")","v":""},{"$f":"IFERROR(IF(Ej_Betalat_Lån*Angivna_Värden,Ränta,\"\"), \"\")","v":""},{"$f":"IFERROR(IF(Ej_Betalat_Lån*Angivna_Värden,Utgående_Saldo,\"\"), \"\")","v":""}]
[null,{"$f":"IFERROR(IF(Ej_Betalat_Lån*Angivna_Värden,Betalningsnummer,\"\"), \"\")","v":""},{"$f":"IFERROR(IF(Ej_Betalat_Lån*Angivna_Värden,Betalningsdatum,\"\"), \"\")","v":""},{"$f":"IFERROR(IF(Ej_Betalat_Lån*Angivna_Värden,Ingående_Saldo,\"\"), \"\")","v":""},{"$f":"IFERROR(IF(Ej_Betalat_Lån*Angivna_Värden,Månadsbetalning,\"\"), \"\")","v":""},{"$f":"IFERROR(IF(Ej_Betalat_Lån*Angivna_Värden,Amortering,\"\"), \"\")","v":""},{"$f":"IFERROR(IF(Ej_Betalat_Lån*Angivna_Värden,Ränta,\"\"), \"\")","v":""},{"$f":"IFERROR(IF(Ej_Betalat_Lån*Angivna_Värden,Utgående_Saldo,\"\"), \"\")","v":""}]
[null,{"$f":"IFERROR(IF(Ej_Betalat_Lån*Angivna_Värden,Betalningsnummer,\"\"), \"\")","v":""},{"$f":"IFERROR(IF(Ej_Betalat_Lån*Angivna_Värden,Betalningsdatum,\"\"), \"\")","v":""},{"$f":"IFERROR(IF(Ej_Betalat_Lån*Angivna_Värden,Ingående_Saldo,\"\"), \"\")","v":""},{"$f":"IFERROR(IF(Ej_Betalat_Lån*Angivna_Värden,Månadsbetalning,\"\"), \"\")","v":""},{"$f":"IFERROR(IF(Ej_Betalat_Lån*Angivna_Värden,Amortering,\"\"), \"\")","v":""},{"$f":"IFERROR(IF(Ej_Betalat_Lån*Angivna_Värden,Ränta,\"\"), \"\")","v":""},{"$f":"IFERROR(IF(Ej_Betalat_Lån*Angivna_Värden,Utgående_Saldo,\"\"), \"\")","v":""}]
[null,{"$f":"IFERROR(IF(Ej_Betalat_Lån*Angivna_Värden,Betalningsnummer,\"\"), \"\")","v":""},{"$f":"IFERROR(IF(Ej_Betalat_Lån*Angivna_Värden,Betalningsdatum,\"\"), \"\")","v":""},{"$f":"IFERROR(IF(Ej_Betalat_Lån*Angivna_Värden,Ingående_Saldo,\"\"), \"\")","v":""},{"$f":"IFERROR(IF(Ej_Betalat_Lån*Angivna_Värden,Månadsbetalning,\"\"), \"\")","v":""},{"$f":"IFERROR(IF(Ej_Betalat_Lån*Angivna_Värden,Amortering,\"\"), \"\")","v":""},{"$f":"IFERROR(IF(Ej_Betalat_Lån*Angivna_Värden,Ränta,\"\"), \"\")","v":""},{"$f":"IFERROR(IF(Ej_Betalat_Lån*Angivna_Värden,Utgående_Saldo,\"\"), \"\")","v":""}]
[null,{"$f":"IFERROR(IF(Ej_Betalat_Lån*Angivna_Värden,Betalningsnummer,\"\"), \"\")","v":""},{"$f":"IFERROR(IF(Ej_Betalat_Lån*Angivna_Värden,Betalningsdatum,\"\"), \"\")","v":""},{"$f":"IFERROR(IF(Ej_Betalat_Lån*Angivna_Värden,Ingående_Saldo,\"\"), \"\")","v":""},{"$f":"IFERROR(IF(Ej_Betalat_Lån*Angivna_Värden,Månadsbetalning,\"\"), \"\")","v":""},{"$f":"IFERROR(IF(Ej_Betalat_Lån*Angivna_Värden,Amortering,\"\"), \"\")","v":""},{"$f":"IFERROR(IF(Ej_Betalat_Lån*Angivna_Värden,Ränta,\"\"), \"\")","v":""},{"$f":"IFERROR(IF(Ej_Betalat_Lån*Angivna_Värden,Utgående_Saldo,\"\"), \"\")","v":""}]
[null,{"$f":"IFERROR(IF(Ej_Betalat_Lån*Angivna_Värden,Betalningsnummer,\"\"), \"\")","v":""},{"$f":"IFERROR(IF(Ej_Betalat_Lån*Angivna_Värden,Betalningsdatum,\"\"), \"\")","v":""},{"$f":"IFERROR(IF(Ej_Betalat_Lån*Angivna_Värden,Ingående_Saldo,\"\"), \"\")","v":""},{"$f":"IFERROR(IF(Ej_Betalat_Lån*Angivna_Värden,Månadsbetalning,\"\"), \"\")","v":""},{"$f":"IFERROR(IF(Ej_Betalat_Lån*Angivna_Värden,Amortering,\"\"), \"\")","v":""},{"$f":"IFERROR(IF(Ej_Betalat_Lån*Angivna_Värden,Ränta,\"\"), \"\")","v":""},{"$f":"IFERROR(IF(Ej_Betalat_Lån*Angivna_Värden,Utgående_Saldo,\"\"), \"\")","v":""}]
[null,{"$f":"IFERROR(IF(Ej_Betalat_Lån*Angivna_Värden,Betalningsnummer,\"\"), \"\")","v":""},{"$f":"IFERROR(IF(Ej_Betalat_Lån*Angivna_Värden,Betalningsdatum,\"\"), \"\")","v":""},{"$f":"IFERROR(IF(Ej_Betalat_Lån*Angivna_Värden,Ingående_Saldo,\"\"), \"\")","v":""},{"$f":"IFERROR(IF(Ej_Betalat_Lån*Angivna_Värden,Månadsbetalning,\"\"), \"\")","v":""},{"$f":"IFERROR(IF(Ej_Betalat_Lån*Angivna_Värden,Amortering,\"\"), \"\")","v":""},{"$f":"IFERROR(IF(Ej_Betalat_Lån*Angivna_Värden,Ränta,\"\"), \"\")","v":""},{"$f":"IFERROR(IF(Ej_Betalat_Lån*Angivna_Värden,Utgående_Saldo,\"\"), \"\")","v":""}]
[null,{"$f":"IFERROR(IF(Ej_Betalat_Lån*Angivna_Värden,Betalningsnummer,\"\"), \"\")","v":""},{"$f":"IFERROR(IF(Ej_Betalat_Lån*Angivna_Värden,Betalningsdatum,\"\"), \"\")","v":""},{"$f":"IFERROR(IF(Ej_Betalat_Lån*Angivna_Värden,Ingående_Saldo,\"\"), \"\")","v":""},{"$f":"IFERROR(IF(Ej_Betalat_Lån*Angivna_Värden,Månadsbetalning,\"\"), \"\")","v":""},{"$f":"IFERROR(IF(Ej_Betalat_Lån*Angivna_Värden,Amortering,\"\"), \"\")","v":""},{"$f":"IFERROR(IF(Ej_Betalat_Lån*Angivna_Värden,Ränta,\"\"), \"\")","v":""},{"$f":"IFERROR(IF(Ej_Betalat_Lån*Angivna_Värden,Utgående_Saldo,\"\"), \"\")","v":""}]
[null,{"$f":"IFERROR(IF(Ej_Betalat_Lån*Angivna_Värden,Betalningsnummer,\"\"), \"\")","v":""},{"$f":"IFERROR(IF(Ej_Betalat_Lån*Angivna_Värden,Betalningsdatum,\"\"), \"\")","v":""},{"$f":"IFERROR(IF(Ej_Betalat_Lån*Angivna_Värden,Ingående_Saldo,\"\"), \"\")","v":""},{"$f":"IFERROR(IF(Ej_Betalat_Lån*Angivna_Värden,Månadsbetalning,\"\"), \"\")","v":""},{"$f":"IFERROR(IF(Ej_Betalat_Lån*Angivna_Värden,Amortering,\"\"), \"\")","v":""},{"$f":"IFERROR(IF(Ej_Betalat_Lån*Angivna_Värden,Ränta,\"\"), \"\")","v":""},{"$f":"IFERROR(IF(Ej_Betalat_Lån*Angivna_Värden,Utgående_Saldo,\"\"), \"\")","v":""}]
[null,{"$f":"IFERROR(IF(Ej_Betalat_Lån*Angivna_Värden,Betalningsnummer,\"\"), \"\")","v":""},{"$f":"IFERROR(IF(Ej_Betalat_Lån*Angivna_Värden,Betalningsdatum,\"\"), \"\")","v":""},{"$f":"IFERROR(IF(Ej_Betalat_Lån*Angivna_Värden,Ingående_Saldo,\"\"), \"\")","v":""},{"$f":"IFERROR(IF(Ej_Betalat_Lån*Angivna_Värden,Månadsbetalning,\"\"), \"\")","v":""},{"$f":"IFERROR(IF(Ej_Betalat_Lån*Angivna_Värden,Amortering,\"\"), \"\")","v":""},{"$f":"IFERROR(IF(Ej_Betalat_Lån*Angivna_Värden,Ränta,\"\"), \"\")","v":""},{"$f":"IFERROR(IF(Ej_Betalat_Lån*Angivna_Värden,Utgående_Saldo,\"\"), \"\")","v":""}]
[null,{"$f":"IFERROR(IF(Ej_Betalat_Lån*Angivna_Värden,Betalningsnummer,\"\"), \"\")","v":""},{"$f":"IFERROR(IF(Ej_Betalat_Lån*Angivna_Värden,Betalningsdatum,\"\"), \"\")","v":""},{"$f":"IFERROR(IF(Ej_Betalat_Lån*Angivna_Värden,Ingående_Saldo,\"\"), \"\")","v":""},{"$f":"IFERROR(IF(Ej_Betalat_Lån*Angivna_Värden,Månadsbetalning,\"\"), \"\")","v":""},{"$f":"IFERROR(IF(Ej_Betalat_Lån*Angivna_Värden,Amortering,\"\"), \"\")","v":""},{"$f":"IFERROR(IF(Ej_Betalat_Lån*Angivna_Värden,Ränta,\"\"), \"\")","v":""},{"$f":"IFERROR(IF(Ej_Betalat_Lån*Angivna_Värden,Utgående_Saldo,\"\"), \"\")","v":""}]
[null,{"$f":"IFERROR(IF(Ej_Betalat_Lån*Angivna_Värden,Betalningsnummer,\"\"), \"\")","v":""},{"$f":"IFERROR(IF(Ej_Betalat_Lån*Angivna_Värden,Betalningsdatum,\"\"), \"\")","v":""},{"$f":"IFERROR(IF(Ej_Betalat_Lån*Angivna_Värden,Ingående_Saldo,\"\"), \"\")","v":""},{"$f":"IFERROR(IF(Ej_Betalat_Lån*Angivna_Värden,Månadsbetalning,\"\"), \"\")","v":""},{"$f":"IFERROR(IF(Ej_Betalat_Lån*Angivna_Värden,Amortering,\"\"), \"\")","v":""},{"$f":"IFERROR(IF(Ej_Betalat_Lån*Angivna_Värden,Ränta,\"\"), \"\")","v":""},{"$f":"IFERROR(IF(Ej_Betalat_Lån*Angivna_Värden,Utgående_Saldo,\"\"), \"\")","v":""}]
[null,{"$f":"IFERROR(IF(Ej_Betalat_Lån*Angivna_Värden,Betalningsnummer,\"\"), \"\")","v":""},{"$f":"IFERROR(IF(Ej_Betalat_Lån*Angivna_Värden,Betalningsdatum,\"\"), \"\")","v":""},{"$f":"IFERROR(IF(Ej_Betalat_Lån*Angivna_Värden,Ingående_Saldo,\"\"), \"\")","v":""},{"$f":"IFERROR(IF(Ej_Betalat_Lån*Angivna_Värden,Månadsbetalning,\"\"), \"\")","v":""},{"$f":"IFERROR(IF(Ej_Betalat_Lån*Angivna_Värden,Amortering,\"\"), \"\")","v":""},{"$f":"IFERROR(IF(Ej_Betalat_Lån*Angivna_Värden,Ränta,\"\"), \"\")","v":""},{"$f":"IFERROR(IF(Ej_Betalat_Lån*Angivna_Värden,Utgående_Saldo,\"\"), \"\")","v":""}]
[null,{"$f":"IFERROR(IF(Ej_Betalat_Lån*Angivna_Värden,Betalningsnummer,\"\"), \"\")","v":""},{"$f":"IFERROR(IF(Ej_Betalat_Lån*Angivna_Värden,Betalningsdatum,\"\"), \"\")","v":""},{"$f":"IFERROR(IF(Ej_Betalat_Lån*Angivna_Värden,Ingående_Saldo,\"\"), \"\")","v":""},{"$f":"IFERROR(IF(Ej_Betalat_Lån*Angivna_Värden,Månadsbetalning,\"\"), \"\")","v":""},{"$f":"IFERROR(IF(Ej_Betalat_Lån*Angivna_Värden,Amortering,\"\"), \"\")","v":""},{"$f":"IFERROR(IF(Ej_Betalat_Lån*Angivna_Värden,Ränta,\"\"), \"\")","v":""},{"$f":"IFERROR(IF(Ej_Betalat_Lån*Angivna_Värden,Utgående_Saldo,\"\"), \"\")","v":""}]
[null,{"$f":"IFERROR(IF(Ej_Betalat_Lån*Angivna_Värden,Betalningsnummer,\"\"), \"\")","v":""},{"$f":"IFERROR(IF(Ej_Betalat_Lån*Angivna_Värden,Betalningsdatum,\"\"), \"\")","v":""},{"$f":"IFERROR(IF(Ej_Betalat_Lån*Angivna_Värden,Ingående_Saldo,\"\"), \"\")","v":""},{"$f":"IFERROR(IF(Ej_Betalat_Lån*Angivna_Värden,Månadsbetalning,\"\"), \"\")","v":""},{"$f":"IFERROR(IF(Ej_Betalat_Lån*Angivna_Värden,Amortering,\"\"), \"\")","v":""},{"$f":"IFERROR(IF(Ej_Betalat_Lån*Angivna_Värden,Ränta,\"\"), \"\")","v":""},{"$f":"IFERROR(IF(Ej_Betalat_Lån*Angivna_Värden,Utgående_Saldo,\"\"), \"\")","v":""}]
[null,{"$f":"IFERROR(IF(Ej_Betalat_Lån*Angivna_Värden,Betalningsnummer,\"\"), \"\")","v":""},{"$f":"IFERROR(IF(Ej_Betalat_Lån*Angivna_Värden,Betalningsdatum,\"\"), \"\")","v":""},{"$f":"IFERROR(IF(Ej_Betalat_Lån*Angivna_Värden,Ingående_Saldo,\"\"), \"\")","v":""},{"$f":"IFERROR(IF(Ej_Betalat_Lån*Angivna_Värden,Månadsbetalning,\"\"), \"\")","v":""},{"$f":"IFERROR(IF(Ej_Betalat_Lån*Angivna_Värden,Amortering,\"\"), \"\")","v":""},{"$f":"IFERROR(IF(Ej_Betalat_Lån*Angivna_Värden,Ränta,\"\"), \"\")","v":""},{"$f":"IFERROR(IF(Ej_Betalat_Lån*Angivna_Värden,Utgående_Saldo,\"\"), \"\")","v":""}]
[null,{"$f":"IFERROR(IF(Ej_Betalat_Lån*Angivna_Värden,Betalningsnummer,\"\"), \"\")","v":""},{"$f":"IFERROR(IF(Ej_Betalat_Lån*Angivna_Värden,Betalningsdatum,\"\"), \"\")","v":""},{"$f":"IFERROR(IF(Ej_Betalat_Lån*Angivna_Värden,Ingående_Saldo,\"\"), \"\")","v":""},{"$f":"IFERROR(IF(Ej_Betalat_Lån*Angivna_Värden,Månadsbetalning,\"\"), \"\")","v":""},{"$f":"IFERROR(IF(Ej_Betalat_Lån*Angivna_Värden,Amortering,\"\"), \"\")","v":""},{"$f":"IFERROR(IF(Ej_Betalat_Lån*Angivna_Värden,Ränta,\"\"), \"\")","v":""},{"$f":"IFERROR(IF(Ej_Betalat_Lån*Angivna_Värden,Utgående_Saldo,\"\"), \"\")","v":""}]
[null,{"$f":"IFERROR(IF(Ej_Betalat_Lån*Angivna_Värden,Betalningsnummer,\"\"), \"\")","v":""},{"$f":"IFERROR(IF(Ej_Betalat_Lån*Angivna_Värden,Betalningsdatum,\"\"), \"\")","v":""},{"$f":"IFERROR(IF(Ej_Betalat_Lån*Angivna_Värden,Ingående_Saldo,\"\"), \"\")","v":""},{"$f":"IFERROR(IF(Ej_Betalat_Lån*Angivna_Värden,Månadsbetalning,\"\"), \"\")","v":""},{"$f":"IFERROR(IF(Ej_Betalat_Lån*Angivna_Värden,Amortering,\"\"), \"\")","v":""},{"$f":"IFERROR(IF(Ej_Betalat_Lån*Angivna_Värden,Ränta,\"\"), \"\")","v":""},{"$f":"IFERROR(IF(Ej_Betalat_Lån*Angivna_Värden,Utgående_Saldo,\"\"), \"\")","v":""}]
[null,{"$f":"IFERROR(IF(Ej_Betalat_Lån*Angivna_Värden,Betalningsnummer,\"\"), \"\")","v":""},{"$f":"IFERROR(IF(Ej_Betalat_Lån*Angivna_Värden,Betalningsdatum,\"\"), \"\")","v":""},{"$f":"IFERROR(IF(Ej_Betalat_Lån*Angivna_Värden,Ingående_Saldo,\"\"), \"\")","v":""},{"$f":"IFERROR(IF(Ej_Betalat_Lån*Angivna_Värden,Månadsbetalning,\"\"), \"\")","v":""},{"$f":"IFERROR(IF(Ej_Betalat_Lån*Angivna_Värden,Amortering,\"\"), \"\")","v":""},{"$f":"IFERROR(IF(Ej_Betalat_Lån*Angivna_Värden,Ränta,\"\"), \"\")","v":""},{"$f":"IFERROR(IF(Ej_Betalat_Lån*Angivna_Värden,Utgående_Saldo,\"\"), \"\")","v":""}]
[null,{"$f":"IFERROR(IF(Ej_Betalat_Lån*Angivna_Värden,Betalningsnummer,\"\"), \"\")","v":""},{"$f":"IFERROR(IF(Ej_Betalat_Lån*Angivna_Värden,Betalningsdatum,\"\"), \"\")","v":""},{"$f":"IFERROR(IF(Ej_Betalat_Lån*Angivna_Värden,Ingående_Saldo,\"\"), \"\")","v":""},{"$f":"IFERROR(IF(Ej_Betalat_Lån*Angivna_Värden,Månadsbetalning,\"\"), \"\")","v":""},{"$f":"IFERROR(IF(Ej_Betalat_Lån*Angivna_Värden,Amortering,\"\"), \"\")","v":""},{"$f":"IFERROR(IF(Ej_Betalat_Lån*Angivna_Värden,Ränta,\"\"), \"\")","v":""},{"$f":"IFERROR(IF(Ej_Betalat_Lån*Angivna_Värden,Utgående_Saldo,\"\"), \"\")","v":""}]
[null,{"$f":"IFERROR(IF(Ej_Betalat_Lån*Angivna_Värden,Betalningsnummer,\"\"), \"\")","v":""},{"$f":"IFERROR(IF(Ej_Betalat_Lån*Angivna_Värden,Betalningsdatum,\"\"), \"\")","v":""},{"$f":"IFERROR(IF(Ej_Betalat_Lån*Angivna_Värden,Ingående_Saldo,\"\"), \"\")","v":""},{"$f":"IFERROR(IF(Ej_Betalat_Lån*Angivna_Värden,Månadsbetalning,\"\"), \"\")","v":""},{"$f":"IFERROR(IF(Ej_Betalat_Lån*Angivna_Värden,Amortering,\"\"), \"\")","v":""},{"$f":"IFERROR(IF(Ej_Betalat_Lån*Angivna_Värden,Ränta,\"\"), \"\")","v":""},{"$f":"IFERROR(IF(Ej_Betalat_Lån*Angivna_Värden,Utgående_Saldo,\"\"), \"\")","v":""}]
[null,{"$f":"IFERROR(IF(Ej_Betalat_Lån*Angivna_Värden,Betalningsnummer,\"\"), \"\")","v":""},{"$f":"IFERROR(IF(Ej_Betalat_Lån*Angivna_Värden,Betalningsdatum,\"\"), \"\")","v":""},{"$f":"IFERROR(IF(Ej_Betalat_Lån*Angivna_Värden,Ingående_Saldo,\"\"), \"\")","v":""},{"$f":"IFERROR(IF(Ej_Betalat_Lån*Angivna_Värden,Månadsbetalning,\"\"), \"\")","v":""},{"$f":"IFERROR(IF(Ej_Betalat_Lån*Angivna_Värden,Amortering,\"\"), \"\")","v":""},{"$f":"IFERROR(IF(Ej_Betalat_Lån*Angivna_Värden,Ränta,\"\"), \"\")","v":""},{"$f":"IFERROR(IF(Ej_Betalat_Lån*Angivna_Värden,Utgående_Saldo,\"\"), \"\")","v":""}]
[null,{"$f":"IFERROR(IF(Ej_Betalat_Lån*Angivna_Värden,Betalningsnummer,\"\"), \"\")","v":""},{"$f":"IFERROR(IF(Ej_Betalat_Lån*Angivna_Värden,Betalningsdatum,\"\"), \"\")","v":""},{"$f":"IFERROR(IF(Ej_Betalat_Lån*Angivna_Värden,Ingående_Saldo,\"\"), \"\")","v":""},{"$f":"IFERROR(IF(Ej_Betalat_Lån*Angivna_Värden,Månadsbetalning,\"\"), \"\")","v":""},{"$f":"IFERROR(IF(Ej_Betalat_Lån*Angivna_Värden,Amortering,\"\"), \"\")","v":""},{"$f":"IFERROR(IF(Ej_Betalat_Lån*Angivna_Värden,Ränta,\"\"), \"\")","v":""},{"$f":"IFERROR(IF(Ej_Betalat_Lån*Angivna_Värden,Utgående_Saldo,\"\"), \"\")","v":""}]
[null,{"$f":"IFERROR(IF(Ej_Betalat_Lån*Angivna_Värden,Betalningsnummer,\"\"), \"\")","v":""},{"$f":"IFERROR(IF(Ej_Betalat_Lån*Angivna_Värden,Betalningsdatum,\"\"), \"\")","v":""},{"$f":"IFERROR(IF(Ej_Betalat_Lån*Angivna_Värden,Ingående_Saldo,\"\"), \"\")","v":""},{"$f":"IFERROR(IF(Ej_Betalat_Lån*Angivna_Värden,Månadsbetalning,\"\"), \"\")","v":""},{"$f":"IFERROR(IF(Ej_Betalat_Lån*Angivna_Värden,Amortering,\"\"), \"\")","v":""},{"$f":"IFERROR(IF(Ej_Betalat_Lån*Angivna_Värden,Ränta,\"\"), \"\")","v":""},{"$f":"IFERROR(IF(Ej_Betalat_Lån*Angivna_Värden,Utgående_Saldo,\"\"), \"\")","v":""}]
[null,{"$f":"IFERROR(IF(Ej_Betalat_Lån*Angivna_Värden,Betalningsnummer,\"\"), \"\")","v":""},{"$f":"IFERROR(IF(Ej_Betalat_Lån*Angivna_Värden,Betalningsdatum,\"\"), \"\")","v":""},{"$f":"IFERROR(IF(Ej_Betalat_Lån*Angivna_Värden,Ingående_Saldo,\"\"), \"\")","v":""},{"$f":"IFERROR(IF(Ej_Betalat_Lån*Angivna_Värden,Månadsbetalning,\"\"), \"\")","v":""},{"$f":"IFERROR(IF(Ej_Betalat_Lån*Angivna_Värden,Amortering,\"\"), \"\")","v":""},{"$f":"IFERROR(IF(Ej_Betalat_Lån*Angivna_Värden,Ränta,\"\"), \"\")","v":""},{"$f":"IFERROR(IF(Ej_Betalat_Lån*Angivna_Värden,Utgående_Saldo,\"\"), \"\")","v":""}]
[null,{"$f":"IFERROR(IF(Ej_Betalat_Lån*Angivna_Värden,Betalningsnummer,\"\"), \"\")","v":""},{"$f":"IFERROR(IF(Ej_Betalat_Lån*Angivna_Värden,Betalningsdatum,\"\"), \"\")","v":""},{"$f":"IFERROR(IF(Ej_Betalat_Lån*Angivna_Värden,Ingående_Saldo,\"\"), \"\")","v":""},{"$f":"IFERROR(IF(Ej_Betalat_Lån*Angivna_Värden,Månadsbetalning,\"\"), \"\")","v":""},{"$f":"IFERROR(IF(Ej_Betalat_Lån*Angivna_Värden,Amortering,\"\"), \"\")","v":""},{"$f":"IFERROR(IF(Ej_Betalat_Lån*Angivna_Värden,Ränta,\"\"), \"\")","v":""},{"$f":"IFERROR(IF(Ej_Betalat_Lån*Angivna_Värden,Utgående_Saldo,\"\"), \"\")","v":""}]
[null,{"$f":"IFERROR(IF(Ej_Betalat_Lån*Angivna_Värden,Betalningsnummer,\"\"), \"\")","v":""},{"$f":"IFERROR(IF(Ej_Betalat_Lån*Angivna_Värden,Betalningsdatum,\"\"), \"\")","v":""},{"$f":"IFERROR(IF(Ej_Betalat_Lån*Angivna_Värden,Ingående_Saldo,\"\"), \"\")","v":""},{"$f":"IFERROR(IF(Ej_Betalat_Lån*Angivna_Värden,Månadsbetalning,\"\"), \"\")","v":""},{"$f":"IFERROR(IF(Ej_Betalat_Lån*Angivna_Värden,Amortering,\"\"), \"\")","v":""},{"$f":"IFERROR(IF(Ej_Betalat_Lån*Angivna_Värden,Ränta,\"\"), \"\")","v":""},{"$f":"IFERROR(IF(Ej_Betalat_Lån*Angivna_Värden,Utgående_Saldo,\"\"), \"\")","v":""}]
[null,{"$f":"IFERROR(IF(Ej_Betalat_Lån*Angivna_Värden,Betalningsnummer,\"\"), \"\")","v":""},{"$f":"IFERROR(IF(Ej_Betalat_Lån*Angivna_Värden,Betalningsdatum,\"\"), \"\")","v":""},{"$f":"IFERROR(IF(Ej_Betalat_Lån*Angivna_Värden,Ingående_Saldo,\"\"), \"\")","v":""},{"$f":"IFERROR(IF(Ej_Betalat_Lån*Angivna_Värden,Månadsbetalning,\"\"), \"\")","v":""},{"$f":"IFERROR(IF(Ej_Betalat_Lån*Angivna_Värden,Amortering,\"\"), \"\")","v":""},{"$f":"IFERROR(IF(Ej_Betalat_Lån*Angivna_Värden,Ränta,\"\"), \"\")","v":""},{"$f":"IFERROR(IF(Ej_Betalat_Lån*Angivna_Värden,Utgående_Saldo,\"\"), \"\")","v":""}]
[null,{"$f":"IFERROR(IF(Ej_Betalat_Lån*Angivna_Värden,Betalningsnummer,\"\"), \"\")","v":""},{"$f":"IFERROR(IF(Ej_Betalat_Lån*Angivna_Värden,Betalningsdatum,\"\"), \"\")","v":""},{"$f":"IFERROR(IF(Ej_Betalat_Lån*Angivna_Värden,Ingående_Saldo,\"\"), \"\")","v":""},{"$f":"IFERROR(IF(Ej_Betalat_Lån*Angivna_Värden,Månadsbetalning,\"\"), \"\")","v":""},{"$f":"IFERROR(IF(Ej_Betalat_Lån*Angivna_Värden,Amortering,\"\"), \"\")","v":""},{"$f":"IFERROR(IF(Ej_Betalat_Lån*Angivna_Värden,Ränta,\"\"), \"\")","v":""},{"$f":"IFERROR(IF(Ej_Betalat_Lån*Angivna_Värden,Utgående_Saldo,\"\"), \"\")","v":""}]
[null,{"$f":"IFERROR(IF(Ej_Betalat_Lån*Angivna_Värden,Betalningsnummer,\"\"), \"\")","v":""},{"$f":"IFERROR(IF(Ej_Betalat_Lån*Angivna_Värden,Betalningsdatum,\"\"), \"\")","v":""},{"$f":"IFERROR(IF(Ej_Betalat_Lån*Angivna_Värden,Ingående_Saldo,\"\"), \"\")","v":""},{"$f":"IFERROR(IF(Ej_Betalat_Lån*Angivna_Värden,Månadsbetalning,\"\"), \"\")","v":""},{"$f":"IFERROR(IF(Ej_Betalat_Lån*Angivna_Värden,Amortering,\"\"), \"\")","v":""},{"$f":"IFERROR(IF(Ej_Betalat_Lån*Angivna_Värden,Ränta,\"\"), \"\")","v":""},{"$f":"IFERROR(IF(Ej_Betalat_Lån*Angivna_Värden,Utgående_Saldo,\"\"), \"\")","v":""}]
[null,{"$f":"IFERROR(IF(Ej_Betalat_Lån*Angivna_Värden,Betalningsnummer,\"\"), \"\")","v":""},{"$f":"IFERROR(IF(Ej_Betalat_Lån*Angivna_Värden,Betalningsdatum,\"\"), \"\")","v":""},{"$f":"IFERROR(IF(Ej_Betalat_Lån*Angivna_Värden,Ingående_Saldo,\"\"), \"\")","v":""},{"$f":"IFERROR(IF(Ej_Betalat_Lån*Angivna_Värden,Månadsbetalning,\"\"), \"\")","v":""},{"$f":"IFERROR(IF(Ej_Betalat_Lån*Angivna_Värden,Amortering,\"\"), \"\")","v":""},{"$f":"IFERROR(IF(Ej_Betalat_Lån*Angivna_Värden,Ränta,\"\"), \"\")","v":""},{"$f":"IFERROR(IF(Ej_Betalat_Lån*Angivna_Värden,Utgående_Saldo,\"\"), \"\")","v":""}]
[null,{"$f":"IFERROR(IF(Ej_Betalat_Lån*Angivna_Värden,Betalningsnummer,\"\"), \"\")","v":""},{"$f":"IFERROR(IF(Ej_Betalat_Lån*Angivna_Värden,Betalningsdatum,\"\"), \"\")","v":""},{"$f":"IFERROR(IF(Ej_Betalat_Lån*Angivna_Värden,Ingående_Saldo,\"\"), \"\")","v":""},{"$f":"IFERROR(IF(Ej_Betalat_Lån*Angivna_Värden,Månadsbetalning,\"\"), \"\")","v":""},{"$f":"IFERROR(IF(Ej_Betalat_Lån*Angivna_Värden,Amortering,\"\"), \"\")","v":""},{"$f":"IFERROR(IF(Ej_Betalat_Lån*Angivna_Värden,Ränta,\"\"), \"\")","v":""},{"$f":"IFERROR(IF(Ej_Betalat_Lån*Angivna_Värden,Utgående_Saldo,\"\"), \"\")","v":""}]
[null,{"$f":"IFERROR(IF(Ej_Betalat_Lån*Angivna_Värden,Betalningsnummer,\"\"), \"\")","v":""},{"$f":"IFERROR(IF(Ej_Betalat_Lån*Angivna_Värden,Betalningsdatum,\"\"), \"\")","v":""},{"$f":"IFERROR(IF(Ej_Betalat_Lån*Angivna_Värden,Ingående_Saldo,\"\"), \"\")","v":""},{"$f":"IFERROR(IF(Ej_Betalat_Lån*Angivna_Värden,Månadsbetalning,\"\"), \"\")","v":""},{"$f":"IFERROR(IF(Ej_Betalat_Lån*Angivna_Värden,Amortering,\"\"), \"\")","v":""},{"$f":"IFERROR(IF(Ej_Betalat_Lån*Angivna_Värden,Ränta,\"\"), \"\")","v":""},{"$f":"IFERROR(IF(Ej_Betalat_Lån*Angivna_Värden,Utgående_Saldo,\"\"), \"\")","v":""}]
[null,{"$f":"IFERROR(IF(Ej_Betalat_Lån*Angivna_Värden,Betalningsnummer,\"\"), \"\")","v":""},{"$f":"IFERROR(IF(Ej_Betalat_Lån*Angivna_Värden,Betalningsdatum,\"\"), \"\")","v":""},{"$f":"IFERROR(IF(Ej_Betalat_Lån*Angivna_Värden,Ingående_Saldo,\"\"), \"\")","v":""},{"$f":"IFERROR(IF(Ej_Betalat_Lån*Angivna_Värden,Månadsbetalning,\"\"), \"\")","v":""},{"$f":"IFERROR(IF(Ej_Betalat_Lån*Angivna_Värden,Amortering,\"\"), \"\")","v":""},{"$f":"IFERROR(IF(Ej_Betalat_Lån*Angivna_Värden,Ränta,\"\"), \"\")","v":""},{"$f":"IFERROR(IF(Ej_Betalat_Lån*Angivna_Värden,Utgående_Saldo,\"\"), \"\")","v":""}]
[null,{"$f":"IFERROR(IF(Ej_Betalat_Lån*Angivna_Värden,Betalningsnummer,\"\"), \"\")","v":""},{"$f":"IFERROR(IF(Ej_Betalat_Lån*Angivna_Värden,Betalningsdatum,\"\"), \"\")","v":""},{"$f":"IFERROR(IF(Ej_Betalat_Lån*Angivna_Värden,Ingående_Saldo,\"\"), \"\")","v":""},{"$f":"IFERROR(IF(Ej_Betalat_Lån*Angivna_Värden,Månadsbetalning,\"\"), \"\")","v":""},{"$f":"IFERROR(IF(Ej_Betalat_Lån*Angivna_Värden,Amortering,\"\"), \"\")","v":""},{"$f":"IFERROR(IF(Ej_Betalat_Lån*Angivna_Värden,Ränta,\"\"), \"\")","v":""},{"$f":"IFERROR(IF(Ej_Betalat_Lån*Angivna_Värden,Utgående_Saldo,\"\"), \"\")","v":""}]
[null,{"$f":"IFERROR(IF(Ej_Betalat_Lån*Angivna_Värden,Betalningsnummer,\"\"), \"\")","v":""},{"$f":"IFERROR(IF(Ej_Betalat_Lån*Angivna_Värden,Betalningsdatum,\"\"), \"\")","v":""},{"$f":"IFERROR(IF(Ej_Betalat_Lån*Angivna_Värden,Ingående_Saldo,\"\"), \"\")","v":""},{"$f":"IFERROR(IF(Ej_Betalat_Lån*Angivna_Värden,Månadsbetalning,\"\"), \"\")","v":""},{"$f":"IFERROR(IF(Ej_Betalat_Lån*Angivna_Värden,Amortering,\"\"), \"\")","v":""},{"$f":"IFERROR(IF(Ej_Betalat_Lån*Angivna_Värden,Ränta,\"\"), \"\")","v":""},{"$f":"IFERROR(IF(Ej_Betalat_Lån*Angivna_Värden,Utgående_Saldo,\"\"), \"\")","v":""}]
[null,{"$f":"IFERROR(IF(Ej_Betalat_Lån*Angivna_Värden,Betalningsnummer,\"\"), \"\")","v":""},{"$f":"IFERROR(IF(Ej_Betalat_Lån*Angivna_Värden,Betalningsdatum,\"\"), \"\")","v":""},{"$f":"IFERROR(IF(Ej_Betalat_Lån*Angivna_Värden,Ingående_Saldo,\"\"), \"\")","v":""},{"$f":"IFERROR(IF(Ej_Betalat_Lån*Angivna_Värden,Månadsbetalning,\"\"), \"\")","v":""},{"$f":"IFERROR(IF(Ej_Betalat_Lån*Angivna_Värden,Amortering,\"\"), \"\")","v":""},{"$f":"IFERROR(IF(Ej_Betalat_Lån*Angivna_Värden,Ränta,\"\"), \"\")","v":""},{"$f":"IFERROR(IF(Ej_Betalat_Lån*Angivna_Värden,Utgående_Saldo,\"\"), \"\")","v":""}]
[null,{"$f":"IFERROR(IF(Ej_Betalat_Lån*Angivna_Värden,Betalningsnummer,\"\"), \"\")","v":""},{"$f":"IFERROR(IF(Ej_Betalat_Lån*Angivna_Värden,Betalningsdatum,\"\"), \"\")","v":""},{"$f":"IFERROR(IF(Ej_Betalat_Lån*Angivna_Värden,Ingående_Saldo,\"\"), \"\")","v":""},{"$f":"IFERROR(IF(Ej_Betalat_Lån*Angivna_Värden,Månadsbetalning,\"\"), \"\")","v":""},{"$f":"IFERROR(IF(Ej_Betalat_Lån*Angivna_Värden,Amortering,\"\"), \"\")","v":""},{"$f":"IFERROR(IF(Ej_Betalat_Lån*Angivna_Värden,Ränta,\"\"), \"\")","v":""},{"$f":"IFERROR(IF(Ej_Betalat_Lån*Angivna_Värden,Utgående_Saldo,\"\"), \"\")","v":""}]
[null,{"$f":"IFERROR(IF(Ej_Betalat_Lån*Angivna_Värden,Betalningsnummer,\"\"), \"\")","v":""},{"$f":"IFERROR(IF(Ej_Betalat_Lån*Angivna_Värden,Betalningsdatum,\"\"), \"\")","v":""},{"$f":"IFERROR(IF(Ej_Betalat_Lån*Angivna_Värden,Ingående_Saldo,\"\"), \"\")","v":""},{"$f":"IFERROR(IF(Ej_Betalat_Lån*Angivna_Värden,Månadsbetalning,\"\"), \"\")","v":""},{"$f":"IFERROR(IF(Ej_Betalat_Lån*Angivna_Värden,Amortering,\"\"), \"\")","v":""},{"$f":"IFERROR(IF(Ej_Betalat_Lån*Angivna_Värden,Ränta,\"\"), \"\")","v":""},{"$f":"IFERROR(IF(Ej_Betalat_Lån*Angivna_Värden,Utgående_Saldo,\"\"), \"\")","v":""}]
[null,{"$f":"IFERROR(IF(Ej_Betalat_Lån*Angivna_Värden,Betalningsnummer,\"\"), \"\")","v":""},{"$f":"IFERROR(IF(Ej_Betalat_Lån*Angivna_Värden,Betalningsdatum,\"\"), \"\")","v":""},{"$f":"IFERROR(IF(Ej_Betalat_Lån*Angivna_Värden,Ingående_Saldo,\"\"), \"\")","v":""},{"$f":"IFERROR(IF(Ej_Betalat_Lån*Angivna_Värden,Månadsbetalning,\"\"), \"\")","v":""},{"$f":"IFERROR(IF(Ej_Betalat_Lån*Angivna_Värden,Amortering,\"\"), \"\")","v":""},{"$f":"IFERROR(IF(Ej_Betalat_Lån*Angivna_Värden,Ränta,\"\"), \"\")","v":""},{"$f":"IFERROR(IF(Ej_Betalat_Lån*Angivna_Värden,Utgående_Saldo,\"\"), \"\")","v":""}]
[null,{"$f":"IFERROR(IF(Ej_Betalat_Lån*Angivna_Värden,Betalningsnummer,\"\"), \"\")","v":""},{"$f":"IFERROR(IF(Ej_Betalat_Lån*Angivna_Värden,Betalningsdatum,\"\"), \"\")","v":""},{"$f":"IFERROR(IF(Ej_Betalat_Lån*Angivna_Värden,Ingående_Saldo,\"\"), \"\")","v":""},{"$f":"IFERROR(IF(Ej_Betalat_Lån*Angivna_Värden,Månadsbetalning,\"\"), \"\")","v":""},{"$f":"IFERROR(IF(Ej_Betalat_Lån*Angivna_Värden,Amortering,\"\"), \"\")","v":""},{"$f":"IFERROR(IF(Ej_Betalat_Lån*Angivna_Värden,Ränta,\"\"), \"\")","v":""},{"$f":"IFERROR(IF(Ej_Betalat_Lån*Angivna_Värden,Utgående_Saldo,\"\"), \"\")","v":""}]
[null,{"$f":"IFERROR(IF(Ej_Betalat_Lån*Angivna_Värden,Betalningsnummer,\"\"), \"\")","v":""},{"$f":"IFERROR(IF(Ej_Betalat_Lån*Angivna_Värden,Betalningsdatum,\"\"), \"\")","v":""},{"$f":"IFERROR(IF(Ej_Betalat_Lån*Angivna_Värden,Ingående_Saldo,\"\"), \"\")","v":""},{"$f":"IFERROR(IF(Ej_Betalat_Lån*Angivna_Värden,Månadsbetalning,\"\"), \"\")","v":""},{"$f":"IFERROR(IF(Ej_Betalat_Lån*Angivna_Värden,Amortering,\"\"), \"\")","v":""},{"$f":"IFERROR(IF(Ej_Betalat_Lån*Angivna_Värden,Ränta,\"\"), \"\")","v":""},{"$f":"IFERROR(IF(Ej_Betalat_Lån*Angivna_Värden,Utgående_Saldo,\"\"), \"\")","v":""}]
[null,{"$f":"IFERROR(IF(Ej_Betalat_Lån*Angivna_Värden,Betalningsnummer,\"\"), \"\")","v":""},{"$f":"IFERROR(IF(Ej_Betalat_Lån*Angivna_Värden,Betalningsdatum,\"\"), \"\")","v":""},{"$f":"IFERROR(IF(Ej_Betalat_Lån*Angivna_Värden,Ingående_Saldo,\"\"), \"\")","v":""},{"$f":"IFERROR(IF(Ej_Betalat_Lån*Angivna_Värden,Månadsbetalning,\"\"), \"\")","v":""},{"$f":"IFERROR(IF(Ej_Betalat_Lån*Angivna_Värden,Amortering,\"\"), \"\")","v":""},{"$f":"IFERROR(IF(Ej_Betalat_Lån*Angivna_Värden,Ränta,\"\"), \"\")","v":""},{"$f":"IFERROR(IF(Ej_Betalat_Lån*Angivna_Värden,Utgående_Saldo,\"\"), \"\")","v":""}]
[null,{"$f":"IFERROR(IF(Ej_Betalat_Lån*Angivna_Värden,Betalningsnummer,\"\"), \"\")","v":""},{"$f":"IFERROR(IF(Ej_Betalat_Lån*Angivna_Värden,Betalningsdatum,\"\"), \"\")","v":""},{"$f":"IFERROR(IF(Ej_Betalat_Lån*Angivna_Värden,Ingående_Saldo,\"\"), \"\")","v":""},{"$f":"IFERROR(IF(Ej_Betalat_Lån*Angivna_Värden,Månadsbetalning,\"\"), \"\")","v":""},{"$f":"IFERROR(IF(Ej_Betalat_Lån*Angivna_Värden,Amortering,\"\"), \"\")","v":""},{"$f":"IFERROR(IF(Ej_Betalat_Lån*Angivna_Värden,Ränta,\"\"), \"\")","v":""},{"$f":"IFERROR(IF(Ej_Betalat_Lån*Angivna_Värden,Utgående_Saldo,\"\"), \"\")","v":""}]
[null,{"$f":"IFERROR(IF(Ej_Betalat_Lån*Angivna_Värden,Betalningsnummer,\"\"), \"\")","v":""},{"$f":"IFERROR(IF(Ej_Betalat_Lån*Angivna_Värden,Betalningsdatum,\"\"), \"\")","v":""},{"$f":"IFERROR(IF(Ej_Betalat_Lån*Angivna_Värden,Ingående_Saldo,\"\"), \"\")","v":""},{"$f":"IFERROR(IF(Ej_Betalat_Lån*Angivna_Värden,Månadsbetalning,\"\"), \"\")","v":""},{"$f":"IFERROR(IF(Ej_Betalat_Lån*Angivna_Värden,Amortering,\"\"), \"\")","v":""},{"$f":"IFERROR(IF(Ej_Betalat_Lån*Angivna_Värden,Ränta,\"\"), \"\")","v":""},{"$f":"IFERROR(IF(Ej_Betalat_Lån*Angivna_Värden,Utgående_Saldo,\"\"), \"\")","v":""}]
[null,{"$f":"IFERROR(IF(Ej_Betalat_Lån*Angivna_Värden,Betalningsnummer,\"\"), \"\")","v":""},{"$f":"IFERROR(IF(Ej_Betalat_Lån*Angivna_Värden,Betalningsdatum,\"\"), \"\")","v":""},{"$f":"IFERROR(IF(Ej_Betalat_Lån*Angivna_Värden,Ingående_Saldo,\"\"), \"\")","v":""},{"$f":"IFERROR(IF(Ej_Betalat_Lån*Angivna_Värden,Månadsbetalning,\"\"), \"\")","v":""},{"$f":"IFERROR(IF(Ej_Betalat_Lån*Angivna_Värden,Amortering,\"\"), \"\")","v":""},{"$f":"IFERROR(IF(Ej_Betalat_Lån*Angivna_Värden,Ränta,\"\"), \"\")","v":""},{"$f":"IFERROR(IF(Ej_Betalat_Lån*Angivna_Värden,Utgående_Saldo,\"\"), \"\")","v":""}]
[null,{"$f":"IFERROR(IF(Ej_Betalat_Lån*Angivna_Värden,Betalningsnummer,\"\"), \"\")","v":""},{"$f":"IFERROR(IF(Ej_Betalat_Lån*Angivna_Värden,Betalningsdatum,\"\"), \"\")","v":""},{"$f":"IFERROR(IF(Ej_Betalat_Lån*Angivna_Värden,Ingående_Saldo,\"\"), \"\")","v":""},{"$f":"IFERROR(IF(Ej_Betalat_Lån*Angivna_Värden,Månadsbetalning,\"\"), \"\")","v":""},{"$f":"IFERROR(IF(Ej_Betalat_Lån*Angivna_Värden,Amortering,\"\"), \"\")","v":""},{"$f":"IFERROR(IF(Ej_Betalat_Lån*Angivna_Värden,Ränta,\"\"), \"\")","v":""},{"$f":"IFERROR(IF(Ej_Betalat_Lån*Angivna_Värden,Utgående_Saldo,\"\"), \"\")","v":""}]
[null,{"$f":"IFERROR(IF(Ej_Betalat_Lån*Angivna_Värden,Betalningsnummer,\"\"), \"\")","v":""},{"$f":"IFERROR(IF(Ej_Betalat_Lån*Angivna_Värden,Betalningsdatum,\"\"), \"\")","v":""},{"$f":"IFERROR(IF(Ej_Betalat_Lån*Angivna_Värden,Ingående_Saldo,\"\"), \"\")","v":""},{"$f":"IFERROR(IF(Ej_Betalat_Lån*Angivna_Värden,Månadsbetalning,\"\"), \"\")","v":""},{"$f":"IFERROR(IF(Ej_Betalat_Lån*Angivna_Värden,Amortering,\"\"), \"\")","v":""},{"$f":"IFERROR(IF(Ej_Betalat_Lån*Angivna_Värden,Ränta,\"\"), \"\")","v":""},{"$f":"IFERROR(IF(Ej_Betalat_Lån*Angivna_Värden,Utgående_Saldo,\"\"), \"\")","v":""}]
[null,{"$f":"IFERROR(IF(Ej_Betalat_Lån*Angivna_Värden,Betalningsnummer,\"\"), \"\")","v":""},{"$f":"IFERROR(IF(Ej_Betalat_Lån*Angivna_Värden,Betalningsdatum,\"\"), \"\")","v":""},{"$f":"IFERROR(IF(Ej_Betalat_Lån*Angivna_Värden,Ingående_Saldo,\"\"), \"\")","v":""},{"$f":"IFERROR(IF(Ej_Betalat_Lån*Angivna_Värden,Månadsbetalning,\"\"), \"\")","v":""},{"$f":"IFERROR(IF(Ej_Betalat_Lån*Angivna_Värden,Amortering,\"\"), \"\")","v":""},{"$f":"IFERROR(IF(Ej_Betalat_Lån*Angivna_Värden,Ränta,\"\"), \"\")","v":""},{"$f":"IFERROR(IF(Ej_Betalat_Lån*Angivna_Värden,Utgående_Saldo,\"\"), \"\")","v":""}]
[null,{"$f":"IFERROR(IF(Ej_Betalat_Lån*Angivna_Värden,Betalningsnummer,\"\"), \"\")","v":""},{"$f":"IFERROR(IF(Ej_Betalat_Lån*Angivna_Värden,Betalningsdatum,\"\"), \"\")","v":""},{"$f":"IFERROR(IF(Ej_Betalat_Lån*Angivna_Värden,Ingående_Saldo,\"\"), \"\")","v":""},{"$f":"IFERROR(IF(Ej_Betalat_Lån*Angivna_Värden,Månadsbetalning,\"\"), \"\")","v":""},{"$f":"IFERROR(IF(Ej_Betalat_Lån*Angivna_Värden,Amortering,\"\"), \"\")","v":""},{"$f":"IFERROR(IF(Ej_Betalat_Lån*Angivna_Värden,Ränta,\"\"), \"\")","v":""},{"$f":"IFERROR(IF(Ej_Betalat_Lån*Angivna_Värden,Utgående_Saldo,\"\"), \"\")","v":""}]
[null,{"$f":"IFERROR(IF(Ej_Betalat_Lån*Angivna_Värden,Betalningsnummer,\"\"), \"\")","v":""},{"$f":"IFERROR(IF(Ej_Betalat_Lån*Angivna_Värden,Betalningsdatum,\"\"), \"\")","v":""},{"$f":"IFERROR(IF(Ej_Betalat_Lån*Angivna_Värden,Ingående_Saldo,\"\"), \"\")","v":""},{"$f":"IFERROR(IF(Ej_Betalat_Lån*Angivna_Värden,Månadsbetalning,\"\"), \"\")","v":""},{"$f":"IFERROR(IF(Ej_Betalat_Lån*Angivna_Värden,Amortering,\"\"), \"\")","v":""},{"$f":"IFERROR(IF(Ej_Betalat_Lån*Angivna_Värden,Ränta,\"\"), \"\")","v":""},{"$f":"IFERROR(IF(Ej_Betalat_Lån*Angivna_Värden,Utgående_Saldo,\"\"), \"\")","v":""}]
[null,{"$f":"IFERROR(IF(Ej_Betalat_Lån*Angivna_Värden,Betalningsnummer,\"\"), \"\")","v":""},{"$f":"IFERROR(IF(Ej_Betalat_Lån*Angivna_Värden,Betalningsdatum,\"\"), \"\")","v":""},{"$f":"IFERROR(IF(Ej_Betalat_Lån*Angivna_Värden,Ingående_Saldo,\"\"), \"\")","v":""},{"$f":"IFERROR(IF(Ej_Betalat_Lån*Angivna_Värden,Månadsbetalning,\"\"), \"\")","v":""},{"$f":"IFERROR(IF(Ej_Betalat_Lån*Angivna_Värden,Amortering,\"\"), \"\")","v":""},{"$f":"IFERROR(IF(Ej_Betalat_Lån*Angivna_Värden,Ränta,\"\"), \"\")","v":""},{"$f":"IFERROR(IF(Ej_Betalat_Lån*Angivna_Värden,Utgående_Saldo,\"\"), \"\")","v":""}]
[null,{"$f":"IFERROR(IF(Ej_Betalat_Lån*Angivna_Värden,Betalningsnummer,\"\"), \"\")","v":""},{"$f":"IFERROR(IF(Ej_Betalat_Lån*Angivna_Värden,Betalningsdatum,\"\"), \"\")","v":""},{"$f":"IFERROR(IF(Ej_Betalat_Lån*Angivna_Värden,Ingående_Saldo,\"\"), \"\")","v":""},{"$f":"IFERROR(IF(Ej_Betalat_Lån*Angivna_Värden,Månadsbetalning,\"\"), \"\")","v":""},{"$f":"IFERROR(IF(Ej_Betalat_Lån*Angivna_Värden,Amortering,\"\"), \"\")","v":""},{"$f":"IFERROR(IF(Ej_Betalat_Lån*Angivna_Värden,Ränta,\"\"), \"\")","v":""},{"$f":"IFERROR(IF(Ej_Betalat_Lån*Angivna_Värden,Utgående_Saldo,\"\"), \"\")","v":""}]
[null,{"$f":"IFERROR(IF(Ej_Betalat_Lån*Angivna_Värden,Betalningsnummer,\"\"), \"\")","v":""},{"$f":"IFERROR(IF(Ej_Betalat_Lån*Angivna_Värden,Betalningsdatum,\"\"), \"\")","v":""},{"$f":"IFERROR(IF(Ej_Betalat_Lån*Angivna_Värden,Ingående_Saldo,\"\"), \"\")","v":""},{"$f":"IFERROR(IF(Ej_Betalat_Lån*Angivna_Värden,Månadsbetalning,\"\"), \"\")","v":""},{"$f":"IFERROR(IF(Ej_Betalat_Lån*Angivna_Värden,Amortering,\"\"), \"\")","v":""},{"$f":"IFERROR(IF(Ej_Betalat_Lån*Angivna_Värden,Ränta,\"\"), \"\")","v":""},{"$f":"IFERROR(IF(Ej_Betalat_Lån*Angivna_Värden,Utgående_Saldo,\"\"), \"\")","v":""}]
[null,{"$f":"IFERROR(IF(Ej_Betalat_Lån*Angivna_Värden,Betalningsnummer,\"\"), \"\")","v":""},{"$f":"IFERROR(IF(Ej_Betalat_Lån*Angivna_Värden,Betalningsdatum,\"\"), \"\")","v":""},{"$f":"IFERROR(IF(Ej_Betalat_Lån*Angivna_Värden,Ingående_Saldo,\"\"), \"\")","v":""},{"$f":"IFERROR(IF(Ej_Betalat_Lån*Angivna_Värden,Månadsbetalning,\"\"), \"\")","v":""},{"$f":"IFERROR(IF(Ej_Betalat_Lån*Angivna_Värden,Amortering,\"\"), \"\")","v":""},{"$f":"IFERROR(IF(Ej_Betalat_Lån*Angivna_Värden,Ränta,\"\"), \"\")","v":""},{"$f":"IFERROR(IF(Ej_Betalat_Lån*Angivna_Värden,Utgående_Saldo,\"\"), \"\")","v":""}]
[null,{"$f":"IFERROR(IF(Ej_Betalat_Lån*Angivna_Värden,Betalningsnummer,\"\"), \"\")","v":""},{"$f":"IFERROR(IF(Ej_Betalat_Lån*Angivna_Värden,Betalningsdatum,\"\"), \"\")","v":""},{"$f":"IFERROR(IF(Ej_Betalat_Lån*Angivna_Värden,Ingående_Saldo,\"\"), \"\")","v":""},{"$f":"IFERROR(IF(Ej_Betalat_Lån*Angivna_Värden,Månadsbetalning,\"\"), \"\")","v":""},{"$f":"IFERROR(IF(Ej_Betalat_Lån*Angivna_Värden,Amortering,\"\"), \"\")","v":""},{"$f":"IFERROR(IF(Ej_Betalat_Lån*Angivna_Värden,Ränta,\"\"), \"\")","v":""},{"$f":"IFERROR(IF(Ej_Betalat_Lån*Angivna_Värden,Utgående_Saldo,\"\"), \"\")","v":""}]
[null,{"$f":"IFERROR(IF(Ej_Betalat_Lån*Angivna_Värden,Betalningsnummer,\"\"), \"\")","v":""},{"$f":"IFERROR(IF(Ej_Betalat_Lån*Angivna_Värden,Betalningsdatum,\"\"), \"\")","v":""},{"$f":"IFERROR(IF(Ej_Betalat_Lån*Angivna_Värden,Ingående_Saldo,\"\"), \"\")","v":""},{"$f":"IFERROR(IF(Ej_Betalat_Lån*Angivna_Värden,Månadsbetalning,\"\"), \"\")","v":""},{"$f":"IFERROR(IF(Ej_Betalat_Lån*Angivna_Värden,Amortering,\"\"), \"\")","v":""},{"$f":"IFERROR(IF(Ej_Betalat_Lån*Angivna_Värden,Ränta,\"\"), \"\")","v":""},{"$f":"IFERROR(IF(Ej_Betalat_Lån*Angivna_Värden,Utgående_Saldo,\"\"), \"\")","v":""}]
[null,{"$f":"IFERROR(IF(Ej_Betalat_Lån*Angivna_Värden,Betalningsnummer,\"\"), \"\")","v":""},{"$f":"IFERROR(IF(Ej_Betalat_Lån*Angivna_Värden,Betalningsdatum,\"\"), \"\")","v":""},{"$f":"IFERROR(IF(Ej_Betalat_Lån*Angivna_Värden,Ingående_Saldo,\"\"), \"\")","v":""},{"$f":"IFERROR(IF(Ej_Betalat_Lån*Angivna_Värden,Månadsbetalning,\"\"), \"\")","v":""},{"$f":"IFERROR(IF(Ej_Betalat_Lån*Angivna_Värden,Amortering,\"\"), \"\")","v":""},{"$f":"IFERROR(IF(Ej_Betalat_Lån*Angivna_Värden,Ränta,\"\"), \"\")","v":""},{"$f":"IFERROR(IF(Ej_Betalat_Lån*Angivna_Värden,Utgående_Saldo,\"\"), \"\")","v":""}]
[null,{"$f":"IFERROR(IF(Ej_Betalat_Lån*Angivna_Värden,Betalningsnummer,\"\"), \"\")","v":""},{"$f":"IFERROR(IF(Ej_Betalat_Lån*Angivna_Värden,Betalningsdatum,\"\"), \"\")","v":""},{"$f":"IFERROR(IF(Ej_Betalat_Lån*Angivna_Värden,Ingående_Saldo,\"\"), \"\")","v":""},{"$f":"IFERROR(IF(Ej_Betalat_Lån*Angivna_Värden,Månadsbetalning,\"\"), \"\")","v":""},{"$f":"IFERROR(IF(Ej_Betalat_Lån*Angivna_Värden,Amortering,\"\"), \"\")","v":""},{"$f":"IFERROR(IF(Ej_Betalat_Lån*Angivna_Värden,Ränta,\"\"), \"\")","v":""},{"$f":"IFERROR(IF(Ej_Betalat_Lån*Angivna_Värden,Utgående_Saldo,\"\"), \"\")","v":""}]
[null,{"$f":"IFERROR(IF(Ej_Betalat_Lån*Angivna_Värden,Betalningsnummer,\"\"), \"\")","v":""},{"$f":"IFERROR(IF(Ej_Betalat_Lån*Angivna_Värden,Betalningsdatum,\"\"), \"\")","v":""},{"$f":"IFERROR(IF(Ej_Betalat_Lån*Angivna_Värden,Ingående_Saldo,\"\"), \"\")","v":""},{"$f":"IFERROR(IF(Ej_Betalat_Lån*Angivna_Värden,Månadsbetalning,\"\"), \"\")","v":""},{"$f":"IFERROR(IF(Ej_Betalat_Lån*Angivna_Värden,Amortering,\"\"), \"\")","v":""},{"$f":"IFERROR(IF(Ej_Betalat_Lån*Angivna_Värden,Ränta,\"\"), \"\")","v":""},{"$f":"IFERROR(IF(Ej_Betalat_Lån*Angivna_Värden,Utgående_Saldo,\"\"), \"\")","v":""}]
[null,{"$f":"IFERROR(IF(Ej_Betalat_Lån*Angivna_Värden,Betalningsnummer,\"\"), \"\")","v":""},{"$f":"IFERROR(IF(Ej_Betalat_Lån*Angivna_Värden,Betalningsdatum,\"\"), \"\")","v":""},{"$f":"IFERROR(IF(Ej_Betalat_Lån*Angivna_Värden,Ingående_Saldo,\"\"), \"\")","v":""},{"$f":"IFERROR(IF(Ej_Betalat_Lån*Angivna_Värden,Månadsbetalning,\"\"), \"\")","v":""},{"$f":"IFERROR(IF(Ej_Betalat_Lån*Angivna_Värden,Amortering,\"\"), \"\")","v":""},{"$f":"IFERROR(IF(Ej_Betalat_Lån*Angivna_Värden,Ränta,\"\"), \"\")","v":""},{"$f":"IFERROR(IF(Ej_Betalat_Lån*Angivna_Värden,Utgående_Saldo,\"\"), \"\")","v":""}]
[null,{"$f":"IFERROR(IF(Ej_Betalat_Lån*Angivna_Värden,Betalningsnummer,\"\"), \"\")","v":""},{"$f":"IFERROR(IF(Ej_Betalat_Lån*Angivna_Värden,Betalningsdatum,\"\"), \"\")","v":""},{"$f":"IFERROR(IF(Ej_Betalat_Lån*Angivna_Värden,Ingående_Saldo,\"\"), \"\")","v":""},{"$f":"IFERROR(IF(Ej_Betalat_Lån*Angivna_Värden,Månadsbetalning,\"\"), \"\")","v":""},{"$f":"IFERROR(IF(Ej_Betalat_Lån*Angivna_Värden,Amortering,\"\"), \"\")","v":""},{"$f":"IFERROR(IF(Ej_Betalat_Lån*Angivna_Värden,Ränta,\"\"), \"\")","v":""},{"$f":"IFERROR(IF(Ej_Betalat_Lån*Angivna_Värden,Utgående_Saldo,\"\"), \"\")","v":""}]
[null,{"$f":"IFERROR(IF(Ej_Betalat_Lån*Angivna_Värden,Betalningsnummer,\"\"), \"\")","v":""},{"$f":"IFERROR(IF(Ej_Betalat_Lån*Angivna_Värden,Betalningsdatum,\"\"), \"\")","v":""},{"$f":"IFERROR(IF(Ej_Betalat_Lån*Angivna_Värden,Ingående_Saldo,\"\"), \"\")","v":""},{"$f":"IFERROR(IF(Ej_Betalat_Lån*Angivna_Värden,Månadsbetalning,\"\"), \"\")","v":""},{"$f":"IFERROR(IF(Ej_Betalat_Lån*Angivna_Värden,Amortering,\"\"), \"\")","v":""},{"$f":"IFERROR(IF(Ej_Betalat_Lån*Angivna_Värden,Ränta,\"\"), \"\")","v":""},{"$f":"IFERROR(IF(Ej_Betalat_Lån*Angivna_Värden,Utgående_Saldo,\"\"), \"\")","v":""}]
[null,{"$f":"IFERROR(IF(Ej_Betalat_Lån*Angivna_Värden,Betalningsnummer,\"\"), \"\")","v":""},{"$f":"IFERROR(IF(Ej_Betalat_Lån*Angivna_Värden,Betalningsdatum,\"\"), \"\")","v":""},{"$f":"IFERROR(IF(Ej_Betalat_Lån*Angivna_Värden,Ingående_Saldo,\"\"), \"\")","v":""},{"$f":"IFERROR(IF(Ej_Betalat_Lån*Angivna_Värden,Månadsbetalning,\"\"), \"\")","v":""},{"$f":"IFERROR(IF(Ej_Betalat_Lån*Angivna_Värden,Amortering,\"\"), \"\")","v":""},{"$f":"IFERROR(IF(Ej_Betalat_Lån*Angivna_Värden,Ränta,\"\"), \"\")","v":""},{"$f":"IFERROR(IF(Ej_Betalat_Lån*Angivna_Värden,Utgående_Saldo,\"\"), \"\")","v":""}]
[null,{"$f":"IFERROR(IF(Ej_Betalat_Lån*Angivna_Värden,Betalningsnummer,\"\"), \"\")","v":""},{"$f":"IFERROR(IF(Ej_Betalat_Lån*Angivna_Värden,Betalningsdatum,\"\"), \"\")","v":""},{"$f":"IFERROR(IF(Ej_Betalat_Lån*Angivna_Värden,Ingående_Saldo,\"\"), \"\")","v":""},{"$f":"IFERROR(IF(Ej_Betalat_Lån*Angivna_Värden,Månadsbetalning,\"\"), \"\")","v":""},{"$f":"IFERROR(IF(Ej_Betalat_Lån*Angivna_Värden,Amortering,\"\"), \"\")","v":""},{"$f":"IFERROR(IF(Ej_Betalat_Lån*Angivna_Värden,Ränta,\"\"), \"\")","v":""},{"$f":"IFERROR(IF(Ej_Betalat_Lån*Angivna_Värden,Utgående_Saldo,\"\"), \"\")","v":""}]
[null,{"$f":"IFERROR(IF(Ej_Betalat_Lån*Angivna_Värden,Betalningsnummer,\"\"), \"\")","v":""},{"$f":"IFERROR(IF(Ej_Betalat_Lån*Angivna_Värden,Betalningsdatum,\"\"), \"\")","v":""},{"$f":"IFERROR(IF(Ej_Betalat_Lån*Angivna_Värden,Ingående_Saldo,\"\"), \"\")","v":""},{"$f":"IFERROR(IF(Ej_Betalat_Lån*Angivna_Värden,Månadsbetalning,\"\"), \"\")","v":""},{"$f":"IFERROR(IF(Ej_Betalat_Lån*Angivna_Värden,Amortering,\"\"), \"\")","v":""},{"$f":"IFERROR(IF(Ej_Betalat_Lån*Angivna_Värden,Ränta,\"\"), \"\")","v":""},{"$f":"IFERROR(IF(Ej_Betalat_Lån*Angivna_Värden,Utgående_Saldo,\"\"), \"\")","v":""}]
[null,{"$f":"IFERROR(IF(Ej_Betalat_Lån*Angivna_Värden,Betalningsnummer,\"\"), \"\")","v":""},{"$f":"IFERROR(IF(Ej_Betalat_Lån*Angivna_Värden,Betalningsdatum,\"\"), \"\")","v":""},{"$f":"IFERROR(IF(Ej_Betalat_Lån*Angivna_Värden,Ingående_Saldo,\"\"), \"\")","v":""},{"$f":"IFERROR(IF(Ej_Betalat_Lån*Angivna_Värden,Månadsbetalning,\"\"), \"\")","v":""},{"$f":"IFERROR(IF(Ej_Betalat_Lån*Angivna_Värden,Amortering,\"\"), \"\")","v":""},{"$f":"IFERROR(IF(Ej_Betalat_Lån*Angivna_Värden,Ränta,\"\"), \"\")","v":""},{"$f":"IFERROR(IF(Ej_Betalat_Lån*Angivna_Värden,Utgående_Saldo,\"\"), \"\")","v":""}]
[null,{"$f":"IFERROR(IF(Ej_Betalat_Lån*Angivna_Värden,Betalningsnummer,\"\"), \"\")","v":""},{"$f":"IFERROR(IF(Ej_Betalat_Lån*Angivna_Värden,Betalningsdatum,\"\"), \"\")","v":""},{"$f":"IFERROR(IF(Ej_Betalat_Lån*Angivna_Värden,Ingående_Saldo,\"\"), \"\")","v":""},{"$f":"IFERROR(IF(Ej_Betalat_Lån*Angivna_Värden,Månadsbetalning,\"\"), \"\")","v":""},{"$f":"IFERROR(IF(Ej_Betalat_Lån*Angivna_Värden,Amortering,\"\"), \"\")","v":""},{"$f":"IFERROR(IF(Ej_Betalat_Lån*Angivna_Värden,Ränta,\"\"), \"\")","v":""},{"$f":"IFERROR(IF(Ej_Betalat_Lån*Angivna_Värden,Utgående_Saldo,\"\"), \"\")","v":""}]
[null,{"$f":"IFERROR(IF(Ej_Betalat_Lån*Angivna_Värden,Betalningsnummer,\"\"), \"\")","v":""},{"$f":"IFERROR(IF(Ej_Betalat_Lån*Angivna_Värden,Betalningsdatum,\"\"), \"\")","v":""},{"$f":"IFERROR(IF(Ej_Betalat_Lån*Angivna_Värden,Ingående_Saldo,\"\"), \"\")","v":""},{"$f":"IFERROR(IF(Ej_Betalat_Lån*Angivna_Värden,Månadsbetalning,\"\"), \"\")","v":""},{"$f":"IFERROR(IF(Ej_Betalat_Lån*Angivna_Värden,Amortering,\"\"), \"\")","v":""},{"$f":"IFERROR(IF(Ej_Betalat_Lån*Angivna_Värden,Ränta,\"\"), \"\")","v":""},{"$f":"IFERROR(IF(Ej_Betalat_Lån*Angivna_Värden,Utgående_Saldo,\"\"), \"\")","v":""}]
[null,{"$f":"IFERROR(IF(Ej_Betalat_Lån*Angivna_Värden,Betalningsnummer,\"\"), \"\")","v":""},{"$f":"IFERROR(IF(Ej_Betalat_Lån*Angivna_Värden,Betalningsdatum,\"\"), \"\")","v":""},{"$f":"IFERROR(IF(Ej_Betalat_Lån*Angivna_Värden,Ingående_Saldo,\"\"), \"\")","v":""},{"$f":"IFERROR(IF(Ej_Betalat_Lån*Angivna_Värden,Månadsbetalning,\"\"), \"\")","v":""},{"$f":"IFERROR(IF(Ej_Betalat_Lån*Angivna_Värden,Amortering,\"\"), \"\")","v":""},{"$f":"IFERROR(IF(Ej_Betalat_Lån*Angivna_Värden,Ränta,\"\"), \"\")","v":""},{"$f":"IFERROR(IF(Ej_Betalat_Lån*Angivna_Värden,Utgående_Saldo,\"\"), \"\")","v":""}]
[null,{"$f":"IFERROR(IF(Ej_Betalat_Lån*Angivna_Värden,Betalningsnummer,\"\"), \"\")","v":""},{"$f":"IFERROR(IF(Ej_Betalat_Lån*Angivna_Värden,Betalningsdatum,\"\"), \"\")","v":""},{"$f":"IFERROR(IF(Ej_Betalat_Lån*Angivna_Värden,Ingående_Saldo,\"\"), \"\")","v":""},{"$f":"IFERROR(IF(Ej_Betalat_Lån*Angivna_Värden,Månadsbetalning,\"\"), \"\")","v":""},{"$f":"IFERROR(IF(Ej_Betalat_Lån*Angivna_Värden,Amortering,\"\"), \"\")","v":""},{"$f":"IFERROR(IF(Ej_Betalat_Lån*Angivna_Värden,Ränta,\"\"), \"\")","v":""},{"$f":"IFERROR(IF(Ej_Betalat_Lån*Angivna_Värden,Utgående_Saldo,\"\"), \"\")","v":""}]
[null,{"$f":"IFERROR(IF(Ej_Betalat_Lån*Angivna_Värden,Betalningsnummer,\"\"), \"\")","v":""},{"$f":"IFERROR(IF(Ej_Betalat_Lån*Angivna_Värden,Betalningsdatum,\"\"), \"\")","v":""},{"$f":"IFERROR(IF(Ej_Betalat_Lån*Angivna_Värden,Ingående_Saldo,\"\"), \"\")","v":""},{"$f":"IFERROR(IF(Ej_Betalat_Lån*Angivna_Värden,Månadsbetalning,\"\"), \"\")","v":""},{"$f":"IFERROR(IF(Ej_Betalat_Lån*Angivna_Värden,Amortering,\"\"), \"\")","v":""},{"$f":"IFERROR(IF(Ej_Betalat_Lån*Angivna_Värden,Ränta,\"\"), \"\")","v":""},{"$f":"IFERROR(IF(Ej_Betalat_Lån*Angivna_Värden,Utgående_Saldo,\"\"), \"\")","v":""}]
[null,{"$f":"IFERROR(IF(Ej_Betalat_Lån*Angivna_Värden,Betalningsnummer,\"\"), \"\")","v":""},{"$f":"IFERROR(IF(Ej_Betalat_Lån*Angivna_Värden,Betalningsdatum,\"\"), \"\")","v":""},{"$f":"IFERROR(IF(Ej_Betalat_Lån*Angivna_Värden,Ingående_Saldo,\"\"), \"\")","v":""},{"$f":"IFERROR(IF(Ej_Betalat_Lån*Angivna_Värden,Månadsbetalning,\"\"), \"\")","v":""},{"$f":"IFERROR(IF(Ej_Betalat_Lån*Angivna_Värden,Amortering,\"\"), \"\")","v":""},{"$f":"IFERROR(IF(Ej_Betalat_Lån*Angivna_Värden,Ränta,\"\"), \"\")","v":""},{"$f":"IFERROR(IF(Ej_Betalat_Lån*Angivna_Värden,Utgående_Saldo,\"\"), \"\")","v":""}]
[null,{"$f":"IFERROR(IF(Ej_Betalat_Lån*Angivna_Värden,Betalningsnummer,\"\"), \"\")","v":""},{"$f":"IFERROR(IF(Ej_Betalat_Lån*Angivna_Värden,Betalningsdatum,\"\"), \"\")","v":""},{"$f":"IFERROR(IF(Ej_Betalat_Lån*Angivna_Värden,Ingående_Saldo,\"\"), \"\")","v":""},{"$f":"IFERROR(IF(Ej_Betalat_Lån*Angivna_Värden,Månadsbetalning,\"\"), \"\")","v":""},{"$f":"IFERROR(IF(Ej_Betalat_Lån*Angivna_Värden,Amortering,\"\"), \"\")","v":""},{"$f":"IFERROR(IF(Ej_Betalat_Lån*Angivna_Värden,Ränta,\"\"), \"\")","v":""},{"$f":"IFERROR(IF(Ej_Betalat_Lån*Angivna_Värden,Utgående_Saldo,\"\"), \"\")","v":""}]
[null,{"$f":"IFERROR(IF(Ej_Betalat_Lån*Angivna_Värden,Betalningsnummer,\"\"), \"\")","v":""},{"$f":"IFERROR(IF(Ej_Betalat_Lån*Angivna_Värden,Betalningsdatum,\"\"), \"\")","v":""},{"$f":"IFERROR(IF(Ej_Betalat_Lån*Angivna_Värden,Ingående_Saldo,\"\"), \"\")","v":""},{"$f":"IFERROR(IF(Ej_Betalat_Lån*Angivna_Värden,Månadsbetalning,\"\"), \"\")","v":""},{"$f":"IFERROR(IF(Ej_Betalat_Lån*Angivna_Värden,Amortering,\"\"), \"\")","v":""},{"$f":"IFERROR(IF(Ej_Betalat_Lån*Angivna_Värden,Ränta,\"\"), \"\")","v":""},{"$f":"IFERROR(IF(Ej_Betalat_Lån*Angivna_Värden,Utgående_Saldo,\"\"), \"\")","v":""}]
[null,{"$f":"IFERROR(IF(Ej_Betalat_Lån*Angivna_Värden,Betalningsnummer,\"\"), \"\")","v":""},{"$f":"IFERROR(IF(Ej_Betalat_Lån*Angivna_Värden,Betalningsdatum,\"\"), \"\")","v":""},{"$f":"IFERROR(IF(Ej_Betalat_Lån*Angivna_Värden,Ingående_Saldo,\"\"), \"\")","v":""},{"$f":"IFERROR(IF(Ej_Betalat_Lån*Angivna_Värden,Månadsbetalning,\"\"), \"\")","v":""},{"$f":"IFERROR(IF(Ej_Betalat_Lån*Angivna_Värden,Amortering,\"\"), \"\")","v":""},{"$f":"IFERROR(IF(Ej_Betalat_Lån*Angivna_Värden,Ränta,\"\"), \"\")","v":""},{"$f":"IFERROR(IF(Ej_Betalat_Lån*Angivna_Värden,Utgående_Saldo,\"\"), \"\")","v":""}]
[null,{"$f":"IFERROR(IF(Ej_Betalat_Lån*Angivna_Värden,Betalningsnummer,\"\"), \"\")","v":""},{"$f":"IFERROR(IF(Ej_Betalat_Lån*Angivna_Värden,Betalningsdatum,\"\"), \"\")","v":""},{"$f":"IFERROR(IF(Ej_Betalat_Lån*Angivna_Värden,Ingående_Saldo,\"\"), \"\")","v":""},{"$f":"IFERROR(IF(Ej_Betalat_Lån*Angivna_Värden,Månadsbetalning,\"\"), \"\")","v":""},{"$f":"IFERROR(IF(Ej_Betalat_Lån*Angivna_Värden,Amortering,\"\"), \"\")","v":""},{"$f":"IFERROR(IF(Ej_Betalat_Lån*Angivna_Värden,Ränta,\"\"), \"\")","v":""},{"$f":"IFERROR(IF(Ej_Betalat_Lån*Angivna_Värden,Utgående_Saldo,\"\"), \"\")","v":""}]
[null,{"$f":"IFERROR(IF(Ej_Betalat_Lån*Angivna_Värden,Betalningsnummer,\"\"), \"\")","v":""},{"$f":"IFERROR(IF(Ej_Betalat_Lån*Angivna_Värden,Betalningsdatum,\"\"), \"\")","v":""},{"$f":"IFERROR(IF(Ej_Betalat_Lån*Angivna_Värden,Ingående_Saldo,\"\"), \"\")","v":""},{"$f":"IFERROR(IF(Ej_Betalat_Lån*Angivna_Värden,Månadsbetalning,\"\"), \"\")","v":""},{"$f":"IFERROR(IF(Ej_Betalat_Lån*Angivna_Värden,Amortering,\"\"), \"\")","v":""},{"$f":"IFERROR(IF(Ej_Betalat_Lån*Angivna_Värden,Ränta,\"\"), \"\")","v":""},{"$f":"IFERROR(IF(Ej_Betalat_Lån*Angivna_Värden,Utgående_Saldo,\"\"), \"\")","v":""}]
[null,{"$f":"IFERROR(IF(Ej_Betalat_Lån*Angivna_Värden,Betalningsnummer,\"\"), \"\")","v":""},{"$f":"IFERROR(IF(Ej_Betalat_Lån*Angivna_Värden,Betalningsdatum,\"\"), \"\")","v":""},{"$f":"IFERROR(IF(Ej_Betalat_Lån*Angivna_Värden,Ingående_Saldo,\"\"), \"\")","v":""},{"$f":"IFERROR(IF(Ej_Betalat_Lån*Angivna_Värden,Månadsbetalning,\"\"), \"\")","v":""},{"$f":"IFERROR(IF(Ej_Betalat_Lån*Angivna_Värden,Amortering,\"\"), \"\")","v":""},{"$f":"IFERROR(IF(Ej_Betalat_Lån*Angivna_Värden,Ränta,\"\"), \"\")","v":""},{"$f":"IFERROR(IF(Ej_Betalat_Lån*Angivna_Värden,Utgående_Saldo,\"\"), \"\")","v":""}]
[null,{"$f":"IFERROR(IF(Ej_Betalat_Lån*Angivna_Värden,Betalningsnummer,\"\"), \"\")","v":""},{"$f":"IFERROR(IF(Ej_Betalat_Lån*Angivna_Värden,Betalningsdatum,\"\"), \"\")","v":""},{"$f":"IFERROR(IF(Ej_Betalat_Lån*Angivna_Värden,Ingående_Saldo,\"\"), \"\")","v":""},{"$f":"IFERROR(IF(Ej_Betalat_Lån*Angivna_Värden,Månadsbetalning,\"\"), \"\")","v":""},{"$f":"IFERROR(IF(Ej_Betalat_Lån*Angivna_Värden,Amortering,\"\"), \"\")","v":""},{"$f":"IFERROR(IF(Ej_Betalat_Lån*Angivna_Värden,Ränta,\"\"), \"\")","v":""},{"$f":"IFERROR(IF(Ej_Betalat_Lån*Angivna_Värden,Utgående_Saldo,\"\"), \"\")","v":""}]
[null,{"$f":"IFERROR(IF(Ej_Betalat_Lån*Angivna_Värden,Betalningsnummer,\"\"), \"\")","v":""},{"$f":"IFERROR(IF(Ej_Betalat_Lån*Angivna_Värden,Betalningsdatum,\"\"), \"\")","v":""},{"$f":"IFERROR(IF(Ej_Betalat_Lån*Angivna_Värden,Ingående_Saldo,\"\"), \"\")","v":""},{"$f":"IFERROR(IF(Ej_Betalat_Lån*Angivna_Värden,Månadsbetalning,\"\"), \"\")","v":""},{"$f":"IFERROR(IF(Ej_Betalat_Lån*Angivna_Värden,Amortering,\"\"), \"\")","v":""},{"$f":"IFERROR(IF(Ej_Betalat_Lån*Angivna_Värden,Ränta,\"\"), \"\")","v":""},{"$f":"IFERROR(IF(Ej_Betalat_Lån*Angivna_Värden,Utgående_Saldo,\"\"), \"\")","v":""}]
[null,{"$f":"IFERROR(IF(Ej_Betalat_Lån*Angivna_Värden,Betalningsnummer,\"\"), \"\")","v":""},{"$f":"IFERROR(IF(Ej_Betalat_Lån*Angivna_Värden,Betalningsdatum,\"\"), \"\")","v":""},{"$f":"IFERROR(IF(Ej_Betalat_Lån*Angivna_Värden,Ingående_Saldo,\"\"), \"\")","v":""},{"$f":"IFERROR(IF(Ej_Betalat_Lån*Angivna_Värden,Månadsbetalning,\"\"), \"\")","v":""},{"$f":"IFERROR(IF(Ej_Betalat_Lån*Angivna_Värden,Amortering,\"\"), \"\")","v":""},{"$f":"IFERROR(IF(Ej_Betalat_Lån*Angivna_Värden,Ränta,\"\"), \"\")","v":""},{"$f":"IFERROR(IF(Ej_Betalat_Lån*Angivna_Värden,Utgående_Saldo,\"\"), \"\")","v":""}]
[null,{"$f":"IFERROR(IF(Ej_Betalat_Lån*Angivna_Värden,Betalningsnummer,\"\"), \"\")","v":""},{"$f":"IFERROR(IF(Ej_Betalat_Lån*Angivna_Värden,Betalningsdatum,\"\"), \"\")","v":""},{"$f":"IFERROR(IF(Ej_Betalat_Lån*Angivna_Värden,Ingående_Saldo,\"\"), \"\")","v":""},{"$f":"IFERROR(IF(Ej_Betalat_Lån*Angivna_Värden,Månadsbetalning,\"\"), \"\")","v":""},{"$f":"IFERROR(IF(Ej_Betalat_Lån*Angivna_Värden,Amortering,\"\"), \"\")","v":""},{"$f":"IFERROR(IF(Ej_Betalat_Lån*Angivna_Värden,Ränta,\"\"), \"\")","v":""},{"$f":"IFERROR(IF(Ej_Betalat_Lån*Angivna_Värden,Utgående_Saldo,\"\"), \"\")","v":""}]
[null,{"$f":"IFERROR(IF(Ej_Betalat_Lån*Angivna_Värden,Betalningsnummer,\"\"), \"\")","v":""},{"$f":"IFERROR(IF(Ej_Betalat_Lån*Angivna_Värden,Betalningsdatum,\"\"), \"\")","v":""},{"$f":"IFERROR(IF(Ej_Betalat_Lån*Angivna_Värden,Ingående_Saldo,\"\"), \"\")","v":""},{"$f":"IFERROR(IF(Ej_Betalat_Lån*Angivna_Värden,Månadsbetalning,\"\"), \"\")","v":""},{"$f":"IFERROR(IF(Ej_Betalat_Lån*Angivna_Värden,Amortering,\"\"), \"\")","v":""},{"$f":"IFERROR(IF(Ej_Betalat_Lån*Angivna_Värden,Ränta,\"\"), \"\")","v":""},{"$f":"IFERROR(IF(Ej_Betalat_Lån*Angivna_Värden,Utgående_Saldo,\"\"), \"\")","v":""}]
[null,{"$f":"IFERROR(IF(Ej_Betalat_Lån*Angivna_Värden,Betalningsnummer,\"\"), \"\")","v":""},{"$f":"IFERROR(IF(Ej_Betalat_Lån*Angivna_Värden,Betalningsdatum,\"\"), \"\")","v":""},{"$f":"IFERROR(IF(Ej_Betalat_Lån*Angivna_Värden,Ingående_Saldo,\"\"), \"\")","v":""},{"$f":"IFERROR(IF(Ej_Betalat_Lån*Angivna_Värden,Månadsbetalning,\"\"), \"\")","v":""},{"$f":"IFERROR(IF(Ej_Betalat_Lån*Angivna_Värden,Amortering,\"\"), \"\")","v":""},{"$f":"IFERROR(IF(Ej_Betalat_Lån*Angivna_Värden,Ränta,\"\"), \"\")","v":""},{"$f":"IFERROR(IF(Ej_Betalat_Lån*Angivna_Värden,Utgående_Saldo,\"\"), \"\")","v":""}]
[null,{"$f":"IFERROR(IF(Ej_Betalat_Lån*Angivna_Värden,Betalningsnummer,\"\"), \"\")","v":""},{"$f":"IFERROR(IF(Ej_Betalat_Lån*Angivna_Värden,Betalningsdatum,\"\"), \"\")","v":""},{"$f":"IFERROR(IF(Ej_Betalat_Lån*Angivna_Värden,Ingående_Saldo,\"\"), \"\")","v":""},{"$f":"IFERROR(IF(Ej_Betalat_Lån*Angivna_Värden,Månadsbetalning,\"\"), \"\")","v":""},{"$f":"IFERROR(IF(Ej_Betalat_Lån*Angivna_Värden,Amortering,\"\"), \"\")","v":""},{"$f":"IFERROR(IF(Ej_Betalat_Lån*Angivna_Värden,Ränta,\"\"), \"\")","v":""},{"$f":"IFERROR(IF(Ej_Betalat_Lån*Angivna_Värden,Utgående_Saldo,\"\"), \"\")","v":""}]
[null,{"$f":"IFERROR(IF(Ej_Betalat_Lån*Angivna_Värden,Betalningsnummer,\"\"), \"\")","v":""},{"$f":"IFERROR(IF(Ej_Betalat_Lån*Angivna_Värden,Betalningsdatum,\"\"), \"\")","v":""},{"$f":"IFERROR(IF(Ej_Betalat_Lån*Angivna_Värden,Ingående_Saldo,\"\"), \"\")","v":""},{"$f":"IFERROR(IF(Ej_Betalat_Lån*Angivna_Värden,Månadsbetalning,\"\"), \"\")","v":""},{"$f":"IFERROR(IF(Ej_Betalat_Lån*Angivna_Värden,Amortering,\"\"), \"\")","v":""},{"$f":"IFERROR(IF(Ej_Betalat_Lån*Angivna_Värden,Ränta,\"\"), \"\")","v":""},{"$f":"IFERROR(IF(Ej_Betalat_Lån*Angivna_Värden,Utgående_Saldo,\"\"), \"\")","v":""}]
[null,{"$f":"IFERROR(IF(Ej_Betalat_Lån*Angivna_Värden,Betalningsnummer,\"\"), \"\")","v":""},{"$f":"IFERROR(IF(Ej_Betalat_Lån*Angivna_Värden,Betalningsdatum,\"\"), \"\")","v":""},{"$f":"IFERROR(IF(Ej_Betalat_Lån*Angivna_Värden,Ingående_Saldo,\"\"), \"\")","v":""},{"$f":"IFERROR(IF(Ej_Betalat_Lån*Angivna_Värden,Månadsbetalning,\"\"), \"\")","v":""},{"$f":"IFERROR(IF(Ej_Betalat_Lån*Angivna_Värden,Amortering,\"\"), \"\")","v":""},{"$f":"IFERROR(IF(Ej_Betalat_Lån*Angivna_Värden,Ränta,\"\"), \"\")","v":""},{"$f":"IFERROR(IF(Ej_Betalat_Lån*Angivna_Värden,Utgående_Saldo,\"\"), \"\")","v":""}]
[null,{"$f":"IFERROR(IF(Ej_Betalat_Lån*Angivna_Värden,Betalningsnummer,\"\"), \"\")","v":""},{"$f":"IFERROR(IF(Ej_Betalat_Lån*Angivna_Värden,Betalningsdatum,\"\"), \"\")","v":""},{"$f":"IFERROR(IF(Ej_Betalat_Lån*Angivna_Värden,Ingående_Saldo,\"\"), \"\")","v":""},{"$f":"IFERROR(IF(Ej_Betalat_Lån*Angivna_Värden,Månadsbetalning,\"\"), \"\")","v":""},{"$f":"IFERROR(IF(Ej_Betalat_Lån*Angivna_Värden,Amortering,\"\"), \"\")","v":""},{"$f":"IFERROR(IF(Ej_Betalat_Lån*Angivna_Värden,Ränta,\"\"), \"\")","v":""},{"$f":"IFERROR(IF(Ej_Betalat_Lån*Angivna_Värden,Utgående_Saldo,\"\"), \"\")","v":""}]
[null,{"$f":"IFERROR(IF(Ej_Betalat_Lån*Angivna_Värden,Betalningsnummer,\"\"), \"\")","v":""},{"$f":"IFERROR(IF(Ej_Betalat_Lån*Angivna_Värden,Betalningsdatum,\"\"), \"\")","v":""},{"$f":"IFERROR(IF(Ej_Betalat_Lån*Angivna_Värden,Ingående_Saldo,\"\"), \"\")","v":""},{"$f":"IFERROR(IF(Ej_Betalat_Lån*Angivna_Värden,Månadsbetalning,\"\"), \"\")","v":""},{"$f":"IFERROR(IF(Ej_Betalat_Lån*Angivna_Värden,Amortering,\"\"), \"\")","v":""},{"$f":"IFERROR(IF(Ej_Betalat_Lån*Angivna_Värden,Ränta,\"\"), \"\")","v":""},{"$f":"IFERROR(IF(Ej_Betalat_Lån*Angivna_Värden,Utgående_Saldo,\"\"), \"\")","v":""}]
[null,{"$f":"IFERROR(IF(Ej_Betalat_Lån*Angivna_Värden,Betalningsnummer,\"\"), \"\")","v":""},{"$f":"IFERROR(IF(Ej_Betalat_Lån*Angivna_Värden,Betalningsdatum,\"\"), \"\")","v":""},{"$f":"IFERROR(IF(Ej_Betalat_Lån*Angivna_Värden,Ingående_Saldo,\"\"), \"\")","v":""},{"$f":"IFERROR(IF(Ej_Betalat_Lån*Angivna_Värden,Månadsbetalning,\"\"), \"\")","v":""},{"$f":"IFERROR(IF(Ej_Betalat_Lån*Angivna_Värden,Amortering,\"\"), \"\")","v":""},{"$f":"IFERROR(IF(Ej_Betalat_Lån*Angivna_Värden,Ränta,\"\"), \"\")","v":""},{"$f":"IFERROR(IF(Ej_Betalat_Lån*Angivna_Värden,Utgående_Saldo,\"\"), \"\")","v":""}]
[null,{"$f":"IFERROR(IF(Ej_Betalat_Lån*Angivna_Värden,Betalningsnummer,\"\"), \"\")","v":""},{"$f":"IFERROR(IF(Ej_Betalat_Lån*Angivna_Värden,Betalningsdatum,\"\"), \"\")","v":""},{"$f":"IFERROR(IF(Ej_Betalat_Lån*Angivna_Värden,Ingående_Saldo,\"\"), \"\")","v":""},{"$f":"IFERROR(IF(Ej_Betalat_Lån*Angivna_Värden,Månadsbetalning,\"\"), \"\")","v":""},{"$f":"IFERROR(IF(Ej_Betalat_Lån*Angivna_Värden,Amortering,\"\"), \"\")","v":""},{"$f":"IFERROR(IF(Ej_Betalat_Lån*Angivna_Värden,Ränta,\"\"), \"\")","v":""},{"$f":"IFERROR(IF(Ej_Betalat_Lån*Angivna_Värden,Utgående_Saldo,\"\"), \"\")","v":""}]
[null,{"$f":"IFERROR(IF(Ej_Betalat_Lån*Angivna_Värden,Betalningsnummer,\"\"), \"\")","v":""},{"$f":"IFERROR(IF(Ej_Betalat_Lån*Angivna_Värden,Betalningsdatum,\"\"), \"\")","v":""},{"$f":"IFERROR(IF(Ej_Betalat_Lån*Angivna_Värden,Ingående_Saldo,\"\"), \"\")","v":""},{"$f":"IFERROR(IF(Ej_Betalat_Lån*Angivna_Värden,Månadsbetalning,\"\"), \"\")","v":""},{"$f":"IFERROR(IF(Ej_Betalat_Lån*Angivna_Värden,Amortering,\"\"), \"\")","v":""},{"$f":"IFERROR(IF(Ej_Betalat_Lån*Angivna_Värden,Ränta,\"\"), \"\")","v":""},{"$f":"IFERROR(IF(Ej_Betalat_Lån*Angivna_Värden,Utgående_Saldo,\"\"), \"\")","v":""}]
[null,{"$f":"IFERROR(IF(Ej_Betalat_Lån*Angivna_Värden,Betalningsnummer,\"\"), \"\")","v":""},{"$f":"IFERROR(IF(Ej_Betalat_Lån*Angivna_Värden,Betalningsdatum,\"\"), \"\")","v":""},{"$f":"IFERROR(IF(Ej_Betalat_Lån*Angivna_Värden,Ingående_Saldo,\"\"), \"\")","v":""},{"$f":"IFERROR(IF(Ej_Betalat_Lån*Angivna_Värden,Månadsbetalning,\"\"), \"\")","v":""},{"$f":"IFERROR(IF(Ej_Betalat_Lån*Angivna_Värden,Amortering,\"\"), \"\")","v":""},{"$f":"IFERROR(IF(Ej_Betalat_Lån*Angivna_Värden,Ränta,\"\"), \"\")","v":""},{"$f":"IFERROR(IF(Ej_Betalat_Lån*Angivna_Värden,Utgående_Saldo,\"\"), \"\")","v":""}]
[null,{"$f":"IFERROR(IF(Ej_Betalat_Lån*Angivna_Värden,Betalningsnummer,\"\"), \"\")","v":""},{"$f":"IFERROR(IF(Ej_Betalat_Lån*Angivna_Värden,Betalningsdatum,\"\"), \"\")","v":""},{"$f":"IFERROR(IF(Ej_Betalat_Lån*Angivna_Värden,Ingående_Saldo,\"\"), \"\")","v":""},{"$f":"IFERROR(IF(Ej_Betalat_Lån*Angivna_Värden,Månadsbetalning,\"\"), \"\")","v":""},{"$f":"IFERROR(IF(Ej_Betalat_Lån*Angivna_Värden,Amortering,\"\"), \"\")","v":""},{"$f":"IFERROR(IF(Ej_Betalat_Lån*Angivna_Värden,Ränta,\"\"), \"\")","v":""},{"$f":"IFERROR(IF(Ej_Betalat_Lån*Angivna_Värden,Utgående_Saldo,\"\"), \"\")","v":""}]
[null,{"$f":"IFERROR(IF(Ej_Betalat_Lån*Angivna_Värden,Betalningsnummer,\"\"), \"\")","v":""},{"$f":"IFERROR(IF(Ej_Betalat_Lån*Angivna_Värden,Betalningsdatum,\"\"), \"\")","v":""},{"$f":"IFERROR(IF(Ej_Betalat_Lån*Angivna_Värden,Ingående_Saldo,\"\"), \"\")","v":""},{"$f":"IFERROR(IF(Ej_Betalat_Lån*Angivna_Värden,Månadsbetalning,\"\"), \"\")","v":""},{"$f":"IFERROR(IF(Ej_Betalat_Lån*Angivna_Värden,Amortering,\"\"), \"\")","v":""},{"$f":"IFERROR(IF(Ej_Betalat_Lån*Angivna_Värden,Ränta,\"\"), \"\")","v":""},{"$f":"IFERROR(IF(Ej_Betalat_Lån*Angivna_Värden,Utgående_Saldo,\"\"), \"\")","v":""}]
[null,{"$f":"IFERROR(IF(Ej_Betalat_Lån*Angivna_Värden,Betalningsnummer,\"\"), \"\")","v":""},{"$f":"IFERROR(IF(Ej_Betalat_Lån*Angivna_Värden,Betalningsdatum,\"\"), \"\")","v":""},{"$f":"IFERROR(IF(Ej_Betalat_Lån*Angivna_Värden,Ingående_Saldo,\"\"), \"\")","v":""},{"$f":"IFERROR(IF(Ej_Betalat_Lån*Angivna_Värden,Månadsbetalning,\"\"), \"\")","v":""},{"$f":"IFERROR(IF(Ej_Betalat_Lån*Angivna_Värden,Amortering,\"\"), \"\")","v":""},{"$f":"IFERROR(IF(Ej_Betalat_Lån*Angivna_Värden,Ränta,\"\"), \"\")","v":""},{"$f":"IFERROR(IF(Ej_Betalat_Lån*Angivna_Värden,Utgående_Saldo,\"\"), \"\")","v":""}]
[null,{"$f":"IFERROR(IF(Ej_Betalat_Lån*Angivna_Värden,Betalningsnummer,\"\"), \"\")","v":""},{"$f":"IFERROR(IF(Ej_Betalat_Lån*Angivna_Värden,Betalningsdatum,\"\"), \"\")","v":""},{"$f":"IFERROR(IF(Ej_Betalat_Lån*Angivna_Värden,Ingående_Saldo,\"\"), \"\")","v":""},{"$f":"IFERROR(IF(Ej_Betalat_Lån*Angivna_Värden,Månadsbetalning,\"\"), \"\")","v":""},{"$f":"IFERROR(IF(Ej_Betalat_Lån*Angivna_Värden,Amortering,\"\"), \"\")","v":""},{"$f":"IFERROR(IF(Ej_Betalat_Lån*Angivna_Värden,Ränta,\"\"), \"\")","v":""},{"$f":"IFERROR(IF(Ej_Betalat_Lån*Angivna_Värden,Utgående_Saldo,\"\"), \"\")","v":""}]
[null,{"$f":"IFERROR(IF(Ej_Betalat_Lån*Angivna_Värden,Betalningsnummer,\"\"), \"\")","v":""},{"$f":"IFERROR(IF(Ej_Betalat_Lån*Angivna_Värden,Betalningsdatum,\"\"), \"\")","v":""},{"$f":"IFERROR(IF(Ej_Betalat_Lån*Angivna_Värden,Ingående_Saldo,\"\"), \"\")","v":""},{"$f":"IFERROR(IF(Ej_Betalat_Lån*Angivna_Värden,Månadsbetalning,\"\"), \"\")","v":""},{"$f":"IFERROR(IF(Ej_Betalat_Lån*Angivna_Värden,Amortering,\"\"), \"\")","v":""},{"$f":"IFERROR(IF(Ej_Betalat_Lån*Angivna_Värden,Ränta,\"\"), \"\")","v":""},{"$f":"IFERROR(IF(Ej_Betalat_Lån*Angivna_Värden,Utgående_Saldo,\"\"), \"\")","v":""}]
[null,{"$f":"IFERROR(IF(Ej_Betalat_Lån*Angivna_Värden,Betalningsnummer,\"\"), \"\")","v":""},{"$f":"IFERROR(IF(Ej_Betalat_Lån*Angivna_Värden,Betalningsdatum,\"\"), \"\")","v":""},{"$f":"IFERROR(IF(Ej_Betalat_Lån*Angivna_Värden,Ingående_Saldo,\"\"), \"\")","v":""},{"$f":"IFERROR(IF(Ej_Betalat_Lån*Angivna_Värden,Månadsbetalning,\"\"), \"\")","v":""},{"$f":"IFERROR(IF(Ej_Betalat_Lån*Angivna_Värden,Amortering,\"\"), \"\")","v":""},{"$f":"IFERROR(IF(Ej_Betalat_Lån*Angivna_Värden,Ränta,\"\"), \"\")","v":""},{"$f":"IFERROR(IF(Ej_Betalat_Lån*Angivna_Värden,Utgående_Saldo,\"\"), \"\")","v":""}]
[null,{"$f":"IFERROR(IF(Ej_Betalat_Lån*Angivna_Värden,Betalningsnummer,\"\"), \"\")","v":""},{"$f":"IFERROR(IF(Ej_Betalat_Lån*Angivna_Värden,Betalningsdatum,\"\"), \"\")","v":""},{"$f":"IFERROR(IF(Ej_Betalat_Lån*Angivna_Värden,Ingående_Saldo,\"\"), \"\")","v":""},{"$f":"IFERROR(IF(Ej_Betalat_Lån*Angivna_Värden,Månadsbetalning,\"\"), \"\")","v":""},{"$f":"IFERROR(IF(Ej_Betalat_Lån*Angivna_Värden,Amortering,\"\"), \"\")","v":""},{"$f":"IFERROR(IF(Ej_Betalat_Lån*Angivna_Värden,Ränta,\"\"), \"\")","v":""},{"$f":"IFERROR(IF(Ej_Betalat_Lån*Angivna_Värden,Utgående_Saldo,\"\"), \"\")","v":""}]
[null,{"$f":"IFERROR(IF(Ej_Betalat_Lån*Angivna_Värden,Betalningsnummer,\"\"), \"\")","v":""},{"$f":"IFERROR(IF(Ej_Betalat_Lån*Angivna_Värden,Betalningsdatum,\"\"), \"\")","v":""},{"$f":"IFERROR(IF(Ej_Betalat_Lån*Angivna_Värden,Ingående_Saldo,\"\"), \"\")","v":""},{"$f":"IFERROR(IF(Ej_Betalat_Lån*Angivna_Värden,Månadsbetalning,\"\"), \"\")","v":""},{"$f":"IFERROR(IF(Ej_Betalat_Lån*Angivna_Värden,Amortering,\"\"), \"\")","v":""},{"$f":"IFERROR(IF(Ej_Betalat_Lån*Angivna_Värden,Ränta,\"\"), \"\")","v":""},{"$f":"IFERROR(IF(Ej_Betalat_Lån*Angivna_Värden,Utgående_Saldo,\"\"), \"\")","v":""}]
[null,{"$f":"IFERROR(IF(Ej_Betalat_Lån*Angivna_Värden,Betalningsnummer,\"\"), \"\")","v":""},{"$f":"IFERROR(IF(Ej_Betalat_Lån*Angivna_Värden,Betalningsdatum,\"\"), \"\")","v":""},{"$f":"IFERROR(IF(Ej_Betalat_Lån*Angivna_Värden,Ingående_Saldo,\"\"), \"\")","v":""},{"$f":"IFERROR(IF(Ej_Betalat_Lån*Angivna_Värden,Månadsbetalning,\"\"), \"\")","v":""},{"$f":"IFERROR(IF(Ej_Betalat_Lån*Angivna_Värden,Amortering,\"\"), \"\")","v":""},{"$f":"IFERROR(IF(Ej_Betalat_Lån*Angivna_Värden,Ränta,\"\"), \"\")","v":""},{"$f":"IFERROR(IF(Ej_Betalat_Lån*Angivna_Värden,Utgående_Saldo,\"\"), \"\")","v":""}]
[null,{"$f":"IFERROR(IF(Ej_Betalat_Lån*Angivna_Värden,Betalningsnummer,\"\"), \"\")","v":""},{"$f":"IFERROR(IF(Ej_Betalat_Lån*Angivna_Värden,Betalningsdatum,\"\"), \"\")","v":""},{"$f":"IFERROR(IF(Ej_Betalat_Lån*Angivna_Värden,Ingående_Saldo,\"\"), \"\")","v":""},{"$f":"IFERROR(IF(Ej_Betalat_Lån*Angivna_Värden,Månadsbetalning,\"\"), \"\")","v":""},{"$f":"IFERROR(IF(Ej_Betalat_Lån*Angivna_Värden,Amortering,\"\"), \"\")","v":""},{"$f":"IFERROR(IF(Ej_Betalat_Lån*Angivna_Värden,Ränta,\"\"), \"\")","v":""},{"$f":"IFERROR(IF(Ej_Betalat_Lån*Angivna_Värden,Utgående_Saldo,\"\"), \"\")","v":""}]
[null,{"$f":"IFERROR(IF(Ej_Betalat_Lån*Angivna_Värden,Betalningsnummer,\"\"), \"\")","v":""},{"$f":"IFERROR(IF(Ej_Betalat_Lån*Angivna_Värden,Betalningsdatum,\"\"), \"\")","v":""},{"$f":"IFERROR(IF(Ej_Betalat_Lån*Angivna_Värden,Ingående_Saldo,\"\"), \"\")","v":""},{"$f":"IFERROR(IF(Ej_Betalat_Lån*Angivna_Värden,Månadsbetalning,\"\"), \"\")","v":""},{"$f":"IFERROR(IF(Ej_Betalat_Lån*Angivna_Värden,Amortering,\"\"), \"\")","v":""},{"$f":"IFERROR(IF(Ej_Betalat_Lån*Angivna_Värden,Ränta,\"\"), \"\")","v":""},{"$f":"IFERROR(IF(Ej_Betalat_Lån*Angivna_Värden,Utgående_Saldo,\"\"), \"\")","v":""}]
[null,{"$f":"IFERROR(IF(Ej_Betalat_Lån*Angivna_Värden,Betalningsnummer,\"\"), \"\")","v":""},{"$f":"IFERROR(IF(Ej_Betalat_Lån*Angivna_Värden,Betalningsdatum,\"\"), \"\")","v":""},{"$f":"IFERROR(IF(Ej_Betalat_Lån*Angivna_Värden,Ingående_Saldo,\"\"), \"\")","v":""},{"$f":"IFERROR(IF(Ej_Betalat_Lån*Angivna_Värden,Månadsbetalning,\"\"), \"\")","v":""},{"$f":"IFERROR(IF(Ej_Betalat_Lån*Angivna_Värden,Amortering,\"\"), \"\")","v":""},{"$f":"IFERROR(IF(Ej_Betalat_Lån*Angivna_Värden,Ränta,\"\"), \"\")","v":""},{"$f":"IFERROR(IF(Ej_Betalat_Lån*Angivna_Värden,Utgående_Saldo,\"\"), \"\")","v":""}]
[null,{"$f":"IFERROR(IF(Ej_Betalat_Lån*Angivna_Värden,Betalningsnummer,\"\"), \"\")","v":""},{"$f":"IFERROR(IF(Ej_Betalat_Lån*Angivna_Värden,Betalningsdatum,\"\"), \"\")","v":""},{"$f":"IFERROR(IF(Ej_Betalat_Lån*Angivna_Värden,Ingående_Saldo,\"\"), \"\")","v":""},{"$f":"IFERROR(IF(Ej_Betalat_Lån*Angivna_Värden,Månadsbetalning,\"\"), \"\")","v":""},{"$f":"IFERROR(IF(Ej_Betalat_Lån*Angivna_Värden,Amortering,\"\"), \"\")","v":""},{"$f":"IFERROR(IF(Ej_Betalat_Lån*Angivna_Värden,Ränta,\"\"), \"\")","v":""},{"$f":"IFERROR(IF(Ej_Betalat_Lån*Angivna_Värden,Utgående_Saldo,\"\"), \"\")","v":""}]
[null,{"$f":"IFERROR(IF(Ej_Betalat_Lån*Angivna_Värden,Betalningsnummer,\"\"), \"\")","v":""},{"$f":"IFERROR(IF(Ej_Betalat_Lån*Angivna_Värden,Betalningsdatum,\"\"), \"\")","v":""},{"$f":"IFERROR(IF(Ej_Betalat_Lån*Angivna_Värden,Ingående_Saldo,\"\"), \"\")","v":""},{"$f":"IFERROR(IF(Ej_Betalat_Lån*Angivna_Värden,Månadsbetalning,\"\"), \"\")","v":""},{"$f":"IFERROR(IF(Ej_Betalat_Lån*Angivna_Värden,Amortering,\"\"), \"\")","v":""},{"$f":"IFERROR(IF(Ej_Betalat_Lån*Angivna_Värden,Ränta,\"\"), \"\")","v":""},{"$f":"IFERROR(IF(Ej_Betalat_Lån*Angivna_Värden,Utgående_Saldo,\"\"), \"\")","v":""}]
[null,{"$f":"IFERROR(IF(Ej_Betalat_Lån*Angivna_Värden,Betalningsnummer,\"\"), \"\")","v":""},{"$f":"IFERROR(IF(Ej_Betalat_Lån*Angivna_Värden,Betalningsdatum,\"\"), \"\")","v":""},{"$f":"IFERROR(IF(Ej_Betalat_Lån*Angivna_Värden,Ingående_Saldo,\"\"), \"\")","v":""},{"$f":"IFERROR(IF(Ej_Betalat_Lån*Angivna_Värden,Månadsbetalning,\"\"), \"\")","v":""},{"$f":"IFERROR(IF(Ej_Betalat_Lån*Angivna_Värden,Amortering,\"\"), \"\")","v":""},{"$f":"IFERROR(IF(Ej_Betalat_Lån*Angivna_Värden,Ränta,\"\"), \"\")","v":""},{"$f":"IFERROR(IF(Ej_Betalat_Lån*Angivna_Värden,Utgående_Saldo,\"\"), \"\")","v":""}]
[null,{"$f":"IFERROR(IF(Ej_Betalat_Lån*Angivna_Värden,Betalningsnummer,\"\"), \"\")","v":""},{"$f":"IFERROR(IF(Ej_Betalat_Lån*Angivna_Värden,Betalningsdatum,\"\"), \"\")","v":""},{"$f":"IFERROR(IF(Ej_Betalat_Lån*Angivna_Värden,Ingående_Saldo,\"\"), \"\")","v":""},{"$f":"IFERROR(IF(Ej_Betalat_Lån*Angivna_Värden,Månadsbetalning,\"\"), \"\")","v":""},{"$f":"IFERROR(IF(Ej_Betalat_Lån*Angivna_Värden,Amortering,\"\"), \"\")","v":""},{"$f":"IFERROR(IF(Ej_Betalat_Lån*Angivna_Värden,Ränta,\"\"), \"\")","v":""},{"$f":"IFERROR(IF(Ej_Betalat_Lån*Angivna_Värden,Utgående_Saldo,\"\"), \"\")","v":""}]
[null,{"$f":"IFERROR(IF(Ej_Betalat_Lån*Angivna_Värden,Betalningsnummer,\"\"), \"\")","v":""},{"$f":"IFERROR(IF(Ej_Betalat_Lån*Angivna_Värden,Betalningsdatum,\"\"), \"\")","v":""},{"$f":"IFERROR(IF(Ej_Betalat_Lån*Angivna_Värden,Ingående_Saldo,\"\"), \"\")","v":""},{"$f":"IFERROR(IF(Ej_Betalat_Lån*Angivna_Värden,Månadsbetalning,\"\"), \"\")","v":""},{"$f":"IFERROR(IF(Ej_Betalat_Lån*Angivna_Värden,Amortering,\"\"), \"\")","v":""},{"$f":"IFERROR(IF(Ej_Betalat_Lån*Angivna_Värden,Ränta,\"\"), \"\")","v":""},{"$f":"IFERROR(IF(Ej_Betalat_Lån*Angivna_Värden,Utgående_Saldo,\"\"), \"\")","v":""}]
[null,{"$f":"IFERROR(IF(Ej_Betalat_Lån*Angivna_Värden,Betalningsnummer,\"\"), \"\")","v":""},{"$f":"IFERROR(IF(Ej_Betalat_Lån*Angivna_Värden,Betalningsdatum,\"\"), \"\")","v":""},{"$f":"IFERROR(IF(Ej_Betalat_Lån*Angivna_Värden,Ingående_Saldo,\"\"), \"\")","v":""},{"$f":"IFERROR(IF(Ej_Betalat_Lån*Angivna_Värden,Månadsbetalning,\"\"), \"\")","v":""},{"$f":"IFERROR(IF(Ej_Betalat_Lån*Angivna_Värden,Amortering,\"\"), \"\")","v":""},{"$f":"IFERROR(IF(Ej_Betalat_Lån*Angivna_Värden,Ränta,\"\"), \"\")","v":""},{"$f":"IFERROR(IF(Ej_Betalat_Lån*Angivna_Värden,Utgående_Saldo,\"\"), \"\")","v":""}]
[null,{"$f":"IFERROR(IF(Ej_Betalat_Lån*Angivna_Värden,Betalningsnummer,\"\"), \"\")","v":""},{"$f":"IFERROR(IF(Ej_Betalat_Lån*Angivna_Värden,Betalningsdatum,\"\"), \"\")","v":""},{"$f":"IFERROR(IF(Ej_Betalat_Lån*Angivna_Värden,Ingående_Saldo,\"\"), \"\")","v":""},{"$f":"IFERROR(IF(Ej_Betalat_Lån*Angivna_Värden,Månadsbetalning,\"\"), \"\")","v":""},{"$f":"IFERROR(IF(Ej_Betalat_Lån*Angivna_Värden,Amortering,\"\"), \"\")","v":""},{"$f":"IFERROR(IF(Ej_Betalat_Lån*Angivna_Värden,Ränta,\"\"), \"\")","v":""},{"$f":"IFERROR(IF(Ej_Betalat_Lån*Angivna_Värden,Utgående_Saldo,\"\"), \"\")","v":""}]
[null,{"$f":"IFERROR(IF(Ej_Betalat_Lån*Angivna_Värden,Betalningsnummer,\"\"), \"\")","v":""},{"$f":"IFERROR(IF(Ej_Betalat_Lån*Angivna_Värden,Betalningsdatum,\"\"), \"\")","v":""},{"$f":"IFERROR(IF(Ej_Betalat_Lån*Angivna_Värden,Ingående_Saldo,\"\"), \"\")","v":""},{"$f":"IFERROR(IF(Ej_Betalat_Lån*Angivna_Värden,Månadsbetalning,\"\"), \"\")","v":""},{"$f":"IFERROR(IF(Ej_Betalat_Lån*Angivna_Värden,Amortering,\"\"), \"\")","v":""},{"$f":"IFERROR(IF(Ej_Betalat_Lån*Angivna_Värden,Ränta,\"\"), \"\")","v":""},{"$f":"IFERROR(IF(Ej_Betalat_Lån*Angivna_Värden,Utgående_Saldo,\"\"), \"\")","v":""}]
[null,{"$f":"IFERROR(IF(Ej_Betalat_Lån*Angivna_Värden,Betalningsnummer,\"\"), \"\")","v":""},{"$f":"IFERROR(IF(Ej_Betalat_Lån*Angivna_Värden,Betalningsdatum,\"\"), \"\")","v":""},{"$f":"IFERROR(IF(Ej_Betalat_Lån*Angivna_Värden,Ingående_Saldo,\"\"), \"\")","v":""},{"$f":"IFERROR(IF(Ej_Betalat_Lån*Angivna_Värden,Månadsbetalning,\"\"), \"\")","v":""},{"$f":"IFERROR(IF(Ej_Betalat_Lån*Angivna_Värden,Amortering,\"\"), \"\")","v":""},{"$f":"IFERROR(IF(Ej_Betalat_Lån*Angivna_Värden,Ränta,\"\"), \"\")","v":""},{"$f":"IFERROR(IF(Ej_Betalat_Lån*Angivna_Värden,Utgående_Saldo,\"\"), \"\")","v":""}]
[null,{"$f":"IFERROR(IF(Ej_Betalat_Lån*Angivna_Värden,Betalningsnummer,\"\"), \"\")","v":""},{"$f":"IFERROR(IF(Ej_Betalat_Lån*Angivna_Värden,Betalningsdatum,\"\"), \"\")","v":""},{"$f":"IFERROR(IF(Ej_Betalat_Lån*Angivna_Värden,Ingående_Saldo,\"\"), \"\")","v":""},{"$f":"IFERROR(IF(Ej_Betalat_Lån*Angivna_Värden,Månadsbetalning,\"\"), \"\")","v":""},{"$f":"IFERROR(IF(Ej_Betalat_Lån*Angivna_Värden,Amortering,\"\"), \"\")","v":""},{"$f":"IFERROR(IF(Ej_Betalat_Lån*Angivna_Värden,Ränta,\"\"), \"\")","v":""},{"$f":"IFERROR(IF(Ej_Betalat_Lån*Angivna_Värden,Utgående_Saldo,\"\"), \"\")","v":""}]
[null,{"$f":"IFERROR(IF(Ej_Betalat_Lån*Angivna_Värden,Betalningsnummer,\"\"), \"\")","v":""},{"$f":"IFERROR(IF(Ej_Betalat_Lån*Angivna_Värden,Betalningsdatum,\"\"), \"\")","v":""},{"$f":"IFERROR(IF(Ej_Betalat_Lån*Angivna_Värden,Ingående_Saldo,\"\"), \"\")","v":""},{"$f":"IFERROR(IF(Ej_Betalat_Lån*Angivna_Värden,Månadsbetalning,\"\"), \"\")","v":""},{"$f":"IFERROR(IF(Ej_Betalat_Lån*Angivna_Värden,Amortering,\"\"), \"\")","v":""},{"$f":"IFERROR(IF(Ej_Betalat_Lån*Angivna_Värden,Ränta,\"\"), \"\")","v":""},{"$f":"IFERROR(IF(Ej_Betalat_Lån*Angivna_Värden,Utgående_Saldo,\"\"), \"\")","v":""}]
[null,{"$f":"IFERROR(IF(Ej_Betalat_Lån*Angivna_Värden,Betalningsnummer,\"\"), \"\")","v":""},{"$f":"IFERROR(IF(Ej_Betalat_Lån*Angivna_Värden,Betalningsdatum,\"\"), \"\")","v":""},{"$f":"IFERROR(IF(Ej_Betalat_Lån*Angivna_Värden,Ingående_Saldo,\"\"), \"\")","v":""},{"$f":"IFERROR(IF(Ej_Betalat_Lån*Angivna_Värden,Månadsbetalning,\"\"), \"\")","v":""},{"$f":"IFERROR(IF(Ej_Betalat_Lån*Angivna_Värden,Amortering,\"\"), \"\")","v":""},{"$f":"IFERROR(IF(Ej_Betalat_Lån*Angivna_Värden,Ränta,\"\"), \"\")","v":""},{"$f":"IFERROR(IF(Ej_Betalat_Lån*Angivna_Värden,Utgående_Saldo,\"\"), \"\")","v":""}]
[null,{"$f":"IFERROR(IF(Ej_Betalat_Lån*Angivna_Värden,Betalningsnummer,\"\"), \"\")","v":""},{"$f":"IFERROR(IF(Ej_Betalat_Lån*Angivna_Värden,Betalningsdatum,\"\"), \"\")","v":""},{"$f":"IFERROR(IF(Ej_Betalat_Lån*Angivna_Värden,Ingående_Saldo,\"\"), \"\")","v":""},{"$f":"IFERROR(IF(Ej_Betalat_Lån*Angivna_Värden,Månadsbetalning,\"\"), \"\")","v":""},{"$f":"IFERROR(IF(Ej_Betalat_Lån*Angivna_Värden,Amortering,\"\"), \"\")","v":""},{"$f":"IFERROR(IF(Ej_Betalat_Lån*Angivna_Värden,Ränta,\"\"), \"\")","v":""},{"$f":"IFERROR(IF(Ej_Betalat_Lån*Angivna_Värden,Utgående_Saldo,\"\"), \"\")","v":""}]
[null,{"$f":"IFERROR(IF(Ej_Betalat_Lån*Angivna_Värden,Betalningsnummer,\"\"), \"\")","v":""},{"$f":"IFERROR(IF(Ej_Betalat_Lån*Angivna_Värden,Betalningsdatum,\"\"), \"\")","v":""},{"$f":"IFERROR(IF(Ej_Betalat_Lån*Angivna_Värden,Ingående_Saldo,\"\"), \"\")","v":""},{"$f":"IFERROR(IF(Ej_Betalat_Lån*Angivna_Värden,Månadsbetalning,\"\"), \"\")","v":""},{"$f":"IFERROR(IF(Ej_Betalat_Lån*Angivna_Värden,Amortering,\"\"), \"\")","v":""},{"$f":"IFERROR(IF(Ej_Betalat_Lån*Angivna_Värden,Ränta,\"\"), \"\")","v":""},{"$f":"IFERROR(IF(Ej_Betalat_Lån*Angivna_Värden,Utgående_Saldo,\"\"), \"\")","v":""}]
[null,{"$f":"IFERROR(IF(Ej_Betalat_Lån*Angivna_Värden,Betalningsnummer,\"\"), \"\")","v":""},{"$f":"IFERROR(IF(Ej_Betalat_Lån*Angivna_Värden,Betalningsdatum,\"\"), \"\")","v":""},{"$f":"IFERROR(IF(Ej_Betalat_Lån*Angivna_Värden,Ingående_Saldo,\"\"), \"\")","v":""},{"$f":"IFERROR(IF(Ej_Betalat_Lån*Angivna_Värden,Månadsbetalning,\"\"), \"\")","v":""},{"$f":"IFERROR(IF(Ej_Betalat_Lån*Angivna_Värden,Amortering,\"\"), \"\")","v":""},{"$f":"IFERROR(IF(Ej_Betalat_Lån*Angivna_Värden,Ränta,\"\"), \"\")","v":""},{"$f":"IFERROR(IF(Ej_Betalat_Lån*Angivna_Värden,Utgående_Saldo,\"\"), \"\")","v":""}]
[null,{"$f":"IFERROR(IF(Ej_Betalat_Lån*Angivna_Värden,Betalningsnummer,\"\"), \"\")","v":""},{"$f":"IFERROR(IF(Ej_Betalat_Lån*Angivna_Värden,Betalningsdatum,\"\"), \"\")","v":""},{"$f":"IFERROR(IF(Ej_Betalat_Lån*Angivna_Värden,Ingående_Saldo,\"\"), \"\")","v":""},{"$f":"IFERROR(IF(Ej_Betalat_Lån*Angivna_Värden,Månadsbetalning,\"\"), \"\")","v":""},{"$f":"IFERROR(IF(Ej_Betalat_Lån*Angivna_Värden,Amortering,\"\"), \"\")","v":""},{"$f":"IFERROR(IF(Ej_Betalat_Lån*Angivna_Värden,Ränta,\"\"), \"\")","v":""},{"$f":"IFERROR(IF(Ej_Betalat_Lån*Angivna_Värden,Utgående_Saldo,\"\"), \"\")","v":""}]
[null,{"$f":"IFERROR(IF(Ej_Betalat_Lån*Angivna_Värden,Betalningsnummer,\"\"), \"\")","v":""},{"$f":"IFERROR(IF(Ej_Betalat_Lån*Angivna_Värden,Betalningsdatum,\"\"), \"\")","v":""},{"$f":"IFERROR(IF(Ej_Betalat_Lån*Angivna_Värden,Ingående_Saldo,\"\"), \"\")","v":""},{"$f":"IFERROR(IF(Ej_Betalat_Lån*Angivna_Värden,Månadsbetalning,\"\"), \"\")","v":""},{"$f":"IFERROR(IF(Ej_Betalat_Lån*Angivna_Värden,Amortering,\"\"), \"\")","v":""},{"$f":"IFERROR(IF(Ej_Betalat_Lån*Angivna_Värden,Ränta,\"\"), \"\")","v":""},{"$f":"IFERROR(IF(Ej_Betalat_Lån*Angivna_Värden,Utgående_Saldo,\"\"), \"\")","v":""}]
[null,{"$f":"IFERROR(IF(Ej_Betalat_Lån*Angivna_Värden,Betalningsnummer,\"\"), \"\")","v":""},{"$f":"IFERROR(IF(Ej_Betalat_Lån*Angivna_Värden,Betalningsdatum,\"\"), \"\")","v":""},{"$f":"IFERROR(IF(Ej_Betalat_Lån*Angivna_Värden,Ingående_Saldo,\"\"), \"\")","v":""},{"$f":"IFERROR(IF(Ej_Betalat_Lån*Angivna_Värden,Månadsbetalning,\"\"), \"\")","v":""},{"$f":"IFERROR(IF(Ej_Betalat_Lån*Angivna_Värden,Amortering,\"\"), \"\")","v":""},{"$f":"IFERROR(IF(Ej_Betalat_Lån*Angivna_Värden,Ränta,\"\"), \"\")","v":""},{"$f":"IFERROR(IF(Ej_Betalat_Lån*Angivna_Värden,Utgående_Saldo,\"\"), \"\")","v":""}]
[null,{"$f":"IFERROR(IF(Ej_Betalat_Lån*Angivna_Värden,Betalningsnummer,\"\"), \"\")","v":""},{"$f":"IFERROR(IF(Ej_Betalat_Lån*Angivna_Värden,Betalningsdatum,\"\"), \"\")","v":""},{"$f":"IFERROR(IF(Ej_Betalat_Lån*Angivna_Värden,Ingående_Saldo,\"\"), \"\")","v":""},{"$f":"IFERROR(IF(Ej_Betalat_Lån*Angivna_Värden,Månadsbetalning,\"\"), \"\")","v":""},{"$f":"IFERROR(IF(Ej_Betalat_Lån*Angivna_Värden,Amortering,\"\"), \"\")","v":""},{"$f":"IFERROR(IF(Ej_Betalat_Lån*Angivna_Värden,Ränta,\"\"), \"\")","v":""},{"$f":"IFERROR(IF(Ej_Betalat_Lån*Angivna_Värden,Utgående_Saldo,\"\"), \"\")","v":""}]
[null,{"$f":"IFERROR(IF(Ej_Betalat_Lån*Angivna_Värden,Betalningsnummer,\"\"), \"\")","v":""},{"$f":"IFERROR(IF(Ej_Betalat_Lån*Angivna_Värden,Betalningsdatum,\"\"), \"\")","v":""},{"$f":"IFERROR(IF(Ej_Betalat_Lån*Angivna_Värden,Ingående_Saldo,\"\"), \"\")","v":""},{"$f":"IFERROR(IF(Ej_Betalat_Lån*Angivna_Värden,Månadsbetalning,\"\"), \"\")","v":""},{"$f":"IFERROR(IF(Ej_Betalat_Lån*Angivna_Värden,Amortering,\"\"), \"\")","v":""},{"$f":"IFERROR(IF(Ej_Betalat_Lån*Angivna_Värden,Ränta,\"\"), \"\")","v":""},{"$f":"IFERROR(IF(Ej_Betalat_Lån*Angivna_Värden,Utgående_Saldo,\"\"), \"\")","v":""}]
[null,{"$f":"IFERROR(IF(Ej_Betalat_Lån*Angivna_Värden,Betalningsnummer,\"\"), \"\")","v":""},{"$f":"IFERROR(IF(Ej_Betalat_Lån*Angivna_Värden,Betalningsdatum,\"\"), \"\")","v":""},{"$f":"IFERROR(IF(Ej_Betalat_Lån*Angivna_Värden,Ingående_Saldo,\"\"), \"\")","v":""},{"$f":"IFERROR(IF(Ej_Betalat_Lån*Angivna_Värden,Månadsbetalning,\"\"), \"\")","v":""},{"$f":"IFERROR(IF(Ej_Betalat_Lån*Angivna_Värden,Amortering,\"\"), \"\")","v":""},{"$f":"IFERROR(IF(Ej_Betalat_Lån*Angivna_Värden,Ränta,\"\"), \"\")","v":""},{"$f":"IFERROR(IF(Ej_Betalat_Lån*Angivna_Värden,Utgående_Saldo,\"\"), \"\")","v":""}]
[null,{"$f":"IFERROR(IF(Ej_Betalat_Lån*Angivna_Värden,Betalningsnummer,\"\"), \"\")","v":""},{"$f":"IFERROR(IF(Ej_Betalat_Lån*Angivna_Värden,Betalningsdatum,\"\"), \"\")","v":""},{"$f":"IFERROR(IF(Ej_Betalat_Lån*Angivna_Värden,Ingående_Saldo,\"\"), \"\")","v":""},{"$f":"IFERROR(IF(Ej_Betalat_Lån*Angivna_Värden,Månadsbetalning,\"\"), \"\")","v":""},{"$f":"IFERROR(IF(Ej_Betalat_Lån*Angivna_Värden,Amortering,\"\"), \"\")","v":""},{"$f":"IFERROR(IF(Ej_Betalat_Lån*Angivna_Värden,Ränta,\"\"), \"\")","v":""},{"$f":"IFERROR(IF(Ej_Betalat_Lån*Angivna_Värden,Utgående_Saldo,\"\"), \"\")","v":""}]
[null,{"$f":"IFERROR(IF(Ej_Betalat_Lån*Angivna_Värden,Betalningsnummer,\"\"), \"\")","v":""},{"$f":"IFERROR(IF(Ej_Betalat_Lån*Angivna_Värden,Betalningsdatum,\"\"), \"\")","v":""},{"$f":"IFERROR(IF(Ej_Betalat_Lån*Angivna_Värden,Ingående_Saldo,\"\"), \"\")","v":""},{"$f":"IFERROR(IF(Ej_Betalat_Lån*Angivna_Värden,Månadsbetalning,\"\"), \"\")","v":""},{"$f":"IFERROR(IF(Ej_Betalat_Lån*Angivna_Värden,Amortering,\"\"), \"\")","v":""},{"$f":"IFERROR(IF(Ej_Betalat_Lån*Angivna_Värden,Ränta,\"\"), \"\")","v":""},{"$f":"IFERROR(IF(Ej_Betalat_Lån*Angivna_Värden,Utgående_Saldo,\"\"), \"\")","v":""}]
[null,{"$f":"IFERROR(IF(Ej_Betalat_Lån*Angivna_Värden,Betalningsnummer,\"\"), \"\")","v":""},{"$f":"IFERROR(IF(Ej_Betalat_Lån*Angivna_Värden,Betalningsdatum,\"\"), \"\")","v":""},{"$f":"IFERROR(IF(Ej_Betalat_Lån*Angivna_Värden,Ingående_Saldo,\"\"), \"\")","v":""},{"$f":"IFERROR(IF(Ej_Betalat_Lån*Angivna_Värden,Månadsbetalning,\"\"), \"\")","v":""},{"$f":"IFERROR(IF(Ej_Betalat_Lån*Angivna_Värden,Amortering,\"\"), \"\")","v":""},{"$f":"IFERROR(IF(Ej_Betalat_Lån*Angivna_Värden,Ränta,\"\"), \"\")","v":""},{"$f":"IFERROR(IF(Ej_Betalat_Lån*Angivna_Värden,Utgående_Saldo,\"\"), \"\")","v":""}]
[null,{"$f":"IFERROR(IF(Ej_Betalat_Lån*Angivna_Värden,Betalningsnummer,\"\"), \"\")","v":""},{"$f":"IFERROR(IF(Ej_Betalat_Lån*Angivna_Värden,Betalningsdatum,\"\"), \"\")","v":""},{"$f":"IFERROR(IF(Ej_Betalat_Lån*Angivna_Värden,Ingående_Saldo,\"\"), \"\")","v":""},{"$f":"IFERROR(IF(Ej_Betalat_Lån*Angivna_Värden,Månadsbetalning,\"\"), \"\")","v":""},{"$f":"IFERROR(IF(Ej_Betalat_Lån*Angivna_Värden,Amortering,\"\"), \"\")","v":""},{"$f":"IFERROR(IF(Ej_Betalat_Lån*Angivna_Värden,Ränta,\"\"), \"\")","v":""},{"$f":"IFERROR(IF(Ej_Betalat_Lån*Angivna_Värden,Utgående_Saldo,\"\"), \"\")","v":""}]
[null,{"$f":"IFERROR(IF(Ej_Betalat_Lån*Angivna_Värden,Betalningsnummer,\"\"), \"\")","v":""},{"$f":"IFERROR(IF(Ej_Betalat_Lån*Angivna_Värden,Betalningsdatum,\"\"), \"\")","v":""},{"$f":"IFERROR(IF(Ej_Betalat_Lån*Angivna_Värden,Ingående_Saldo,\"\"), \"\")","v":""},{"$f":"IFERROR(IF(Ej_Betalat_Lån*Angivna_Värden,Månadsbetalning,\"\"), \"\")","v":""},{"$f":"IFERROR(IF(Ej_Betalat_Lån*Angivna_Värden,Amortering,\"\"), \"\")","v":""},{"$f":"IFERROR(IF(Ej_Betalat_Lån*Angivna_Värden,Ränta,\"\"), \"\")","v":""},{"$f":"IFERROR(IF(Ej_Betalat_Lån*Angivna_Värden,Utgående_Saldo,\"\"), \"\")","v":""}]
[null,{"$f":"IFERROR(IF(Ej_Betalat_Lån*Angivna_Värden,Betalningsnummer,\"\"), \"\")","v":""},{"$f":"IFERROR(IF(Ej_Betalat_Lån*Angivna_Värden,Betalningsdatum,\"\"), \"\")","v":""},{"$f":"IFERROR(IF(Ej_Betalat_Lån*Angivna_Värden,Ingående_Saldo,\"\"), \"\")","v":""},{"$f":"IFERROR(IF(Ej_Betalat_Lån*Angivna_Värden,Månadsbetalning,\"\"), \"\")","v":""},{"$f":"IFERROR(IF(Ej_Betalat_Lån*Angivna_Värden,Amortering,\"\"), \"\")","v":""},{"$f":"IFERROR(IF(Ej_Betalat_Lån*Angivna_Värden,Ränta,\"\"), \"\")","v":""},{"$f":"IFERROR(IF(Ej_Betalat_Lån*Angivna_Värden,Utgående_Saldo,\"\"), \"\")","v":""}]
[null,{"$f":"IFERROR(IF(Ej_Betalat_Lån*Angivna_Värden,Betalningsnummer,\"\"), \"\")","v":""},{"$f":"IFERROR(IF(Ej_Betalat_Lån*Angivna_Värden,Betalningsdatum,\"\"), \"\")","v":""},{"$f":"IFERROR(IF(Ej_Betalat_Lån*Angivna_Värden,Ingående_Saldo,\"\"), \"\")","v":""},{"$f":"IFERROR(IF(Ej_Betalat_Lån*Angivna_Värden,Månadsbetalning,\"\"), \"\")","v":""},{"$f":"IFERROR(IF(Ej_Betalat_Lån*Angivna_Värden,Amortering,\"\"), \"\")","v":""},{"$f":"IFERROR(IF(Ej_Betalat_Lån*Angivna_Värden,Ränta,\"\"), \"\")","v":""},{"$f":"IFERROR(IF(Ej_Betalat_Lån*Angivna_Värden,Utgående_Saldo,\"\"), \"\")","v":""}]
[null,{"$f":"IFERROR(IF(Ej_Betalat_Lån*Angivna_Värden,Betalningsnummer,\"\"), \"\")","v":""},{"$f":"IFERROR(IF(Ej_Betalat_Lån*Angivna_Värden,Betalningsdatum,\"\"), \"\")","v":""},{"$f":"IFERROR(IF(Ej_Betalat_Lån*Angivna_Värden,Ingående_Saldo,\"\"), \"\")","v":""},{"$f":"IFERROR(IF(Ej_Betalat_Lån*Angivna_Värden,Månadsbetalning,\"\"), \"\")","v":""},{"$f":"IFERROR(IF(Ej_Betalat_Lån*Angivna_Värden,Amortering,\"\"), \"\")","v":""},{"$f":"IFERROR(IF(Ej_Betalat_Lån*Angivna_Värden,Ränta,\"\"), \"\")","v":""},{"$f":"IFERROR(IF(Ej_Betalat_Lån*Angivna_Värden,Utgående_Saldo,\"\"), \"\")","v":""}]
[null,{"$f":"IFERROR(IF(Ej_Betalat_Lån*Angivna_Värden,Betalningsnummer,\"\"), \"\")","v":""},{"$f":"IFERROR(IF(Ej_Betalat_Lån*Angivna_Värden,Betalningsdatum,\"\"), \"\")","v":""},{"$f":"IFERROR(IF(Ej_Betalat_Lån*Angivna_Värden,Ingående_Saldo,\"\"), \"\")","v":""},{"$f":"IFERROR(IF(Ej_Betalat_Lån*Angivna_Värden,Månadsbetalning,\"\"), \"\")","v":""},{"$f":"IFERROR(IF(Ej_Betalat_Lån*Angivna_Värden,Amortering,\"\"), \"\")","v":""},{"$f":"IFERROR(IF(Ej_Betalat_Lån*Angivna_Värden,Ränta,\"\"), \"\")","v":""},{"$f":"IFERROR(IF(Ej_Betalat_Lån*Angivna_Värden,Utgående_Saldo,\"\"), \"\")","v":""}]
[null,{"$f":"IFERROR(IF(Ej_Betalat_Lån*Angivna_Värden,Betalningsnummer,\"\"), \"\")","v":""},{"$f":"IFERROR(IF(Ej_Betalat_Lån*Angivna_Värden,Betalningsdatum,\"\"), \"\")","v":""},{"$f":"IFERROR(IF(Ej_Betalat_Lån*Angivna_Värden,Ingående_Saldo,\"\"), \"\")","v":""},{"$f":"IFERROR(IF(Ej_Betalat_Lån*Angivna_Värden,Månadsbetalning,\"\"), \"\")","v":""},{"$f":"IFERROR(IF(Ej_Betalat_Lån*Angivna_Värden,Amortering,\"\"), \"\")","v":""},{"$f":"IFERROR(IF(Ej_Betalat_Lån*Angivna_Värden,Ränta,\"\"), \"\")","v":""},{"$f":"IFERROR(IF(Ej_Betalat_Lån*Angivna_Värden,Utgående_Saldo,\"\"), \"\")","v":""}]
[null,{"$f":"IFERROR(IF(Ej_Betalat_Lån*Angivna_Värden,Betalningsnummer,\"\"), \"\")","v":""},{"$f":"IFERROR(IF(Ej_Betalat_Lån*Angivna_Värden,Betalningsdatum,\"\"), \"\")","v":""},{"$f":"IFERROR(IF(Ej_Betalat_Lån*Angivna_Värden,Ingående_Saldo,\"\"), \"\")","v":""},{"$f":"IFERROR(IF(Ej_Betalat_Lån*Angivna_Värden,Månadsbetalning,\"\"), \"\")","v":""},{"$f":"IFERROR(IF(Ej_Betalat_Lån*Angivna_Värden,Amortering,\"\"), \"\")","v":""},{"$f":"IFERROR(IF(Ej_Betalat_Lån*Angivna_Värden,Ränta,\"\"), \"\")","v":""},{"$f":"IFERROR(IF(Ej_Betalat_Lån*Angivna_Värden,Utgående_Saldo,\"\"), \"\")","v":""}]
[null,{"$f":"IFERROR(IF(Ej_Betalat_Lån*Angivna_Värden,Betalningsnummer,\"\"), \"\")","v":""},{"$f":"IFERROR(IF(Ej_Betalat_Lån*Angivna_Värden,Betalningsdatum,\"\"), \"\")","v":""},{"$f":"IFERROR(IF(Ej_Betalat_Lån*Angivna_Värden,Ingående_Saldo,\"\"), \"\")","v":""},{"$f":"IFERROR(IF(Ej_Betalat_Lån*Angivna_Värden,Månadsbetalning,\"\"), \"\")","v":""},{"$f":"IFERROR(IF(Ej_Betalat_Lån*Angivna_Värden,Amortering,\"\"), \"\")","v":""},{"$f":"IFERROR(IF(Ej_Betalat_Lån*Angivna_Värden,Ränta,\"\"), \"\")","v":""},{"$f":"IFERROR(IF(Ej_Betalat_Lån*Angivna_Värden,Utgående_Saldo,\"\"), \"\")","v":""}]
[null,{"$f":"IFERROR(IF(Ej_Betalat_Lån*Angivna_Värden,Betalningsnummer,\"\"), \"\")","v":""},{"$f":"IFERROR(IF(Ej_Betalat_Lån*Angivna_Värden,Betalningsdatum,\"\"), \"\")","v":""},{"$f":"IFERROR(IF(Ej_Betalat_Lån*Angivna_Värden,Ingående_Saldo,\"\"), \"\")","v":""},{"$f":"IFERROR(IF(Ej_Betalat_Lån*Angivna_Värden,Månadsbetalning,\"\"), \"\")","v":""},{"$f":"IFERROR(IF(Ej_Betalat_Lån*Angivna_Värden,Amortering,\"\"), \"\")","v":""},{"$f":"IFERROR(IF(Ej_Betalat_Lån*Angivna_Värden,Ränta,\"\"), \"\")","v":""},{"$f":"IFERROR(IF(Ej_Betalat_Lån*Angivna_Värden,Utgående_Saldo,\"\"), \"\")","v":""}]
[null,{"$f":"IFERROR(IF(Ej_Betalat_Lån*Angivna_Värden,Betalningsnummer,\"\"), \"\")","v":""},{"$f":"IFERROR(IF(Ej_Betalat_Lån*Angivna_Värden,Betalningsdatum,\"\"), \"\")","v":""},{"$f":"IFERROR(IF(Ej_Betalat_Lån*Angivna_Värden,Ingående_Saldo,\"\"), \"\")","v":""},{"$f":"IFERROR(IF(Ej_Betalat_Lån*Angivna_Värden,Månadsbetalning,\"\"), \"\")","v":""},{"$f":"IFERROR(IF(Ej_Betalat_Lån*Angivna_Värden,Amortering,\"\"), \"\")","v":""},{"$f":"IFERROR(IF(Ej_Betalat_Lån*Angivna_Värden,Ränta,\"\"), \"\")","v":""},{"$f":"IFERROR(IF(Ej_Betalat_Lån*Angivna_Värden,Utgående_Saldo,\"\"), \"\")","v":""}]
[null,{"$f":"IFERROR(IF(Ej_Betalat_Lån*Angivna_Värden,Betalningsnummer,\"\"), \"\")","v":""},{"$f":"IFERROR(IF(Ej_Betalat_Lån*Angivna_Värden,Betalningsdatum,\"\"), \"\")","v":""},{"$f":"IFERROR(IF(Ej_Betalat_Lån*Angivna_Värden,Ingående_Saldo,\"\"), \"\")","v":""},{"$f":"IFERROR(IF(Ej_Betalat_Lån*Angivna_Värden,Månadsbetalning,\"\"), \"\")","v":""},{"$f":"IFERROR(IF(Ej_Betalat_Lån*Angivna_Värden,Amortering,\"\"), \"\")","v":""},{"$f":"IFERROR(IF(Ej_Betalat_Lån*Angivna_Värden,Ränta,\"\"), \"\")","v":""},{"$f":"IFERROR(IF(Ej_Betalat_Lån*Angivna_Värden,Utgående_Saldo,\"\"), \"\")","v":""}]
[null,{"$f":"IFERROR(IF(Ej_Betalat_Lån*Angivna_Värden,Betalningsnummer,\"\"), \"\")","v":""},{"$f":"IFERROR(IF(Ej_Betalat_Lån*Angivna_Värden,Betalningsdatum,\"\"), \"\")","v":""},{"$f":"IFERROR(IF(Ej_Betalat_Lån*Angivna_Värden,Ingående_Saldo,\"\"), \"\")","v":""},{"$f":"IFERROR(IF(Ej_Betalat_Lån*Angivna_Värden,Månadsbetalning,\"\"), \"\")","v":""},{"$f":"IFERROR(IF(Ej_Betalat_Lån*Angivna_Värden,Amortering,\"\"), \"\")","v":""},{"$f":"IFERROR(IF(Ej_Betalat_Lån*Angivna_Värden,Ränta,\"\"), \"\")","v":""},{"$f":"IFERROR(IF(Ej_Betalat_Lån*Angivna_Värden,Utgående_Saldo,\"\"), \"\")","v":""}]
[null,{"$f":"IFERROR(IF(Ej_Betalat_Lån*Angivna_Värden,Betalningsnummer,\"\"), \"\")","v":""},{"$f":"IFERROR(IF(Ej_Betalat_Lån*Angivna_Värden,Betalningsdatum,\"\"), \"\")","v":""},{"$f":"IFERROR(IF(Ej_Betalat_Lån*Angivna_Värden,Ingående_Saldo,\"\"), \"\")","v":""},{"$f":"IFERROR(IF(Ej_Betalat_Lån*Angivna_Värden,Månadsbetalning,\"\"), \"\")","v":""},{"$f":"IFERROR(IF(Ej_Betalat_Lån*Angivna_Värden,Amortering,\"\"), \"\")","v":""},{"$f":"IFERROR(IF(Ej_Betalat_Lån*Angivna_Värden,Ränta,\"\"), \"\")","v":""},{"$f":"IFERROR(IF(Ej_Betalat_Lån*Angivna_Värden,Utgående_Saldo,\"\"), \"\")","v":""}]
[null,{"$f":"IFERROR(IF(Ej_Betalat_Lån*Angivna_Värden,Betalningsnummer,\"\"), \"\")","v":""},{"$f":"IFERROR(IF(Ej_Betalat_Lån*Angivna_Värden,Betalningsdatum,\"\"), \"\")","v":""},{"$f":"IFERROR(IF(Ej_Betalat_Lån*Angivna_Värden,Ingående_Saldo,\"\"), \"\")","v":""},{"$f":"IFERROR(IF(Ej_Betalat_Lån*Angivna_Värden,Månadsbetalning,\"\"), \"\")","v":""},{"$f":"IFERROR(IF(Ej_Betalat_Lån*Angivna_Värden,Amortering,\"\"), \"\")","v":""},{"$f":"IFERROR(IF(Ej_Betalat_Lån*Angivna_Värden,Ränta,\"\"), \"\")","v":""},{"$f":"IFERROR(IF(Ej_Betalat_Lån*Angivna_Värden,Utgående_Saldo,\"\"), \"\")","v":""}]
[null,{"$f":"IFERROR(IF(Ej_Betalat_Lån*Angivna_Värden,Betalningsnummer,\"\"), \"\")","v":""},{"$f":"IFERROR(IF(Ej_Betalat_Lån*Angivna_Värden,Betalningsdatum,\"\"), \"\")","v":""},{"$f":"IFERROR(IF(Ej_Betalat_Lån*Angivna_Värden,Ingående_Saldo,\"\"), \"\")","v":""},{"$f":"IFERROR(IF(Ej_Betalat_Lån*Angivna_Värden,Månadsbetalning,\"\"), \"\")","v":""},{"$f":"IFERROR(IF(Ej_Betalat_Lån*Angivna_Värden,Amortering,\"\"), \"\")","v":""},{"$f":"IFERROR(IF(Ej_Betalat_Lån*Angivna_Värden,Ränta,\"\"), \"\")","v":""},{"$f":"IFERROR(IF(Ej_Betalat_Lån*Angivna_Värden,Utgående_Saldo,\"\"), \"\")","v":""}]
[null,{"$f":"IFERROR(IF(Ej_Betalat_Lån*Angivna_Värden,Betalningsnummer,\"\"), \"\")","v":""},{"$f":"IFERROR(IF(Ej_Betalat_Lån*Angivna_Värden,Betalningsdatum,\"\"), \"\")","v":""},{"$f":"IFERROR(IF(Ej_Betalat_Lån*Angivna_Värden,Ingående_Saldo,\"\"), \"\")","v":""},{"$f":"IFERROR(IF(Ej_Betalat_Lån*Angivna_Värden,Månadsbetalning,\"\"), \"\")","v":""},{"$f":"IFERROR(IF(Ej_Betalat_Lån*Angivna_Värden,Amortering,\"\"), \"\")","v":""},{"$f":"IFERROR(IF(Ej_Betalat_Lån*Angivna_Värden,Ränta,\"\"), \"\")","v":""},{"$f":"IFERROR(IF(Ej_Betalat_Lån*Angivna_Värden,Utgående_Saldo,\"\"), \"\")","v":""}]
[null,{"$f":"IFERROR(IF(Ej_Betalat_Lån*Angivna_Värden,Betalningsnummer,\"\"), \"\")","v":""},{"$f":"IFERROR(IF(Ej_Betalat_Lån*Angivna_Värden,Betalningsdatum,\"\"), \"\")","v":""},{"$f":"IFERROR(IF(Ej_Betalat_Lån*Angivna_Värden,Ingående_Saldo,\"\"), \"\")","v":""},{"$f":"IFERROR(IF(Ej_Betalat_Lån*Angivna_Värden,Månadsbetalning,\"\"), \"\")","v":""},{"$f":"IFERROR(IF(Ej_Betalat_Lån*Angivna_Värden,Amortering,\"\"), \"\")","v":""},{"$f":"IFERROR(IF(Ej_Betalat_Lån*Angivna_Värden,Ränta,\"\"), \"\")","v":""},{"$f":"IFERROR(IF(Ej_Betalat_Lån*Angivna_Värden,Utgående_Saldo,\"\"), \"\")","v":""}]
[null,{"$f":"IFERROR(IF(Ej_Betalat_Lån*Angivna_Värden,Betalningsnummer,\"\"), \"\")","v":""},{"$f":"IFERROR(IF(Ej_Betalat_Lån*Angivna_Värden,Betalningsdatum,\"\"), \"\")","v":""},{"$f":"IFERROR(IF(Ej_Betalat_Lån*Angivna_Värden,Ingående_Saldo,\"\"), \"\")","v":""},{"$f":"IFERROR(IF(Ej_Betalat_Lån*Angivna_Värden,Månadsbetalning,\"\"), \"\")","v":""},{"$f":"IFERROR(IF(Ej_Betalat_Lån*Angivna_Värden,Amortering,\"\"), \"\")","v":""},{"$f":"IFERROR(IF(Ej_Betalat_Lån*Angivna_Värden,Ränta,\"\"), \"\")","v":""},{"$f":"IFERROR(IF(Ej_Betalat_Lån*Angivna_Värden,Utgående_Saldo,\"\"), \"\")","v":""}]
[null,{"$f":"IFERROR(IF(Ej_Betalat_Lån*Angivna_Värden,Betalningsnummer,\"\"), \"\")","v":""},{"$f":"IFERROR(IF(Ej_Betalat_Lån*Angivna_Värden,Betalningsdatum,\"\"), \"\")","v":""},{"$f":"IFERROR(IF(Ej_Betalat_Lån*Angivna_Värden,Ingående_Saldo,\"\"), \"\")","v":""},{"$f":"IFERROR(IF(Ej_Betalat_Lån*Angivna_Värden,Månadsbetalning,\"\"), \"\")","v":""},{"$f":"IFERROR(IF(Ej_Betalat_Lån*Angivna_Värden,Amortering,\"\"), \"\")","v":""},{"$f":"IFERROR(IF(Ej_Betalat_Lån*Angivna_Värden,Ränta,\"\"), \"\")","v":""},{"$f":"IFERROR(IF(Ej_Betalat_Lån*Angivna_Värden,Utgående_Saldo,\"\"), \"\")","v":""}]
[null,{"$f":"IFERROR(IF(Ej_Betalat_Lån*Angivna_Värden,Betalningsnummer,\"\"), \"\")","v":""},{"$f":"IFERROR(IF(Ej_Betalat_Lån*Angivna_Värden,Betalningsdatum,\"\"), \"\")","v":""},{"$f":"IFERROR(IF(Ej_Betalat_Lån*Angivna_Värden,Ingående_Saldo,\"\"), \"\")","v":""},{"$f":"IFERROR(IF(Ej_Betalat_Lån*Angivna_Värden,Månadsbetalning,\"\"), \"\")","v":""},{"$f":"IFERROR(IF(Ej_Betalat_Lån*Angivna_Värden,Amortering,\"\"), \"\")","v":""},{"$f":"IFERROR(IF(Ej_Betalat_Lån*Angivna_Värden,Ränta,\"\"), \"\")","v":""},{"$f":"IFERROR(IF(Ej_Betalat_Lån*Angivna_Värden,Utgående_Saldo,\"\"), \"\")","v":""}]
[null,{"$f":"IFERROR(IF(Ej_Betalat_Lån*Angivna_Värden,Betalningsnummer,\"\"), \"\")","v":""},{"$f":"IFERROR(IF(Ej_Betalat_Lån*Angivna_Värden,Betalningsdatum,\"\"), \"\")","v":""},{"$f":"IFERROR(IF(Ej_Betalat_Lån*Angivna_Värden,Ingående_Saldo,\"\"), \"\")","v":""},{"$f":"IFERROR(IF(Ej_Betalat_Lån*Angivna_Värden,Månadsbetalning,\"\"), \"\")","v":""},{"$f":"IFERROR(IF(Ej_Betalat_Lån*Angivna_Värden,Amortering,\"\"), \"\")","v":""},{"$f":"IFERROR(IF(Ej_Betalat_Lån*Angivna_Värden,Ränta,\"\"), \"\")","v":""},{"$f":"IFERROR(IF(Ej_Betalat_Lån*Angivna_Värden,Utgående_Saldo,\"\"), \"\")","v":""}]
[null,{"$f":"IFERROR(IF(Ej_Betalat_Lån*Angivna_Värden,Betalningsnummer,\"\"), \"\")","v":""},{"$f":"IFERROR(IF(Ej_Betalat_Lån*Angivna_Värden,Betalningsdatum,\"\"), \"\")","v":""},{"$f":"IFERROR(IF(Ej_Betalat_Lån*Angivna_Värden,Ingående_Saldo,\"\"), \"\")","v":""},{"$f":"IFERROR(IF(Ej_Betalat_Lån*Angivna_Värden,Månadsbetalning,\"\"), \"\")","v":""},{"$f":"IFERROR(IF(Ej_Betalat_Lån*Angivna_Värden,Amortering,\"\"), \"\")","v":""},{"$f":"IFERROR(IF(Ej_Betalat_Lån*Angivna_Värden,Ränta,\"\"), \"\")","v":""},{"$f":"IFERROR(IF(Ej_Betalat_Lån*Angivna_Värden,Utgående_Saldo,\"\"), \"\")","v":""}]
[null,{"$f":"IFERROR(IF(Ej_Betalat_Lån*Angivna_Värden,Betalningsnummer,\"\"), \"\")","v":""},{"$f":"IFERROR(IF(Ej_Betalat_Lån*Angivna_Värden,Betalningsdatum,\"\"), \"\")","v":""},{"$f":"IFERROR(IF(Ej_Betalat_Lån*Angivna_Värden,Ingående_Saldo,\"\"), \"\")","v":""},{"$f":"IFERROR(IF(Ej_Betalat_Lån*Angivna_Värden,Månadsbetalning,\"\"), \"\")","v":""},{"$f":"IFERROR(IF(Ej_Betalat_Lån*Angivna_Värden,Amortering,\"\"), \"\")","v":""},{"$f":"IFERROR(IF(Ej_Betalat_Lån*Angivna_Värden,Ränta,\"\"), \"\")","v":""},{"$f":"IFERROR(IF(Ej_Betalat_Lån*Angivna_Värden,Utgående_Saldo,\"\"), \"\")","v":""}]
[null,{"$f":"IFERROR(IF(Ej_Betalat_Lån*Angivna_Värden,Betalningsnummer,\"\"), \"\")","v":""},{"$f":"IFERROR(IF(Ej_Betalat_Lån*Angivna_Värden,Betalningsdatum,\"\"), \"\")","v":""},{"$f":"IFERROR(IF(Ej_Betalat_Lån*Angivna_Värden,Ingående_Saldo,\"\"), \"\")","v":""},{"$f":"IFERROR(IF(Ej_Betalat_Lån*Angivna_Värden,Månadsbetalning,\"\"), \"\")","v":""},{"$f":"IFERROR(IF(Ej_Betalat_Lån*Angivna_Värden,Amortering,\"\"), \"\")","v":""},{"$f":"IFERROR(IF(Ej_Betalat_Lån*Angivna_Värden,Ränta,\"\"), \"\")","v":""},{"$f":"IFERROR(IF(Ej_Betalat_Lån*Angivna_Värden,Utgående_Saldo,\"\"), \"\")","v":""}]
[null,{"$f":"IFERROR(IF(Ej_Betalat_Lån*Angivna_Värden,Betalningsnummer,\"\"), \"\")","v":""},{"$f":"IFERROR(IF(Ej_Betalat_Lån*Angivna_Värden,Betalningsdatum,\"\"), \"\")","v":""},{"$f":"IFERROR(IF(Ej_Betalat_Lån*Angivna_Värden,Ingående_Saldo,\"\"), \"\")","v":""},{"$f":"IFERROR(IF(Ej_Betalat_Lån*Angivna_Värden,Månadsbetalning,\"\"), \"\")","v":""},{"$f":"IFERROR(IF(Ej_Betalat_Lån*Angivna_Värden,Amortering,\"\"), \"\")","v":""},{"$f":"IFERROR(IF(Ej_Betalat_Lån*Angivna_Värden,Ränta,\"\"), \"\")","v":""},{"$f":"IFERROR(IF(Ej_Betalat_Lån*Angivna_Värden,Utgående_Saldo,\"\"), \"\")","v":""}]
[null,{"$f":"IFERROR(IF(Ej_Betalat_Lån*Angivna_Värden,Betalningsnummer,\"\"), \"\")","v":""},{"$f":"IFERROR(IF(Ej_Betalat_Lån*Angivna_Värden,Betalningsdatum,\"\"), \"\")","v":""},{"$f":"IFERROR(IF(Ej_Betalat_Lån*Angivna_Värden,Ingående_Saldo,\"\"), \"\")","v":""},{"$f":"IFERROR(IF(Ej_Betalat_Lån*Angivna_Värden,Månadsbetalning,\"\"), \"\")","v":""},{"$f":"IFERROR(IF(Ej_Betalat_Lån*Angivna_Värden,Amortering,\"\"), \"\")","v":""},{"$f":"IFERROR(IF(Ej_Betalat_Lån*Angivna_Värden,Ränta,\"\"), \"\")","v":""},{"$f":"IFERROR(IF(Ej_Betalat_Lån*Angivna_Värden,Utgående_Saldo,\"\"), \"\")","v":""}]
[null,{"$f":"IFERROR(IF(Ej_Betalat_Lån*Angivna_Värden,Betalningsnummer,\"\"), \"\")","v":""},{"$f":"IFERROR(IF(Ej_Betalat_Lån*Angivna_Värden,Betalningsdatum,\"\"), \"\")","v":""},{"$f":"IFERROR(IF(Ej_Betalat_Lån*Angivna_Värden,Ingående_Saldo,\"\"), \"\")","v":""},{"$f":"IFERROR(IF(Ej_Betalat_Lån*Angivna_Värden,Månadsbetalning,\"\"), \"\")","v":""},{"$f":"IFERROR(IF(Ej_Betalat_Lån*Angivna_Värden,Amortering,\"\"), \"\")","v":""},{"$f":"IFERROR(IF(Ej_Betalat_Lån*Angivna_Värden,Ränta,\"\"), \"\")","v":""},{"$f":"IFERROR(IF(Ej_Betalat_Lån*Angivna_Värden,Utgående_Saldo,\"\"), \"\")","v":""}]
[null,{"$f":"IFERROR(IF(Ej_Betalat_Lån*Angivna_Värden,Betalningsnummer,\"\"), \"\")","v":""},{"$f":"IFERROR(IF(Ej_Betalat_Lån*Angivna_Värden,Betalningsdatum,\"\"), \"\")","v":""},{"$f":"IFERROR(IF(Ej_Betalat_Lån*Angivna_Värden,Ingående_Saldo,\"\"), \"\")","v":""},{"$f":"IFERROR(IF(Ej_Betalat_Lån*Angivna_Värden,Månadsbetalning,\"\"), \"\")","v":""},{"$f":"IFERROR(IF(Ej_Betalat_Lån*Angivna_Värden,Amortering,\"\"), \"\")","v":""},{"$f":"IFERROR(IF(Ej_Betalat_Lån*Angivna_Värden,Ränta,\"\"), \"\")","v":""},{"$f":"IFERROR(IF(Ej_Betalat_Lån*Angivna_Värden,Utgående_Saldo,\"\"), \"\")","v":""}]
[null,{"$f":"IFERROR(IF(Ej_Betalat_Lån*Angivna_Värden,Betalningsnummer,\"\"), \"\")","v":""},{"$f":"IFERROR(IF(Ej_Betalat_Lån*Angivna_Värden,Betalningsdatum,\"\"), \"\")","v":""},{"$f":"IFERROR(IF(Ej_Betalat_Lån*Angivna_Värden,Ingående_Saldo,\"\"), \"\")","v":""},{"$f":"IFERROR(IF(Ej_Betalat_Lån*Angivna_Värden,Månadsbetalning,\"\"), \"\")","v":""},{"$f":"IFERROR(IF(Ej_Betalat_Lån*Angivna_Värden,Amortering,\"\"), \"\")","v":""},{"$f":"IFERROR(IF(Ej_Betalat_Lån*Angivna_Värden,Ränta,\"\"), \"\")","v":""},{"$f":"IFERROR(IF(Ej_Betalat_Lån*Angivna_Värden,Utgående_Saldo,\"\"), \"\")","v":""}]
[null,{"$f":"IFERROR(IF(Ej_Betalat_Lån*Angivna_Värden,Betalningsnummer,\"\"), \"\")","v":""},{"$f":"IFERROR(IF(Ej_Betalat_Lån*Angivna_Värden,Betalningsdatum,\"\"), \"\")","v":""},{"$f":"IFERROR(IF(Ej_Betalat_Lån*Angivna_Värden,Ingående_Saldo,\"\"), \"\")","v":""},{"$f":"IFERROR(IF(Ej_Betalat_Lån*Angivna_Värden,Månadsbetalning,\"\"), \"\")","v":""},{"$f":"IFERROR(IF(Ej_Betalat_Lån*Angivna_Värden,Amortering,\"\"), \"\")","v":""},{"$f":"IFERROR(IF(Ej_Betalat_Lån*Angivna_Värden,Ränta,\"\"), \"\")","v":""},{"$f":"IFERROR(IF(Ej_Betalat_Lån*Angivna_Värden,Utgående_Saldo,\"\"), \"\")","v":""}]
[null,{"$f":"IFERROR(IF(Ej_Betalat_Lån*Angivna_Värden,Betalningsnummer,\"\"), \"\")","v":""},{"$f":"IFERROR(IF(Ej_Betalat_Lån*Angivna_Värden,Betalningsdatum,\"\"), \"\")","v":""},{"$f":"IFERROR(IF(Ej_Betalat_Lån*Angivna_Värden,Ingående_Saldo,\"\"), \"\")","v":""},{"$f":"IFERROR(IF(Ej_Betalat_Lån*Angivna_Värden,Månadsbetalning,\"\"), \"\")","v":""},{"$f":"IFERROR(IF(Ej_Betalat_Lån*Angivna_Värden,Amortering,\"\"), \"\")","v":""},{"$f":"IFERROR(IF(Ej_Betalat_Lån*Angivna_Värden,Ränta,\"\"), \"\")","v":""},{"$f":"IFERROR(IF(Ej_Betalat_Lån*Angivna_Värden,Utgående_Saldo,\"\"), \"\")","v":""}]
[null,{"$f":"IFERROR(IF(Ej_Betalat_Lån*Angivna_Värden,Betalningsnummer,\"\"), \"\")","v":""},{"$f":"IFERROR(IF(Ej_Betalat_Lån*Angivna_Värden,Betalningsdatum,\"\"), \"\")","v":""},{"$f":"IFERROR(IF(Ej_Betalat_Lån*Angivna_Värden,Ingående_Saldo,\"\"), \"\")","v":""},{"$f":"IFERROR(IF(Ej_Betalat_Lån*Angivna_Värden,Månadsbetalning,\"\"), \"\")","v":""},{"$f":"IFERROR(IF(Ej_Betalat_Lån*Angivna_Värden,Amortering,\"\"), \"\")","v":""},{"$f":"IFERROR(IF(Ej_Betalat_Lån*Angivna_Värden,Ränta,\"\"), \"\")","v":""},{"$f":"IFERROR(IF(Ej_Betalat_Lån*Angivna_Värden,Utgående_Saldo,\"\"), \"\")","v":""}]
[null,{"$f":"IFERROR(IF(Ej_Betalat_Lån*Angivna_Värden,Betalningsnummer,\"\"), \"\")","v":""},{"$f":"IFERROR(IF(Ej_Betalat_Lån*Angivna_Värden,Betalningsdatum,\"\"), \"\")","v":""},{"$f":"IFERROR(IF(Ej_Betalat_Lån*Angivna_Värden,Ingående_Saldo,\"\"), \"\")","v":""},{"$f":"IFERROR(IF(Ej_Betalat_Lån*Angivna_Värden,Månadsbetalning,\"\"), \"\")","v":""},{"$f":"IFERROR(IF(Ej_Betalat_Lån*Angivna_Värden,Amortering,\"\"), \"\")","v":""},{"$f":"IFERROR(IF(Ej_Betalat_Lån*Angivna_Värden,Ränta,\"\"), \"\")","v":""},{"$f":"IFERROR(IF(Ej_Betalat_Lån*Angivna_Värden,Utgående_Saldo,\"\"), \"\")","v":""}]
[null,{"$f":"IFERROR(IF(Ej_Betalat_Lån*Angivna_Värden,Betalningsnummer,\"\"), \"\")","v":""},{"$f":"IFERROR(IF(Ej_Betalat_Lån*Angivna_Värden,Betalningsdatum,\"\"), \"\")","v":""},{"$f":"IFERROR(IF(Ej_Betalat_Lån*Angivna_Värden,Ingående_Saldo,\"\"), \"\")","v":""},{"$f":"IFERROR(IF(Ej_Betalat_Lån*Angivna_Värden,Månadsbetalning,\"\"), \"\")","v":""},{"$f":"IFERROR(IF(Ej_Betalat_Lån*Angivna_Värden,Amortering,\"\"), \"\")","v":""},{"$f":"IFERROR(IF(Ej_Betalat_Lån*Angivna_Värden,Ränta,\"\"), \"\")","v":""},{"$f":"IFERROR(IF(Ej_Betalat_Lån*Angivna_Värden,Utgående_Saldo,\"\"), \"\")","v":""}]
[null,{"$f":"IFERROR(IF(Ej_Betalat_Lån*Angivna_Värden,Betalningsnummer,\"\"), \"\")","v":""},{"$f":"IFERROR(IF(Ej_Betalat_Lån*Angivna_Värden,Betalningsdatum,\"\"), \"\")","v":""},{"$f":"IFERROR(IF(Ej_Betalat_Lån*Angivna_Värden,Ingående_Saldo,\"\"), \"\")","v":""},{"$f":"IFERROR(IF(Ej_Betalat_Lån*Angivna_Värden,Månadsbetalning,\"\"), \"\")","v":""},{"$f":"IFERROR(IF(Ej_Betalat_Lån*Angivna_Värden,Amortering,\"\"), \"\")","v":""},{"$f":"IFERROR(IF(Ej_Betalat_Lån*Angivna_Värden,Ränta,\"\"), \"\")","v":""},{"$f":"IFERROR(IF(Ej_Betalat_Lån*Angivna_Värden,Utgående_Saldo,\"\"), \"\")","v":""}]
[null,{"$f":"IFERROR(IF(Ej_Betalat_Lån*Angivna_Värden,Betalningsnummer,\"\"), \"\")","v":""},{"$f":"IFERROR(IF(Ej_Betalat_Lån*Angivna_Värden,Betalningsdatum,\"\"), \"\")","v":""},{"$f":"IFERROR(IF(Ej_Betalat_Lån*Angivna_Värden,Ingående_Saldo,\"\"), \"\")","v":""},{"$f":"IFERROR(IF(Ej_Betalat_Lån*Angivna_Värden,Månadsbetalning,\"\"), \"\")","v":""},{"$f":"IFERROR(IF(Ej_Betalat_Lån*Angivna_Värden,Amortering,\"\"), \"\")","v":""},{"$f":"IFERROR(IF(Ej_Betalat_Lån*Angivna_Värden,Ränta,\"\"), \"\")","v":""},{"$f":"IFERROR(IF(Ej_Betalat_Lån*Angivna_Värden,Utgående_Saldo,\"\"), \"\")","v":""}]
[null,{"$f":"IFERROR(IF(Ej_Betalat_Lån*Angivna_Värden,Betalningsnummer,\"\"), \"\")","v":""},{"$f":"IFERROR(IF(Ej_Betalat_Lån*Angivna_Värden,Betalningsdatum,\"\"), \"\")","v":""},{"$f":"IFERROR(IF(Ej_Betalat_Lån*Angivna_Värden,Ingående_Saldo,\"\"), \"\")","v":""},{"$f":"IFERROR(IF(Ej_Betalat_Lån*Angivna_Värden,Månadsbetalning,\"\"), \"\")","v":""},{"$f":"IFERROR(IF(Ej_Betalat_Lån*Angivna_Värden,Amortering,\"\"), \"\")","v":""},{"$f":"IFERROR(IF(Ej_Betalat_Lån*Angivna_Värden,Ränta,\"\"), \"\")","v":""},{"$f":"IFERROR(IF(Ej_Betalat_Lån*Angivna_Värden,Utgående_Saldo,\"\"), \"\")","v":""}]
[null,{"$f":"IFERROR(IF(Ej_Betalat_Lån*Angivna_Värden,Betalningsnummer,\"\"), \"\")","v":""},{"$f":"IFERROR(IF(Ej_Betalat_Lån*Angivna_Värden,Betalningsdatum,\"\"), \"\")","v":""},{"$f":"IFERROR(IF(Ej_Betalat_Lån*Angivna_Värden,Ingående_Saldo,\"\"), \"\")","v":""},{"$f":"IFERROR(IF(Ej_Betalat_Lån*Angivna_Värden,Månadsbetalning,\"\"), \"\")","v":""},{"$f":"IFERROR(IF(Ej_Betalat_Lån*Angivna_Värden,Amortering,\"\"), \"\")","v":""},{"$f":"IFERROR(IF(Ej_Betalat_Lån*Angivna_Värden,Ränta,\"\"), \"\")","v":""},{"$f":"IFERROR(IF(Ej_Betalat_Lån*Angivna_Värden,Utgående_Saldo,\"\"), \"\")","v":""}]
[null,{"$f":"IFERROR(IF(Ej_Betalat_Lån*Angivna_Värden,Betalningsnummer,\"\"), \"\")","v":""},{"$f":"IFERROR(IF(Ej_Betalat_Lån*Angivna_Värden,Betalningsdatum,\"\"), \"\")","v":""},{"$f":"IFERROR(IF(Ej_Betalat_Lån*Angivna_Värden,Ingående_Saldo,\"\"), \"\")","v":""},{"$f":"IFERROR(IF(Ej_Betalat_Lån*Angivna_Värden,Månadsbetalning,\"\"), \"\")","v":""},{"$f":"IFERROR(IF(Ej_Betalat_Lån*Angivna_Värden,Amortering,\"\"), \"\")","v":""},{"$f":"IFERROR(IF(Ej_Betalat_Lån*Angivna_Värden,Ränta,\"\"), \"\")","v":""},{"$f":"IFERROR(IF(Ej_Betalat_Lån*Angivna_Värden,Utgående_Saldo,\"\"), \"\")","v":""}]
[null,{"$f":"IFERROR(IF(Ej_Betalat_Lån*Angivna_Värden,Betalningsnummer,\"\"), \"\")","v":""},{"$f":"IFERROR(IF(Ej_Betalat_Lån*Angivna_Värden,Betalningsdatum,\"\"), \"\")","v":""},{"$f":"IFERROR(IF(Ej_Betalat_Lån*Angivna_Värden,Ingående_Saldo,\"\"), \"\")","v":""},{"$f":"IFERROR(IF(Ej_Betalat_Lån*Angivna_Värden,Månadsbetalning,\"\"), \"\")","v":""},{"$f":"IFERROR(IF(Ej_Betalat_Lån*Angivna_Värden,Amortering,\"\"), \"\")","v":""},{"$f":"IFERROR(IF(Ej_Betalat_Lån*Angivna_Värden,Ränta,\"\"), \"\")","v":""},{"$f":"IFERROR(IF(Ej_Betalat_Lån*Angivna_Värden,Utgående_Saldo,\"\"), \"\")","v":""}]
[null,{"$f":"IFERROR(IF(Ej_Betalat_Lån*Angivna_Värden,Betalningsnummer,\"\"), \"\")","v":""},{"$f":"IFERROR(IF(Ej_Betalat_Lån*Angivna_Värden,Betalningsdatum,\"\"), \"\")","v":""},{"$f":"IFERROR(IF(Ej_Betalat_Lån*Angivna_Värden,Ingående_Saldo,\"\"), \"\")","v":""},{"$f":"IFERROR(IF(Ej_Betalat_Lån*Angivna_Värden,Månadsbetalning,\"\"), \"\")","v":""},{"$f":"IFERROR(IF(Ej_Betalat_Lån*Angivna_Värden,Amortering,\"\"), \"\")","v":""},{"$f":"IFERROR(IF(Ej_Betalat_Lån*Angivna_Värden,Ränta,\"\"), \"\")","v":""},{"$f":"IFERROR(IF(Ej_Betalat_Lån*Angivna_Värden,Utgående_Saldo,\"\"), \"\")","v":""}]
[null,{"$f":"IFERROR(IF(Ej_Betalat_Lån*Angivna_Värden,Betalningsnummer,\"\"), \"\")","v":""},{"$f":"IFERROR(IF(Ej_Betalat_Lån*Angivna_Värden,Betalningsdatum,\"\"), \"\")","v":""},{"$f":"IFERROR(IF(Ej_Betalat_Lån*Angivna_Värden,Ingående_Saldo,\"\"), \"\")","v":""},{"$f":"IFERROR(IF(Ej_Betalat_Lån*Angivna_Värden,Månadsbetalning,\"\"), \"\")","v":""},{"$f":"IFERROR(IF(Ej_Betalat_Lån*Angivna_Värden,Amortering,\"\"), \"\")","v":""},{"$f":"IFERROR(IF(Ej_Betalat_Lån*Angivna_Värden,Ränta,\"\"), \"\")","v":""},{"$f":"IFERROR(IF(Ej_Betalat_Lån*Angivna_Värden,Utgående_Saldo,\"\"), \"\")","v":""}]
[null,{"$f":"IFERROR(IF(Ej_Betalat_Lån*Angivna_Värden,Betalningsnummer,\"\"), \"\")","v":""},{"$f":"IFERROR(IF(Ej_Betalat_Lån*Angivna_Värden,Betalningsdatum,\"\"), \"\")","v":""},{"$f":"IFERROR(IF(Ej_Betalat_Lån*Angivna_Värden,Ingående_Saldo,\"\"), \"\")","v":""},{"$f":"IFERROR(IF(Ej_Betalat_Lån*Angivna_Värden,Månadsbetalning,\"\"), \"\")","v":""},{"$f":"IFERROR(IF(Ej_Betalat_Lån*Angivna_Värden,Amortering,\"\"), \"\")","v":""},{"$f":"IFERROR(IF(Ej_Betalat_Lån*Angivna_Värden,Ränta,\"\"), \"\")","v":""},{"$f":"IFERROR(IF(Ej_Betalat_Lån*Angivna_Värden,Utgående_Saldo,\"\"), \"\")","v":""}]
[null,{"$f":"IFERROR(IF(Ej_Betalat_Lån*Angivna_Värden,Betalningsnummer,\"\"), \"\")","v":""},{"$f":"IFERROR(IF(Ej_Betalat_Lån*Angivna_Värden,Betalningsdatum,\"\"), \"\")","v":""},{"$f":"IFERROR(IF(Ej_Betalat_Lån*Angivna_Värden,Ingående_Saldo,\"\"), \"\")","v":""},{"$f":"IFERROR(IF(Ej_Betalat_Lån*Angivna_Värden,Månadsbetalning,\"\"), \"\")","v":""},{"$f":"IFERROR(IF(Ej_Betalat_Lån*Angivna_Värden,Amortering,\"\"), \"\")","v":""},{"$f":"IFERROR(IF(Ej_Betalat_Lån*Angivna_Värden,Ränta,\"\"), \"\")","v":""},{"$f":"IFERROR(IF(Ej_Betalat_Lån*Angivna_Värden,Utgående_Saldo,\"\"), \"\")","v":""}]
[null,{"$f":"IFERROR(IF(Ej_Betalat_Lån*Angivna_Värden,Betalningsnummer,\"\"), \"\")","v":""},{"$f":"IFERROR(IF(Ej_Betalat_Lån*Angivna_Värden,Betalningsdatum,\"\"), \"\")","v":""},{"$f":"IFERROR(IF(Ej_Betalat_Lån*Angivna_Värden,Ingående_Saldo,\"\"), \"\")","v":""},{"$f":"IFERROR(IF(Ej_Betalat_Lån*Angivna_Värden,Månadsbetalning,\"\"), \"\")","v":""},{"$f":"IFERROR(IF(Ej_Betalat_Lån*Angivna_Värden,Amortering,\"\"), \"\")","v":""},{"$f":"IFERROR(IF(Ej_Betalat_Lån*Angivna_Värden,Ränta,\"\"), \"\")","v":""},{"$f":"IFERROR(IF(Ej_Betalat_Lån*Angivna_Värden,Utgående_Saldo,\"\"), \"\")","v":""}]
[null,{"$f":"IFERROR(IF(Ej_Betalat_Lån*Angivna_Värden,Betalningsnummer,\"\"), \"\")","v":""},{"$f":"IFERROR(IF(Ej_Betalat_Lån*Angivna_Värden,Betalningsdatum,\"\"), \"\")","v":""},{"$f":"IFERROR(IF(Ej_Betalat_Lån*Angivna_Värden,Ingående_Saldo,\"\"), \"\")","v":""},{"$f":"IFERROR(IF(Ej_Betalat_Lån*Angivna_Värden,Månadsbetalning,\"\"), \"\")","v":""},{"$f":"IFERROR(IF(Ej_Betalat_Lån*Angivna_Värden,Amortering,\"\"), \"\")","v":""},{"$f":"IFERROR(IF(Ej_Betalat_Lån*Angivna_Värden,Ränta,\"\"), \"\")","v":""},{"$f":"IFERROR(IF(Ej_Betalat_Lån*Angivna_Värden,Utgående_Saldo,\"\"), \"\")","v":""}]
[null,{"$f":"IFERROR(IF(Ej_Betalat_Lån*Angivna_Värden,Betalningsnummer,\"\"), \"\")","v":""},{"$f":"IFERROR(IF(Ej_Betalat_Lån*Angivna_Värden,Betalningsdatum,\"\"), \"\")","v":""},{"$f":"IFERROR(IF(Ej_Betalat_Lån*Angivna_Värden,Ingående_Saldo,\"\"), \"\")","v":""},{"$f":"IFERROR(IF(Ej_Betalat_Lån*Angivna_Värden,Månadsbetalning,\"\"), \"\")","v":""},{"$f":"IFERROR(IF(Ej_Betalat_Lån*Angivna_Värden,Amortering,\"\"), \"\")","v":""},{"$f":"IFERROR(IF(Ej_Betalat_Lån*Angivna_Värden,Ränta,\"\"), \"\")","v":""},{"$f":"IFERROR(IF(Ej_Betalat_Lån*Angivna_Värden,Utgående_Saldo,\"\"), \"\")","v":""}]
[null,{"$f":"IFERROR(IF(Ej_Betalat_Lån*Angivna_Värden,Betalningsnummer,\"\"), \"\")","v":""},{"$f":"IFERROR(IF(Ej_Betalat_Lån*Angivna_Värden,Betalningsdatum,\"\"), \"\")","v":""},{"$f":"IFERROR(IF(Ej_Betalat_Lån*Angivna_Värden,Ingående_Saldo,\"\"), \"\")","v":""},{"$f":"IFERROR(IF(Ej_Betalat_Lån*Angivna_Värden,Månadsbetalning,\"\"), \"\")","v":""},{"$f":"IFERROR(IF(Ej_Betalat_Lån*Angivna_Värden,Amortering,\"\"), \"\")","v":""},{"$f":"IFERROR(IF(Ej_Betalat_Lån*Angivna_Värden,Ränta,\"\"), \"\")","v":""},{"$f":"IFERROR(IF(Ej_Betalat_Lån*Angivna_Värden,Utgående_Saldo,\"\"), \"\")","v":""}]
[null,{"$f":"IFERROR(IF(Ej_Betalat_Lån*Angivna_Värden,Betalningsnummer,\"\"), \"\")","v":""},{"$f":"IFERROR(IF(Ej_Betalat_Lån*Angivna_Värden,Betalningsdatum,\"\"), \"\")","v":""},{"$f":"IFERROR(IF(Ej_Betalat_Lån*Angivna_Värden,Ingående_Saldo,\"\"), \"\")","v":""},{"$f":"IFERROR(IF(Ej_Betalat_Lån*Angivna_Värden,Månadsbetalning,\"\"), \"\")","v":""},{"$f":"IFERROR(IF(Ej_Betalat_Lån*Angivna_Värden,Amortering,\"\"), \"\")","v":""},{"$f":"IFERROR(IF(Ej_Betalat_Lån*Angivna_Värden,Ränta,\"\"), \"\")","v":""},{"$f":"IFERROR(IF(Ej_Betalat_Lån*Angivna_Värden,Utgående_Saldo,\"\"), \"\")","v":""}]
[null,{"$f":"IFERROR(IF(Ej_Betalat_Lån*Angivna_Värden,Betalningsnummer,\"\"), \"\")","v":""},{"$f":"IFERROR(IF(Ej_Betalat_Lån*Angivna_Värden,Betalningsdatum,\"\"), \"\")","v":""},{"$f":"IFERROR(IF(Ej_Betalat_Lån*Angivna_Värden,Ingående_Saldo,\"\"), \"\")","v":""},{"$f":"IFERROR(IF(Ej_Betalat_Lån*Angivna_Värden,Månadsbetalning,\"\"), \"\")","v":""},{"$f":"IFERROR(IF(Ej_Betalat_Lån*Angivna_Värden,Amortering,\"\"), \"\")","v":""},{"$f":"IFERROR(IF(Ej_Betalat_Lån*Angivna_Värden,Ränta,\"\"), \"\")","v":""},{"$f":"IFERROR(IF(Ej_Betalat_Lån*Angivna_Värden,Utgående_Saldo,\"\"), \"\")","v":""}]
[null,{"$f":"IFERROR(IF(Ej_Betalat_Lån*Angivna_Värden,Betalningsnummer,\"\"), \"\")","v":""},{"$f":"IFERROR(IF(Ej_Betalat_Lån*Angivna_Värden,Betalningsdatum,\"\"), \"\")","v":""},{"$f":"IFERROR(IF(Ej_Betalat_Lån*Angivna_Värden,Ingående_Saldo,\"\"), \"\")","v":""},{"$f":"IFERROR(IF(Ej_Betalat_Lån*Angivna_Värden,Månadsbetalning,\"\"), \"\")","v":""},{"$f":"IFERROR(IF(Ej_Betalat_Lån*Angivna_Värden,Amortering,\"\"), \"\")","v":""},{"$f":"IFERROR(IF(Ej_Betalat_Lån*Angivna_Värden,Ränta,\"\"), \"\")","v":""},{"$f":"IFERROR(IF(Ej_Betalat_Lån*Angivna_Värden,Utgående_Saldo,\"\"), \"\")","v":""}]
[null,{"$f":"IFERROR(IF(Ej_Betalat_Lån*Angivna_Värden,Betalningsnummer,\"\"), \"\")","v":""},{"$f":"IFERROR(IF(Ej_Betalat_Lån*Angivna_Värden,Betalningsdatum,\"\"), \"\")","v":""},{"$f":"IFERROR(IF(Ej_Betalat_Lån*Angivna_Värden,Ingående_Saldo,\"\"), \"\")","v":""},{"$f":"IFERROR(IF(Ej_Betalat_Lån*Angivna_Värden,Månadsbetalning,\"\"), \"\")","v":""},{"$f":"IFERROR(IF(Ej_Betalat_Lån*Angivna_Värden,Amortering,\"\"), \"\")","v":""},{"$f":"IFERROR(IF(Ej_Betalat_Lån*Angivna_Värden,Ränta,\"\"), \"\")","v":""},{"$f":"IFERROR(IF(Ej_Betalat_Lån*Angivna_Värden,Utgående_Saldo,\"\"), \"\")","v":""}]
[null,{"$f":"IFERROR(IF(Ej_Betalat_Lån*Angivna_Värden,Betalningsnummer,\"\"), \"\")","v":""},{"$f":"IFERROR(IF(Ej_Betalat_Lån*Angivna_Värden,Betalningsdatum,\"\"), \"\")","v":""},{"$f":"IFERROR(IF(Ej_Betalat_Lån*Angivna_Värden,Ingående_Saldo,\"\"), \"\")","v":""},{"$f":"IFERROR(IF(Ej_Betalat_Lån*Angivna_Värden,Månadsbetalning,\"\"), \"\")","v":""},{"$f":"IFERROR(IF(Ej_Betalat_Lån*Angivna_Värden,Amortering,\"\"), \"\")","v":""},{"$f":"IFERROR(IF(Ej_Betalat_Lån*Angivna_Värden,Ränta,\"\"), \"\")","v":""},{"$f":"IFERROR(IF(Ej_Betalat_Lån*Angivna_Värden,Utgående_Saldo,\"\"), \"\")","v":""}]
[null,{"$f":"IFERROR(IF(Ej_Betalat_Lån*Angivna_Värden,Betalningsnummer,\"\"), \"\")","v":""},{"$f":"IFERROR(IF(Ej_Betalat_Lån*Angivna_Värden,Betalningsdatum,\"\"), \"\")","v":""},{"$f":"IFERROR(IF(Ej_Betalat_Lån*Angivna_Värden,Ingående_Saldo,\"\"), \"\")","v":""},{"$f":"IFERROR(IF(Ej_Betalat_Lån*Angivna_Värden,Månadsbetalning,\"\"), \"\")","v":""},{"$f":"IFERROR(IF(Ej_Betalat_Lån*Angivna_Värden,Amortering,\"\"), \"\")","v":""},{"$f":"IFERROR(IF(Ej_Betalat_Lån*Angivna_Värden,Ränta,\"\"), \"\")","v":""},{"$f":"IFERROR(IF(Ej_Betalat_Lån*Angivna_Värden,Utgående_Saldo,\"\"), \"\")","v":""}]
[null,{"$f":"IFERROR(IF(Ej_Betalat_Lån*Angivna_Värden,Betalningsnummer,\"\"), \"\")","v":""},{"$f":"IFERROR(IF(Ej_Betalat_Lån*Angivna_Värden,Betalningsdatum,\"\"), \"\")","v":""},{"$f":"IFERROR(IF(Ej_Betalat_Lån*Angivna_Värden,Ingående_Saldo,\"\"), \"\")","v":""},{"$f":"IFERROR(IF(Ej_Betalat_Lån*Angivna_Värden,Månadsbetalning,\"\"), \"\")","v":""},{"$f":"IFERROR(IF(Ej_Betalat_Lån*Angivna_Värden,Amortering,\"\"), \"\")","v":""},{"$f":"IFERROR(IF(Ej_Betalat_Lån*Angivna_Värden,Ränta,\"\"), \"\")","v":""},{"$f":"IFERROR(IF(Ej_Betalat_Lån*Angivna_Värden,Utgående_Saldo,\"\"), \"\")","v":""}]
[null,{"$f":"IFERROR(IF(Ej_Betalat_Lån*Angivna_Värden,Betalningsnummer,\"\"), \"\")","v":""},{"$f":"IFERROR(IF(Ej_Betalat_Lån*Angivna_Värden,Betalningsdatum,\"\"), \"\")","v":""},{"$f":"IFERROR(IF(Ej_Betalat_Lån*Angivna_Värden,Ingående_Saldo,\"\"), \"\")","v":""},{"$f":"IFERROR(IF(Ej_Betalat_Lån*Angivna_Värden,Månadsbetalning,\"\"), \"\")","v":""},{"$f":"IFERROR(IF(Ej_Betalat_Lån*Angivna_Värden,Amortering,\"\"), \"\")","v":""},{"$f":"IFERROR(IF(Ej_Betalat_Lån*Angivna_Värden,Ränta,\"\"), \"\")","v":""},{"$f":"IFERROR(IF(Ej_Betalat_Lån*Angivna_Värden,Utgående_Saldo,\"\"), \"\")","v":""}]
[null,{"$f":"IFERROR(IF(Ej_Betalat_Lån*Angivna_Värden,Betalningsnummer,\"\"), \"\")","v":""},{"$f":"IFERROR(IF(Ej_Betalat_Lån*Angivna_Värden,Betalningsdatum,\"\"), \"\")","v":""},{"$f":"IFERROR(IF(Ej_Betalat_Lån*Angivna_Värden,Ingående_Saldo,\"\"), \"\")","v":""},{"$f":"IFERROR(IF(Ej_Betalat_Lån*Angivna_Värden,Månadsbetalning,\"\"), \"\")","v":""},{"$f":"IFERROR(IF(Ej_Betalat_Lån*Angivna_Värden,Amortering,\"\"), \"\")","v":""},{"$f":"IFERROR(IF(Ej_Betalat_Lån*Angivna_Värden,Ränta,\"\"), \"\")","v":""},{"$f":"IFERROR(IF(Ej_Betalat_Lån*Angivna_Värden,Utgående_Saldo,\"\"), \"\")","v":""}]
[null,{"$f":"IFERROR(IF(Ej_Betalat_Lån*Angivna_Värden,Betalningsnummer,\"\"), \"\")","v":""},{"$f":"IFERROR(IF(Ej_Betalat_Lån*Angivna_Värden,Betalningsdatum,\"\"), \"\")","v":""},{"$f":"IFERROR(IF(Ej_Betalat_Lån*Angivna_Värden,Ingående_Saldo,\"\"), \"\")","v":""},{"$f":"IFERROR(IF(Ej_Betalat_Lån*Angivna_Värden,Månadsbetalning,\"\"), \"\")","v":""},{"$f":"IFERROR(IF(Ej_Betalat_Lån*Angivna_Värden,Amortering,\"\"), \"\")","v":""},{"$f":"IFERROR(IF(Ej_Betalat_Lån*Angivna_Värden,Ränta,\"\"), \"\")","v":""},{"$f":"IFERROR(IF(Ej_Betalat_Lån*Angivna_Värden,Utgående_Saldo,\"\"), \"\")","v":""}]
[null,{"$f":"IFERROR(IF(Ej_Betalat_Lån*Angivna_Värden,Betalningsnummer,\"\"), \"\")","v":""},{"$f":"IFERROR(IF(Ej_Betalat_Lån*Angivna_Värden,Betalningsdatum,\"\"), \"\")","v":""},{"$f":"IFERROR(IF(Ej_Betalat_Lån*Angivna_Värden,Ingående_Saldo,\"\"), \"\")","v":""},{"$f":"IFERROR(IF(Ej_Betalat_Lån*Angivna_Värden,Månadsbetalning,\"\"), \"\")","v":""},{"$f":"IFERROR(IF(Ej_Betalat_Lån*Angivna_Värden,Amortering,\"\"), \"\")","v":""},{"$f":"IFERROR(IF(Ej_Betalat_Lån*Angivna_Värden,Ränta,\"\"), \"\")","v":""},{"$f":"IFERROR(IF(Ej_Betalat_Lån*Angivna_Värden,Utgående_Saldo,\"\"), \"\")","v":""}]
[null,{"$f":"IFERROR(IF(Ej_Betalat_Lån*Angivna_Värden,Betalningsnummer,\"\"), \"\")","v":""},{"$f":"IFERROR(IF(Ej_Betalat_Lån*Angivna_Värden,Betalningsdatum,\"\"), \"\")","v":""},{"$f":"IFERROR(IF(Ej_Betalat_Lån*Angivna_Värden,Ingående_Saldo,\"\"), \"\")","v":""},{"$f":"IFERROR(IF(Ej_Betalat_Lån*Angivna_Värden,Månadsbetalning,\"\"), \"\")","v":""},{"$f":"IFERROR(IF(Ej_Betalat_Lån*Angivna_Värden,Amortering,\"\"), \"\")","v":""},{"$f":"IFERROR(IF(Ej_Betalat_Lån*Angivna_Värden,Ränta,\"\"), \"\")","v":""},{"$f":"IFERROR(IF(Ej_Betalat_Lån*Angivna_Värden,Utgående_Saldo,\"\"), \"\")","v":""}]
[null,{"$f":"IFERROR(IF(Ej_Betalat_Lån*Angivna_Värden,Betalningsnummer,\"\"), \"\")","v":""},{"$f":"IFERROR(IF(Ej_Betalat_Lån*Angivna_Värden,Betalningsdatum,\"\"), \"\")","v":""},{"$f":"IFERROR(IF(Ej_Betalat_Lån*Angivna_Värden,Ingående_Saldo,\"\"), \"\")","v":""},{"$f":"IFERROR(IF(Ej_Betalat_Lån*Angivna_Värden,Månadsbetalning,\"\"), \"\")","v":""},{"$f":"IFERROR(IF(Ej_Betalat_Lån*Angivna_Värden,Amortering,\"\"), \"\")","v":""},{"$f":"IFERROR(IF(Ej_Betalat_Lån*Angivna_Värden,Ränta,\"\"), \"\")","v":""},{"$f":"IFERROR(IF(Ej_Betalat_Lån*Angivna_Värden,Utgående_Saldo,\"\"), \"\")","v":""}]
[null,{"$f":"IFERROR(IF(Ej_Betalat_Lån*Angivna_Värden,Betalningsnummer,\"\"), \"\")","v":""},{"$f":"IFERROR(IF(Ej_Betalat_Lån*Angivna_Värden,Betalningsdatum,\"\"), \"\")","v":""},{"$f":"IFERROR(IF(Ej_Betalat_Lån*Angivna_Värden,Ingående_Saldo,\"\"), \"\")","v":""},{"$f":"IFERROR(IF(Ej_Betalat_Lån*Angivna_Värden,Månadsbetalning,\"\"), \"\")","v":""},{"$f":"IFERROR(IF(Ej_Betalat_Lån*Angivna_Värden,Amortering,\"\"), \"\")","v":""},{"$f":"IFERROR(IF(Ej_Betalat_Lån*Angivna_Värden,Ränta,\"\"), \"\")","v":""},{"$f":"IFERROR(IF(Ej_Betalat_Lån*Angivna_Värden,Utgående_Saldo,\"\"), \"\")","v":""}]
[null,{"$f":"IFERROR(IF(Ej_Betalat_Lån*Angivna_Värden,Betalningsnummer,\"\"), \"\")","v":""},{"$f":"IFERROR(IF(Ej_Betalat_Lån*Angivna_Värden,Betalningsdatum,\"\"), \"\")","v":""},{"$f":"IFERROR(IF(Ej_Betalat_Lån*Angivna_Värden,Ingående_Saldo,\"\"), \"\")","v":""},{"$f":"IFERROR(IF(Ej_Betalat_Lån*Angivna_Värden,Månadsbetalning,\"\"), \"\")","v":""},{"$f":"IFERROR(IF(Ej_Betalat_Lån*Angivna_Värden,Amortering,\"\"), \"\")","v":""},{"$f":"IFERROR(IF(Ej_Betalat_Lån*Angivna_Värden,Ränta,\"\"), \"\")","v":""},{"$f":"IFERROR(IF(Ej_Betalat_Lån*Angivna_Värden,Utgående_Saldo,\"\"), \"\")","v":""}]
[null,{"$f":"IFERROR(IF(Ej_Betalat_Lån*Angivna_Värden,Betalningsnummer,\"\"), \"\")","v":""},{"$f":"IFERROR(IF(Ej_Betalat_Lån*Angivna_Värden,Betalningsdatum,\"\"), \"\")","v":""},{"$f":"IFERROR(IF(Ej_Betalat_Lån*Angivna_Värden,Ingående_Saldo,\"\"), \"\")","v":""},{"$f":"IFERROR(IF(Ej_Betalat_Lån*Angivna_Värden,Månadsbetalning,\"\"), \"\")","v":""},{"$f":"IFERROR(IF(Ej_Betalat_Lån*Angivna_Värden,Amortering,\"\"), \"\")","v":""},{"$f":"IFERROR(IF(Ej_Betalat_Lån*Angivna_Värden,Ränta,\"\"), \"\")","v":""},{"$f":"IFERROR(IF(Ej_Betalat_Lån*Angivna_Värden,Utgående_Saldo,\"\"), \"\")","v":""}]
[null,{"$f":"IFERROR(IF(Ej_Betalat_Lån*Angivna_Värden,Betalningsnummer,\"\"), \"\")","v":""},{"$f":"IFERROR(IF(Ej_Betalat_Lån*Angivna_Värden,Betalningsdatum,\"\"), \"\")","v":""},{"$f":"IFERROR(IF(Ej_Betalat_Lån*Angivna_Värden,Ingående_Saldo,\"\"), \"\")","v":""},{"$f":"IFERROR(IF(Ej_Betalat_Lån*Angivna_Värden,Månadsbetalning,\"\"), \"\")","v":""},{"$f":"IFERROR(IF(Ej_Betalat_Lån*Angivna_Värden,Amortering,\"\"), \"\")","v":""},{"$f":"IFERROR(IF(Ej_Betalat_Lån*Angivna_Värden,Ränta,\"\"), \"\")","v":""},{"$f":"IFERROR(IF(Ej_Betalat_Lån*Angivna_Värden,Utgående_Saldo,\"\"), \"\")","v":""}]
[null,{"$f":"IFERROR(IF(Ej_Betalat_Lån*Angivna_Värden,Betalningsnummer,\"\"), \"\")","v":""},{"$f":"IFERROR(IF(Ej_Betalat_Lån*Angivna_Värden,Betalningsdatum,\"\"), \"\")","v":""},{"$f":"IFERROR(IF(Ej_Betalat_Lån*Angivna_Värden,Ingående_Saldo,\"\"), \"\")","v":""},{"$f":"IFERROR(IF(Ej_Betalat_Lån*Angivna_Värden,Månadsbetalning,\"\"), \"\")","v":""},{"$f":"IFERROR(IF(Ej_Betalat_Lån*Angivna_Värden,Amortering,\"\"), \"\")","v":""},{"$f":"IFERROR(IF(Ej_Betalat_Lån*Angivna_Värden,Ränta,\"\"), \"\")","v":""},{"$f":"IFERROR(IF(Ej_Betalat_Lån*Angivna_Värden,Utgående_Saldo,\"\"), \"\")","v":""}]
[null,{"$f":"IFERROR(IF(Ej_Betalat_Lån*Angivna_Värden,Betalningsnummer,\"\"), \"\")","v":""},{"$f":"IFERROR(IF(Ej_Betalat_Lån*Angivna_Värden,Betalningsdatum,\"\"), \"\")","v":""},{"$f":"IFERROR(IF(Ej_Betalat_Lån*Angivna_Värden,Ingående_Saldo,\"\"), \"\")","v":""},{"$f":"IFERROR(IF(Ej_Betalat_Lån*Angivna_Värden,Månadsbetalning,\"\"), \"\")","v":""},{"$f":"IFERROR(IF(Ej_Betalat_Lån*Angivna_Värden,Amortering,\"\"), \"\")","v":""},{"$f":"IFERROR(IF(Ej_Betalat_Lån*Angivna_Värden,Ränta,\"\"), \"\")","v":""},{"$f":"IFERROR(IF(Ej_Betalat_Lån*Angivna_Värden,Utgående_Saldo,\"\"), \"\")","v":""}]
[null,{"$f":"IFERROR(IF(Ej_Betalat_Lån*Angivna_Värden,Betalningsnummer,\"\"), \"\")","v":""},{"$f":"IFERROR(IF(Ej_Betalat_Lån*Angivna_Värden,Betalningsdatum,\"\"), \"\")","v":""},{"$f":"IFERROR(IF(Ej_Betalat_Lån*Angivna_Värden,Ingående_Saldo,\"\"), \"\")","v":""},{"$f":"IFERROR(IF(Ej_Betalat_Lån*Angivna_Värden,Månadsbetalning,\"\"), \"\")","v":""},{"$f":"IFERROR(IF(Ej_Betalat_Lån*Angivna_Värden,Amortering,\"\"), \"\")","v":""},{"$f":"IFERROR(IF(Ej_Betalat_Lån*Angivna_Värden,Ränta,\"\"), \"\")","v":""},{"$f":"IFERROR(IF(Ej_Betalat_Lån*Angivna_Värden,Utgående_Saldo,\"\"), \"\")","v":""}]
[null,{"$f":"IFERROR(IF(Ej_Betalat_Lån*Angivna_Värden,Betalningsnummer,\"\"), \"\")","v":""},{"$f":"IFERROR(IF(Ej_Betalat_Lån*Angivna_Värden,Betalningsdatum,\"\"), \"\")","v":""},{"$f":"IFERROR(IF(Ej_Betalat_Lån*Angivna_Värden,Ingående_Saldo,\"\"), \"\")","v":""},{"$f":"IFERROR(IF(Ej_Betalat_Lån*Angivna_Värden,Månadsbetalning,\"\"), \"\")","v":""},{"$f":"IFERROR(IF(Ej_Betalat_Lån*Angivna_Värden,Amortering,\"\"), \"\")","v":""},{"$f":"IFERROR(IF(Ej_Betalat_Lån*Angivna_Värden,Ränta,\"\"), \"\")","v":""},{"$f":"IFERROR(IF(Ej_Betalat_Lån*Angivna_Värden,Utgående_Saldo,\"\"), \"\")","v":""}]
[null,{"$f":"IFERROR(IF(Ej_Betalat_Lån*Angivna_Värden,Betalningsnummer,\"\"), \"\")","v":""},{"$f":"IFERROR(IF(Ej_Betalat_Lån*Angivna_Värden,Betalningsdatum,\"\"), \"\")","v":""},{"$f":"IFERROR(IF(Ej_Betalat_Lån*Angivna_Värden,Ingående_Saldo,\"\"), \"\")","v":""},{"$f":"IFERROR(IF(Ej_Betalat_Lån*Angivna_Värden,Månadsbetalning,\"\"), \"\")","v":""},{"$f":"IFERROR(IF(Ej_Betalat_Lån*Angivna_Värden,Amortering,\"\"), \"\")","v":""},{"$f":"IFERROR(IF(Ej_Betalat_Lån*Angivna_Värden,Ränta,\"\"), \"\")","v":""},{"$f":"IFERROR(IF(Ej_Betalat_Lån*Angivna_Värden,Utgående_Saldo,\"\"), \"\")","v":""}]
[null,{"$f":"IFERROR(IF(Ej_Betalat_Lån*Angivna_Värden,Betalningsnummer,\"\"), \"\")","v":""},{"$f":"IFERROR(IF(Ej_Betalat_Lån*Angivna_Värden,Betalningsdatum,\"\"), \"\")","v":""},{"$f":"IFERROR(IF(Ej_Betalat_Lån*Angivna_Värden,Ingående_Saldo,\"\"), \"\")","v":""},{"$f":"IFERROR(IF(Ej_Betalat_Lån*Angivna_Värden,Månadsbetalning,\"\"), \"\")","v":""},{"$f":"IFERROR(IF(Ej_Betalat_Lån*Angivna_Värden,Amortering,\"\"), \"\")","v":""},{"$f":"IFERROR(IF(Ej_Betalat_Lån*Angivna_Värden,Ränta,\"\"), \"\")","v":""},{"$f":"IFERROR(IF(Ej_Betalat_Lån*Angivna_Värden,Utgående_Saldo,\"\"), \"\")","v":""}]
[null,{"$f":"IFERROR(IF(Ej_Betalat_Lån*Angivna_Värden,Betalningsnummer,\"\"), \"\")","v":""},{"$f":"IFERROR(IF(Ej_Betalat_Lån*Angivna_Värden,Betalningsdatum,\"\"), \"\")","v":""},{"$f":"IFERROR(IF(Ej_Betalat_Lån*Angivna_Värden,Ingående_Saldo,\"\"), \"\")","v":""},{"$f":"IFERROR(IF(Ej_Betalat_Lån*Angivna_Värden,Månadsbetalning,\"\"), \"\")","v":""},{"$f":"IFERROR(IF(Ej_Betalat_Lån*Angivna_Värden,Amortering,\"\"), \"\")","v":""},{"$f":"IFERROR(IF(Ej_Betalat_Lån*Angivna_Värden,Ränta,\"\"), \"\")","v":""},{"$f":"IFERROR(IF(Ej_Betalat_Lån*Angivna_Värden,Utgående_Saldo,\"\"), \"\")","v":""}]
[null,{"$f":"IFERROR(IF(Ej_Betalat_Lån*Angivna_Värden,Betalningsnummer,\"\"), \"\")","v":""},{"$f":"IFERROR(IF(Ej_Betalat_Lån*Angivna_Värden,Betalningsdatum,\"\"), \"\")","v":""},{"$f":"IFERROR(IF(Ej_Betalat_Lån*Angivna_Värden,Ingående_Saldo,\"\"), \"\")","v":""},{"$f":"IFERROR(IF(Ej_Betalat_Lån*Angivna_Värden,Månadsbetalning,\"\"), \"\")","v":""},{"$f":"IFERROR(IF(Ej_Betalat_Lån*Angivna_Värden,Amortering,\"\"), \"\")","v":""},{"$f":"IFERROR(IF(Ej_Betalat_Lån*Angivna_Värden,Ränta,\"\"), \"\")","v":""},{"$f":"IFERROR(IF(Ej_Betalat_Lån*Angivna_Värden,Utgående_Saldo,\"\"), \"\")","v":""}]
[null,{"$f":"IFERROR(IF(Ej_Betalat_Lån*Angivna_Värden,Betalningsnummer,\"\"), \"\")","v":""},{"$f":"IFERROR(IF(Ej_Betalat_Lån*Angivna_Värden,Betalningsdatum,\"\"), \"\")","v":""},{"$f":"IFERROR(IF(Ej_Betalat_Lån*Angivna_Värden,Ingående_Saldo,\"\"), \"\")","v":""},{"$f":"IFERROR(IF(Ej_Betalat_Lån*Angivna_Värden,Månadsbetalning,\"\"), \"\")","v":""},{"$f":"IFERROR(IF(Ej_Betalat_Lån*Angivna_Värden,Amortering,\"\"), \"\")","v":""},{"$f":"IFERROR(IF(Ej_Betalat_Lån*Angivna_Värden,Ränta,\"\"), \"\")","v":""},{"$f":"IFERROR(IF(Ej_Betalat_Lån*Angivna_Värden,Utgående_Saldo,\"\"), \"\")","v":""}]
[null,{"$f":"IFERROR(IF(Ej_Betalat_Lån*Angivna_Värden,Betalningsnummer,\"\"), \"\")","v":""},{"$f":"IFERROR(IF(Ej_Betalat_Lån*Angivna_Värden,Betalningsdatum,\"\"), \"\")","v":""},{"$f":"IFERROR(IF(Ej_Betalat_Lån*Angivna_Värden,Ingående_Saldo,\"\"), \"\")","v":""},{"$f":"IFERROR(IF(Ej_Betalat_Lån*Angivna_Värden,Månadsbetalning,\"\"), \"\")","v":""},{"$f":"IFERROR(IF(Ej_Betalat_Lån*Angivna_Värden,Amortering,\"\"), \"\")","v":""},{"$f":"IFERROR(IF(Ej_Betalat_Lån*Angivna_Värden,Ränta,\"\"), \"\")","v":""},{"$f":"IFERROR(IF(Ej_Betalat_Lån*Angivna_Värden,Utgående_Saldo,\"\"), \"\")","v":""}]
[null,{"$f":"IFERROR(IF(Ej_Betalat_Lån*Angivna_Värden,Betalningsnummer,\"\"), \"\")","v":""},{"$f":"IFERROR(IF(Ej_Betalat_Lån*Angivna_Värden,Betalningsdatum,\"\"), \"\")","v":""},{"$f":"IFERROR(IF(Ej_Betalat_Lån*Angivna_Värden,Ingående_Saldo,\"\"), \"\")","v":""},{"$f":"IFERROR(IF(Ej_Betalat_Lån*Angivna_Värden,Månadsbetalning,\"\"), \"\")","v":""},{"$f":"IFERROR(IF(Ej_Betalat_Lån*Angivna_Värden,Amortering,\"\"), \"\")","v":""},{"$f":"IFERROR(IF(Ej_Betalat_Lån*Angivna_Värden,Ränta,\"\"), \"\")","v":""},{"$f":"IFERROR(IF(Ej_Betalat_Lån*Angivna_Värden,Utgående_Saldo,\"\"), \"\")","v":""}]
[null,{"$f":"IFERROR(IF(Ej_Betalat_Lån*Angivna_Värden,Betalningsnummer,\"\"), \"\")","v":""},{"$f":"IFERROR(IF(Ej_Betalat_Lån*Angivna_Värden,Betalningsdatum,\"\"), \"\")","v":""},{"$f":"IFERROR(IF(Ej_Betalat_Lån*Angivna_Värden,Ingående_Saldo,\"\"), \"\")","v":""},{"$f":"IFERROR(IF(Ej_Betalat_Lån*Angivna_Värden,Månadsbetalning,\"\"), \"\")","v":""},{"$f":"IFERROR(IF(Ej_Betalat_Lån*Angivna_Värden,Amortering,\"\"), \"\")","v":""},{"$f":"IFERROR(IF(Ej_Betalat_Lån*Angivna_Värden,Ränta,\"\"), \"\")","v":""},{"$f":"IFERROR(IF(Ej_Betalat_Lån*Angivna_Värden,Utgående_Saldo,\"\"), \"\")","v":""}]
[null,{"$f":"IFERROR(IF(Ej_Betalat_Lån*Angivna_Värden,Betalningsnummer,\"\"), \"\")","v":""},{"$f":"IFERROR(IF(Ej_Betalat_Lån*Angivna_Värden,Betalningsdatum,\"\"), \"\")","v":""},{"$f":"IFERROR(IF(Ej_Betalat_Lån*Angivna_Värden,Ingående_Saldo,\"\"), \"\")","v":""},{"$f":"IFERROR(IF(Ej_Betalat_Lån*Angivna_Värden,Månadsbetalning,\"\"), \"\")","v":""},{"$f":"IFERROR(IF(Ej_Betalat_Lån*Angivna_Värden,Amortering,\"\"), \"\")","v":""},{"$f":"IFERROR(IF(Ej_Betalat_Lån*Angivna_Värden,Ränta,\"\"), \"\")","v":""},{"$f":"IFERROR(IF(Ej_Betalat_Lån*Angivna_Värden,Utgående_Saldo,\"\"), \"\")","v":""}]
[null,{"$f":"IFERROR(IF(Ej_Betalat_Lån*Angivna_Värden,Betalningsnummer,\"\"), \"\")","v":""},{"$f":"IFERROR(IF(Ej_Betalat_Lån*Angivna_Värden,Betalningsdatum,\"\"), \"\")","v":""},{"$f":"IFERROR(IF(Ej_Betalat_Lån*Angivna_Värden,Ingående_Saldo,\"\"), \"\")","v":""},{"$f":"IFERROR(IF(Ej_Betalat_Lån*Angivna_Värden,Månadsbetalning,\"\"), \"\")","v":""},{"$f":"IFERROR(IF(Ej_Betalat_Lån*Angivna_Värden,Amortering,\"\"), \"\")","v":""},{"$f":"IFERROR(IF(Ej_Betalat_Lån*Angivna_Värden,Ränta,\"\"), \"\")","v":""},{"$f":"IFERROR(IF(Ej_Betalat_Lån*Angivna_Värden,Utgående_Saldo,\"\"), \"\")","v":""}]
[null,{"$f":"IFERROR(IF(Ej_Betalat_Lån*Angivna_Värden,Betalningsnummer,\"\"), \"\")","v":""},{"$f":"IFERROR(IF(Ej_Betalat_Lån*Angivna_Värden,Betalningsdatum,\"\"), \"\")","v":""},{"$f":"IFERROR(IF(Ej_Betalat_Lån*Angivna_Värden,Ingående_Saldo,\"\"), \"\")","v":""},{"$f":"IFERROR(IF(Ej_Betalat_Lån*Angivna_Värden,Månadsbetalning,\"\"), \"\")","v":""},{"$f":"IFERROR(IF(Ej_Betalat_Lån*Angivna_Värden,Amortering,\"\"), \"\")","v":""},{"$f":"IFERROR(IF(Ej_Betalat_Lån*Angivna_Värden,Ränta,\"\"), \"\")","v":""},{"$f":"IFERROR(IF(Ej_Betalat_Lån*Angivna_Värden,Utgående_Saldo,\"\"), \"\")","v":""}]
[null,{"$f":"IFERROR(IF(Ej_Betalat_Lån*Angivna_Värden,Betalningsnummer,\"\"), \"\")","v":""},{"$f":"IFERROR(IF(Ej_Betalat_Lån*Angivna_Värden,Betalningsdatum,\"\"), \"\")","v":""},{"$f":"IFERROR(IF(Ej_Betalat_Lån*Angivna_Värden,Ingående_Saldo,\"\"), \"\")","v":""},{"$f":"IFERROR(IF(Ej_Betalat_Lån*Angivna_Värden,Månadsbetalning,\"\"), \"\")","v":""},{"$f":"IFERROR(IF(Ej_Betalat_Lån*Angivna_Värden,Amortering,\"\"), \"\")","v":""},{"$f":"IFERROR(IF(Ej_Betalat_Lån*Angivna_Värden,Ränta,\"\"), \"\")","v":""},{"$f":"IFERROR(IF(Ej_Betalat_Lån*Angivna_Värden,Utgående_Saldo,\"\"), \"\")","v":""}]
[null,{"$f":"IFERROR(IF(Ej_Betalat_Lån*Angivna_Värden,Betalningsnummer,\"\"), \"\")","v":""},{"$f":"IFERROR(IF(Ej_Betalat_Lån*Angivna_Värden,Betalningsdatum,\"\"), \"\")","v":""},{"$f":"IFERROR(IF(Ej_Betalat_Lån*Angivna_Värden,Ingående_Saldo,\"\"), \"\")","v":""},{"$f":"IFERROR(IF(Ej_Betalat_Lån*Angivna_Värden,Månadsbetalning,\"\"), \"\")","v":""},{"$f":"IFERROR(IF(Ej_Betalat_Lån*Angivna_Värden,Amortering,\"\"), \"\")","v":""},{"$f":"IFERROR(IF(Ej_Betalat_Lån*Angivna_Värden,Ränta,\"\"), \"\")","v":""},{"$f":"IFERROR(IF(Ej_Betalat_Lån*Angivna_Värden,Utgående_Saldo,\"\"), \"\")","v":""}]
[null,{"$f":"IFERROR(IF(Ej_Betalat_Lån*Angivna_Värden,Betalningsnummer,\"\"), \"\")","v":""},{"$f":"IFERROR(IF(Ej_Betalat_Lån*Angivna_Värden,Betalningsdatum,\"\"), \"\")","v":""},{"$f":"IFERROR(IF(Ej_Betalat_Lån*Angivna_Värden,Ingående_Saldo,\"\"), \"\")","v":""},{"$f":"IFERROR(IF(Ej_Betalat_Lån*Angivna_Värden,Månadsbetalning,\"\"), \"\")","v":""},{"$f":"IFERROR(IF(Ej_Betalat_Lån*Angivna_Värden,Amortering,\"\"), \"\")","v":""},{"$f":"IFERROR(IF(Ej_Betalat_Lån*Angivna_Värden,Ränta,\"\"), \"\")","v":""},{"$f":"IFERROR(IF(Ej_Betalat_Lån*Angivna_Värden,Utgående_Saldo,\"\"), \"\")","v":""}]
[null,{"$f":"IFERROR(IF(Ej_Betalat_Lån*Angivna_Värden,Betalningsnummer,\"\"), \"\")","v":""},{"$f":"IFERROR(IF(Ej_Betalat_Lån*Angivna_Värden,Betalningsdatum,\"\"), \"\")","v":""},{"$f":"IFERROR(IF(Ej_Betalat_Lån*Angivna_Värden,Ingående_Saldo,\"\"), \"\")","v":""},{"$f":"IFERROR(IF(Ej_Betalat_Lån*Angivna_Värden,Månadsbetalning,\"\"), \"\")","v":""},{"$f":"IFERROR(IF(Ej_Betalat_Lån*Angivna_Värden,Amortering,\"\"), \"\")","v":""},{"$f":"IFERROR(IF(Ej_Betalat_Lån*Angivna_Värden,Ränta,\"\"), \"\")","v":""},{"$f":"IFERROR(IF(Ej_Betalat_Lån*Angivna_Värden,Utgående_Saldo,\"\"), \"\")","v":""}]
[null,{"$f":"IFERROR(IF(Ej_Betalat_Lån*Angivna_Värden,Betalningsnummer,\"\"), \"\")","v":""},{"$f":"IFERROR(IF(Ej_Betalat_Lån*Angivna_Värden,Betalningsdatum,\"\"), \"\")","v":""},{"$f":"IFERROR(IF(Ej_Betalat_Lån*Angivna_Värden,Ingående_Saldo,\"\"), \"\")","v":""},{"$f":"IFERROR(IF(Ej_Betalat_Lån*Angivna_Värden,Månadsbetalning,\"\"), \"\")","v":""},{"$f":"IFERROR(IF(Ej_Betalat_Lån*Angivna_Värden,Amortering,\"\"), \"\")","v":""},{"$f":"IFERROR(IF(Ej_Betalat_Lån*Angivna_Värden,Ränta,\"\"), \"\")","v":""},{"$f":"IFERROR(IF(Ej_Betalat_Lån*Angivna_Värden,Utgående_Saldo,\"\"), \"\")","v":""}]
[null,{"$f":"IFERROR(IF(Ej_Betalat_Lån*Angivna_Värden,Betalningsnummer,\"\"), \"\")","v":""},{"$f":"IFERROR(IF(Ej_Betalat_Lån*Angivna_Värden,Betalningsdatum,\"\"), \"\")","v":""},{"$f":"IFERROR(IF(Ej_Betalat_Lån*Angivna_Värden,Ingående_Saldo,\"\"), \"\")","v":""},{"$f":"IFERROR(IF(Ej_Betalat_Lån*Angivna_Värden,Månadsbetalning,\"\"), \"\")","v":""},{"$f":"IFERROR(IF(Ej_Betalat_Lån*Angivna_Värden,Amortering,\"\"), \"\")","v":""},{"$f":"IFERROR(IF(Ej_Betalat_Lån*Angivna_Värden,Ränta,\"\"), \"\")","v":""},{"$f":"IFERROR(IF(Ej_Betalat_Lån*Angivna_Värden,Utgående_Saldo,\"\"), \"\")","v":""}]
[null,{"$f":"IFERROR(IF(Ej_Betalat_Lån*Angivna_Värden,Betalningsnummer,\"\"), \"\")","v":""},{"$f":"IFERROR(IF(Ej_Betalat_Lån*Angivna_Värden,Betalningsdatum,\"\"), \"\")","v":""},{"$f":"IFERROR(IF(Ej_Betalat_Lån*Angivna_Värden,Ingående_Saldo,\"\"), \"\")","v":""},{"$f":"IFERROR(IF(Ej_Betalat_Lån*Angivna_Värden,Månadsbetalning,\"\"), \"\")","v":""},{"$f":"IFERROR(IF(Ej_Betalat_Lån*Angivna_Värden,Amortering,\"\"), \"\")","v":""},{"$f":"IFERROR(IF(Ej_Betalat_Lån*Angivna_Värden,Ränta,\"\"), \"\")","v":""},{"$f":"IFERROR(IF(Ej_Betalat_Lån*Angivna_Värden,Utgående_Saldo,\"\"), \"\")","v":""}]
[null,{"$f":"IFERROR(IF(Ej_Betalat_Lån*Angivna_Värden,Betalningsnummer,\"\"), \"\")","v":""},{"$f":"IFERROR(IF(Ej_Betalat_Lån*Angivna_Värden,Betalningsdatum,\"\"), \"\")","v":""},{"$f":"IFERROR(IF(Ej_Betalat_Lån*Angivna_Värden,Ingående_Saldo,\"\"), \"\")","v":""},{"$f":"IFERROR(IF(Ej_Betalat_Lån*Angivna_Värden,Månadsbetalning,\"\"), \"\")","v":""},{"$f":"IFERROR(IF(Ej_Betalat_Lån*Angivna_Värden,Amortering,\"\"), \"\")","v":""},{"$f":"IFERROR(IF(Ej_Betalat_Lån*Angivna_Värden,Ränta,\"\"), \"\")","v":""},{"$f":"IFERROR(IF(Ej_Betalat_Lån*Angivna_Värden,Utgående_Saldo,\"\"), \"\")","v":""}]
[null,{"$f":"IFERROR(IF(Ej_Betalat_Lån*Angivna_Värden,Betalningsnummer,\"\"), \"\")","v":""},{"$f":"IFERROR(IF(Ej_Betalat_Lån*Angivna_Värden,Betalningsdatum,\"\"), \"\")","v":""},{"$f":"IFERROR(IF(Ej_Betalat_Lån*Angivna_Värden,Ingående_Saldo,\"\"), \"\")","v":""},{"$f":"IFERROR(IF(Ej_Betalat_Lån*Angivna_Värden,Månadsbetalning,\"\"), \"\")","v":""},{"$f":"IFERROR(IF(Ej_Betalat_Lån*Angivna_Värden,Amortering,\"\"), \"\")","v":""},{"$f":"IFERROR(IF(Ej_Betalat_Lån*Angivna_Värden,Ränta,\"\"), \"\")","v":""},{"$f":"IFERROR(IF(Ej_Betalat_Lån*Angivna_Värden,Utgående_Saldo,\"\"), \"\")","v":""}]
[null,{"$f":"IFERROR(IF(Ej_Betalat_Lån*Angivna_Värden,Betalningsnummer,\"\"), \"\")","v":""},{"$f":"IFERROR(IF(Ej_Betalat_Lån*Angivna_Värden,Betalningsdatum,\"\"), \"\")","v":""},{"$f":"IFERROR(IF(Ej_Betalat_Lån*Angivna_Värden,Ingående_Saldo,\"\"), \"\")","v":""},{"$f":"IFERROR(IF(Ej_Betalat_Lån*Angivna_Värden,Månadsbetalning,\"\"), \"\")","v":""},{"$f":"IFERROR(IF(Ej_Betalat_Lån*Angivna_Värden,Amortering,\"\"), \"\")","v":""},{"$f":"IFERROR(IF(Ej_Betalat_Lån*Angivna_Värden,Ränta,\"\"), \"\")","v":""},{"$f":"IFERROR(IF(Ej_Betalat_Lån*Angivna_Värden,Utgående_Saldo,\"\"), \"\")","v":""}]
[null,{"$f":"IFERROR(IF(Ej_Betalat_Lån*Angivna_Värden,Betalningsnummer,\"\"), \"\")","v":""},{"$f":"IFERROR(IF(Ej_Betalat_Lån*Angivna_Värden,Betalningsdatum,\"\"), \"\")","v":""},{"$f":"IFERROR(IF(Ej_Betalat_Lån*Angivna_Värden,Ingående_Saldo,\"\"), \"\")","v":""},{"$f":"IFERROR(IF(Ej_Betalat_Lån*Angivna_Värden,Månadsbetalning,\"\"), \"\")","v":""},{"$f":"IFERROR(IF(Ej_Betalat_Lån*Angivna_Värden,Amortering,\"\"), \"\")","v":""},{"$f":"IFERROR(IF(Ej_Betalat_Lån*Angivna_Värden,Ränta,\"\"), \"\")","v":""},{"$f":"IFERROR(IF(Ej_Betalat_Lån*Angivna_Värden,Utgående_Saldo,\"\"), \"\")","v":""}]
[null,{"$f":"IFERROR(IF(Ej_Betalat_Lån*Angivna_Värden,Betalningsnummer,\"\"), \"\")","v":""},{"$f":"IFERROR(IF(Ej_Betalat_Lån*Angivna_Värden,Betalningsdatum,\"\"), \"\")","v":""},{"$f":"IFERROR(IF(Ej_Betalat_Lån*Angivna_Värden,Ingående_Saldo,\"\"), \"\")","v":""},{"$f":"IFERROR(IF(Ej_Betalat_Lån*Angivna_Värden,Månadsbetalning,\"\"), \"\")","v":""},{"$f":"IFERROR(IF(Ej_Betalat_Lån*Angivna_Värden,Amortering,\"\"), \"\")","v":""},{"$f":"IFERROR(IF(Ej_Betalat_Lån*Angivna_Värden,Ränta,\"\"), \"\")","v":""},{"$f":"IFERROR(IF(Ej_Betalat_Lån*Angivna_Värden,Utgående_Saldo,\"\"), \"\")","v":""}]
[null,{"$f":"IFERROR(IF(Ej_Betalat_Lån*Angivna_Värden,Betalningsnummer,\"\"), \"\")","v":""},{"$f":"IFERROR(IF(Ej_Betalat_Lån*Angivna_Värden,Betalningsdatum,\"\"), \"\")","v":""},{"$f":"IFERROR(IF(Ej_Betalat_Lån*Angivna_Värden,Ingående_Saldo,\"\"), \"\")","v":""},{"$f":"IFERROR(IF(Ej_Betalat_Lån*Angivna_Värden,Månadsbetalning,\"\"), \"\")","v":""},{"$f":"IFERROR(IF(Ej_Betalat_Lån*Angivna_Värden,Amortering,\"\"), \"\")","v":""},{"$f":"IFERROR(IF(Ej_Betalat_Lån*Angivna_Värden,Ränta,\"\"), \"\")","v":""},{"$f":"IFERROR(IF(Ej_Betalat_Lån*Angivna_Värden,Utgående_Saldo,\"\"), \"\")","v":""}]
[null,{"$f":"IFERROR(IF(Ej_Betalat_Lån*Angivna_Värden,Betalningsnummer,\"\"), \"\")","v":""},{"$f":"IFERROR(IF(Ej_Betalat_Lån*Angivna_Värden,Betalningsdatum,\"\"), \"\")","v":""},{"$f":"IFERROR(IF(Ej_Betalat_Lån*Angivna_Värden,Ingående_Saldo,\"\"), \"\")","v":""},{"$f":"IFERROR(IF(Ej_Betalat_Lån*Angivna_Värden,Månadsbetalning,\"\"), \"\")","v":""},{"$f":"IFERROR(IF(Ej_Betalat_Lån*Angivna_Värden,Amortering,\"\"), \"\")","v":""},{"$f":"IFERROR(IF(Ej_Betalat_Lån*Angivna_Värden,Ränta,\"\"), \"\")","v":""},{"$f":"IFERROR(IF(Ej_Betalat_Lån*Angivna_Värden,Utgående_Saldo,\"\"), \"\")","v":""}]
[null,{"$f":"IFERROR(IF(Ej_Betalat_Lån*Angivna_Värden,Betalningsnummer,\"\"), \"\")","v":""},{"$f":"IFERROR(IF(Ej_Betalat_Lån*Angivna_Värden,Betalningsdatum,\"\"), \"\")","v":""},{"$f":"IFERROR(IF(Ej_Betalat_Lån*Angivna_Värden,Ingående_Saldo,\"\"), \"\")","v":""},{"$f":"IFERROR(IF(Ej_Betalat_Lån*Angivna_Värden,Månadsbetalning,\"\"), \"\")","v":""},{"$f":"IFERROR(IF(Ej_Betalat_Lån*Angivna_Värden,Amortering,\"\"), \"\")","v":""},{"$f":"IFERROR(IF(Ej_Betalat_Lån*Angivna_Värden,Ränta,\"\"), \"\")","v":""},{"$f":"IFERROR(IF(Ej_Betalat_Lån*Angivna_Värden,Utgående_Saldo,\"\"), \"\")","v":""}]
[null,{"$f":"IFERROR(IF(Ej_Betalat_Lån*Angivna_Värden,Betalningsnummer,\"\"), \"\")","v":""},{"$f":"IFERROR(IF(Ej_Betalat_Lån*Angivna_Värden,Betalningsdatum,\"\"), \"\")","v":""},{"$f":"IFERROR(IF(Ej_Betalat_Lån*Angivna_Värden,Ingående_Saldo,\"\"), \"\")","v":""},{"$f":"IFERROR(IF(Ej_Betalat_Lån*Angivna_Värden,Månadsbetalning,\"\"), \"\")","v":""},{"$f":"IFERROR(IF(Ej_Betalat_Lån*Angivna_Värden,Amortering,\"\"), \"\")","v":""},{"$f":"IFERROR(IF(Ej_Betalat_Lån*Angivna_Värden,Ränta,\"\"), \"\")","v":""},{"$f":"IFERROR(IF(Ej_Betalat_Lån*Angivna_Värden,Utgående_Saldo,\"\"), \"\")","v":""}]
[null,{"$f":"IFERROR(IF(Ej_Betalat_Lån*Angivna_Värden,Betalningsnummer,\"\"), \"\")","v":""},{"$f":"IFERROR(IF(Ej_Betalat_Lån*Angivna_Värden,Betalningsdatum,\"\"), \"\")","v":""},{"$f":"IFERROR(IF(Ej_Betalat_Lån*Angivna_Värden,Ingående_Saldo,\"\"), \"\")","v":""},{"$f":"IFERROR(IF(Ej_Betalat_Lån*Angivna_Värden,Månadsbetalning,\"\"), \"\")","v":""},{"$f":"IFERROR(IF(Ej_Betalat_Lån*Angivna_Värden,Amortering,\"\"), \"\")","v":""},{"$f":"IFERROR(IF(Ej_Betalat_Lån*Angivna_Värden,Ränta,\"\"), \"\")","v":""},{"$f":"IFERROR(IF(Ej_Betalat_Lån*Angivna_Värden,Utgående_Saldo,\"\"), \"\")","v":""}]
[null,{"$f":"IFERROR(IF(Ej_Betalat_Lån*Angivna_Värden,Betalningsnummer,\"\"), \"\")","v":""},{"$f":"IFERROR(IF(Ej_Betalat_Lån*Angivna_Värden,Betalningsdatum,\"\"), \"\")","v":""},{"$f":"IFERROR(IF(Ej_Betalat_Lån*Angivna_Värden,Ingående_Saldo,\"\"), \"\")","v":""},{"$f":"IFERROR(IF(Ej_Betalat_Lån*Angivna_Värden,Månadsbetalning,\"\"), \"\")","v":""},{"$f":"IFERROR(IF(Ej_Betalat_Lån*Angivna_Värden,Amortering,\"\"), \"\")","v":""},{"$f":"IFERROR(IF(Ej_Betalat_Lån*Angivna_Värden,Ränta,\"\"), \"\")","v":""},{"$f":"IFERROR(IF(Ej_Betalat_Lån*Angivna_Värden,Utgående_Saldo,\"\"), \"\")","v":""}]
[null,{"$f":"IFERROR(IF(Ej_Betalat_Lån*Angivna_Värden,Betalningsnummer,\"\"), \"\")","v":""},{"$f":"IFERROR(IF(Ej_Betalat_Lån*Angivna_Värden,Betalningsdatum,\"\"), \"\")","v":""},{"$f":"IFERROR(IF(Ej_Betalat_Lån*Angivna_Värden,Ingående_Saldo,\"\"), \"\")","v":""},{"$f":"IFERROR(IF(Ej_Betalat_Lån*Angivna_Värden,Månadsbetalning,\"\"), \"\")","v":""},{"$f":"IFERROR(IF(Ej_Betalat_Lån*Angivna_Värden,Amortering,\"\"), \"\")","v":""},{"$f":"IFERROR(IF(Ej_Betalat_Lån*Angivna_Värden,Ränta,\"\"), \"\")","v":""},{"$f":"IFERROR(IF(Ej_Betalat_Lån*Angivna_Värden,Utgående_Saldo,\"\"), \"\")","v":""}]
[null,{"$f":"IFERROR(IF(Ej_Betalat_Lån*Angivna_Värden,Betalningsnummer,\"\"), \"\")","v":""},{"$f":"IFERROR(IF(Ej_Betalat_Lån*Angivna_Värden,Betalningsdatum,\"\"), \"\")","v":""},{"$f":"IFERROR(IF(Ej_Betalat_Lån*Angivna_Värden,Ingående_Saldo,\"\"), \"\")","v":""},{"$f":"IFERROR(IF(Ej_Betalat_Lån*Angivna_Värden,Månadsbetalning,\"\"), \"\")","v":""},{"$f":"IFERROR(IF(Ej_Betalat_Lån*Angivna_Värden,Amortering,\"\"), \"\")","v":""},{"$f":"IFERROR(IF(Ej_Betalat_Lån*Angivna_Värden,Ränta,\"\"), \"\")","v":""},{"$f":"IFERROR(IF(Ej_Betalat_Lån*Angivna_Värden,Utgående_Saldo,\"\"), \"\")","v":""}]
[null,{"$f":"IFERROR(IF(Ej_Betalat_Lån*Angivna_Värden,Betalningsnummer,\"\"), \"\")","v":""},{"$f":"IFERROR(IF(Ej_Betalat_Lån*Angivna_Värden,Betalningsdatum,\"\"), \"\")","v":""},{"$f":"IFERROR(IF(Ej_Betalat_Lån*Angivna_Värden,Ingående_Saldo,\"\"), \"\")","v":""},{"$f":"IFERROR(IF(Ej_Betalat_Lån*Angivna_Värden,Månadsbetalning,\"\"), \"\")","v":""},{"$f":"IFERROR(IF(Ej_Betalat_Lån*Angivna_Värden,Amortering,\"\"), \"\")","v":""},{"$f":"IFERROR(IF(Ej_Betalat_Lån*Angivna_Värden,Ränta,\"\"), \"\")","v":""},{"$f":"IFERROR(IF(Ej_Betalat_Lån*Angivna_Värden,Utgående_Saldo,\"\"), \"\")","v":""}]
[null,{"$f":"IFERROR(IF(Ej_Betalat_Lån*Angivna_Värden,Betalningsnummer,\"\"), \"\")","v":""},{"$f":"IFERROR(IF(Ej_Betalat_Lån*Angivna_Värden,Betalningsdatum,\"\"), \"\")","v":""},{"$f":"IFERROR(IF(Ej_Betalat_Lån*Angivna_Värden,Ingående_Saldo,\"\"), \"\")","v":""},{"$f":"IFERROR(IF(Ej_Betalat_Lån*Angivna_Värden,Månadsbetalning,\"\"), \"\")","v":""},{"$f":"IFERROR(IF(Ej_Betalat_Lån*Angivna_Värden,Amortering,\"\"), \"\")","v":""},{"$f":"IFERROR(IF(Ej_Betalat_Lån*Angivna_Värden,Ränta,\"\"), \"\")","v":""},{"$f":"IFERROR(IF(Ej_Betalat_Lån*Angivna_Värden,Utgående_Saldo,\"\"), \"\")","v":""}]
[null,{"$f":"IFERROR(IF(Ej_Betalat_Lån*Angivna_Värden,Betalningsnummer,\"\"), \"\")","v":""},{"$f":"IFERROR(IF(Ej_Betalat_Lån*Angivna_Värden,Betalningsdatum,\"\"), \"\")","v":""},{"$f":"IFERROR(IF(Ej_Betalat_Lån*Angivna_Värden,Ingående_Saldo,\"\"), \"\")","v":""},{"$f":"IFERROR(IF(Ej_Betalat_Lån*Angivna_Värden,Månadsbetalning,\"\"), \"\")","v":""},{"$f":"IFERROR(IF(Ej_Betalat_Lån*Angivna_Värden,Amortering,\"\"), \"\")","v":""},{"$f":"IFERROR(IF(Ej_Betalat_Lån*Angivna_Värden,Ränta,\"\"), \"\")","v":""},{"$f":"IFERROR(IF(Ej_Betalat_Lån*Angivna_Värden,Utgående_Saldo,\"\"), \"\")","v":""}]
[null,{"$f":"IFERROR(IF(Ej_Betalat_Lån*Angivna_Värden,Betalningsnummer,\"\"), \"\")","v":""},{"$f":"IFERROR(IF(Ej_Betalat_Lån*Angivna_Värden,Betalningsdatum,\"\"), \"\")","v":""},{"$f":"IFERROR(IF(Ej_Betalat_Lån*Angivna_Värden,Ingående_Saldo,\"\"), \"\")","v":""},{"$f":"IFERROR(IF(Ej_Betalat_Lån*Angivna_Värden,Månadsbetalning,\"\"), \"\")","v":""},{"$f":"IFERROR(IF(Ej_Betalat_Lån*Angivna_Värden,Amortering,\"\"), \"\")","v":""},{"$f":"IFERROR(IF(Ej_Betalat_Lån*Angivna_Värden,Ränta,\"\"), \"\")","v":""},{"$f":"IFERROR(IF(Ej_Betalat_Lån*Angivna_Värden,Utgående_Saldo,\"\"), \"\")","v":""}]
[null,{"$f":"IFERROR(IF(Ej_Betalat_Lån*Angivna_Värden,Betalningsnummer,\"\"), \"\")","v":""},{"$f":"IFERROR(IF(Ej_Betalat_Lån*Angivna_Värden,Betalningsdatum,\"\"), \"\")","v":""},{"$f":"IFERROR(IF(Ej_Betalat_Lån*Angivna_Värden,Ingående_Saldo,\"\"), \"\")","v":""},{"$f":"IFERROR(IF(Ej_Betalat_Lån*Angivna_Värden,Månadsbetalning,\"\"), \"\")","v":""},{"$f":"IFERROR(IF(Ej_Betalat_Lån*Angivna_Värden,Amortering,\"\"), \"\")","v":""},{"$f":"IFERROR(IF(Ej_Betalat_Lån*Angivna_Värden,Ränta,\"\"), \"\")","v":""},{"$f":"IFERROR(IF(Ej_Betalat_Lån*Angivna_Värden,Utgående_Saldo,\"\"), \"\")","v":""}]
[null,{"$f":"IFERROR(IF(Ej_Betalat_Lån*Angivna_Värden,Betalningsnummer,\"\"), \"\")","v":""},{"$f":"IFERROR(IF(Ej_Betalat_Lån*Angivna_Värden,Betalningsdatum,\"\"), \"\")","v":""},{"$f":"IFERROR(IF(Ej_Betalat_Lån*Angivna_Värden,Ingående_Saldo,\"\"), \"\")","v":""},{"$f":"IFERROR(IF(Ej_Betalat_Lån*Angivna_Värden,Månadsbetalning,\"\"), \"\")","v":""},{"$f":"IFERROR(IF(Ej_Betalat_Lån*Angivna_Värden,Amortering,\"\"), \"\")","v":""},{"$f":"IFERROR(IF(Ej_Betalat_Lån*Angivna_Värden,Ränta,\"\"), \"\")","v":""},{"$f":"IFERROR(IF(Ej_Betalat_Lån*Angivna_Värden,Utgående_Saldo,\"\"), \"\")","v":""}]
[null,{"$f":"IFERROR(IF(Ej_Betalat_Lån*Angivna_Värden,Betalningsnummer,\"\"), \"\")","v":""},{"$f":"IFERROR(IF(Ej_Betalat_Lån*Angivna_Värden,Betalningsdatum,\"\"), \"\")","v":""},{"$f":"IFERROR(IF(Ej_Betalat_Lån*Angivna_Värden,Ingående_Saldo,\"\"), \"\")","v":""},{"$f":"IFERROR(IF(Ej_Betalat_Lån*Angivna_Värden,Månadsbetalning,\"\"), \"\")","v":""},{"$f":"IFERROR(IF(Ej_Betalat_Lån*Angivna_Värden,Amortering,\"\"), \"\")","v":""},{"$f":"IFERROR(IF(Ej_Betalat_Lån*Angivna_Värden,Ränta,\"\"), \"\")","v":""},{"$f":"IFERROR(IF(Ej_Betalat_Lån*Angivna_Värden,Utgående_Saldo,\"\"), \"\")","v":""}]
[null,{"$f":"IFERROR(IF(Ej_Betalat_Lån*Angivna_Värden,Betalningsnummer,\"\"), \"\")","v":""},{"$f":"IFERROR(IF(Ej_Betalat_Lån*Angivna_Värden,Betalningsdatum,\"\"), \"\")","v":""},{"$f":"IFERROR(IF(Ej_Betalat_Lån*Angivna_Värden,Ingående_Saldo,\"\"), \"\")","v":""},{"$f":"IFERROR(IF(Ej_Betalat_Lån*Angivna_Värden,Månadsbetalning,\"\"), \"\")","v":""},{"$f":"IFERROR(IF(Ej_Betalat_Lån*Angivna_Värden,Amortering,\"\"), \"\")","v":""},{"$f":"IFERROR(IF(Ej_Betalat_Lån*Angivna_Värden,Ränta,\"\"), \"\")","v":""},{"$f":"IFERROR(IF(Ej_Betalat_Lån*Angivna_Värden,Utgående_Saldo,\"\"), \"\")","v":""}]
[null,{"$f":"IFERROR(IF(Ej_Betalat_Lån*Angivna_Värden,Betalningsnummer,\"\"), \"\")","v":""},{"$f":"IFERROR(IF(Ej_Betalat_Lån*Angivna_Värden,Betalningsdatum,\"\"), \"\")","v":""},{"$f":"IFERROR(IF(Ej_Betalat_Lån*Angivna_Värden,Ingående_Saldo,\"\"), \"\")","v":""},{"$f":"IFERROR(IF(Ej_Betalat_Lån*Angivna_Värden,Månadsbetalning,\"\"), \"\")","v":""},{"$f":"IFERROR(IF(Ej_Betalat_Lån*Angivna_Värden,Amortering,\"\"), \"\")","v":""},{"$f":"IFERROR(IF(Ej_Betalat_Lån*Angivna_Värden,Ränta,\"\"), \"\")","v":""},{"$f":"IFERROR(IF(Ej_Betalat_Lån*Angivna_Värden,Utgående_Saldo,\"\"), \"\")","v":""}]
[null,{"$f":"IFERROR(IF(Ej_Betalat_Lån*Angivna_Värden,Betalningsnummer,\"\"), \"\")","v":""},{"$f":"IFERROR(IF(Ej_Betalat_Lån*Angivna_Värden,Betalningsdatum,\"\"), \"\")","v":""},{"$f":"IFERROR(IF(Ej_Betalat_Lån*Angivna_Värden,Ingående_Saldo,\"\"), \"\")","v":""},{"$f":"IFERROR(IF(Ej_Betalat_Lån*Angivna_Värden,Månadsbetalning,\"\"), \"\")","v":""},{"$f":"IFERROR(IF(Ej_Betalat_Lån*Angivna_Värden,Amortering,\"\"), \"\")","v":""},{"$f":"IFERROR(IF(Ej_Betalat_Lån*Angivna_Värden,Ränta,\"\"), \"\")","v":""},{"$f":"IFERROR(IF(Ej_Betalat_Lån*Angivna_Värden,Utgående_Saldo,\"\"), \"\")","v":""}]
[null,{"$f":"IFERROR(IF(Ej_Betalat_Lån*Angivna_Värden,Betalningsnummer,\"\"), \"\")","v":""},{"$f":"IFERROR(IF(Ej_Betalat_Lån*Angivna_Värden,Betalningsdatum,\"\"), \"\")","v":""},{"$f":"IFERROR(IF(Ej_Betalat_Lån*Angivna_Värden,Ingående_Saldo,\"\"), \"\")","v":""},{"$f":"IFERROR(IF(Ej_Betalat_Lån*Angivna_Värden,Månadsbetalning,\"\"), \"\")","v":""},{"$f":"IFERROR(IF(Ej_Betalat_Lån*Angivna_Värden,Amortering,\"\"), \"\")","v":""},{"$f":"IFERROR(IF(Ej_Betalat_Lån*Angivna_Värden,Ränta,\"\"), \"\")","v":""},{"$f":"IFERROR(IF(Ej_Betalat_Lån*Angivna_Värden,Utgående_Saldo,\"\"), \"\")","v":""}]
[null,{"$f":"IFERROR(IF(Ej_Betalat_Lån*Angivna_Värden,Betalningsnummer,\"\"), \"\")","v":""},{"$f":"IFERROR(IF(Ej_Betalat_Lån*Angivna_Värden,Betalningsdatum,\"\"), \"\")","v":""},{"$f":"IFERROR(IF(Ej_Betalat_Lån*Angivna_Värden,Ingående_Saldo,\"\"), \"\")","v":""},{"$f":"IFERROR(IF(Ej_Betalat_Lån*Angivna_Värden,Månadsbetalning,\"\"), \"\")","v":""},{"$f":"IFERROR(IF(Ej_Betalat_Lån*Angivna_Värden,Amortering,\"\"), \"\")","v":""},{"$f":"IFERROR(IF(Ej_Betalat_Lån*Angivna_Värden,Ränta,\"\"), \"\")","v":""},{"$f":"IFERROR(IF(Ej_Betalat_Lån*Angivna_Värden,Utgående_Saldo,\"\"), \"\")","v":""}]
[null,{"$f":"IFERROR(IF(Ej_Betalat_Lån*Angivna_Värden,Betalningsnummer,\"\"), \"\")","v":""},{"$f":"IFERROR(IF(Ej_Betalat_Lån*Angivna_Värden,Betalningsdatum,\"\"), \"\")","v":""},{"$f":"IFERROR(IF(Ej_Betalat_Lån*Angivna_Värden,Ingående_Saldo,\"\"), \"\")","v":""},{"$f":"IFERROR(IF(Ej_Betalat_Lån*Angivna_Värden,Månadsbetalning,\"\"), \"\")","v":""},{"$f":"IFERROR(IF(Ej_Betalat_Lån*Angivna_Värden,Amortering,\"\"), \"\")","v":""},{"$f":"IFERROR(IF(Ej_Betalat_Lån*Angivna_Värden,Ränta,\"\"), \"\")","v":""},{"$f":"IFERROR(IF(Ej_Betalat_Lån*Angivna_Värden,Utgående_Saldo,\"\"), \"\")","v":""}]
[null,{"$f":"IFERROR(IF(Ej_Betalat_Lån*Angivna_Värden,Betalningsnummer,\"\"), \"\")","v":""},{"$f":"IFERROR(IF(Ej_Betalat_Lån*Angivna_Värden,Betalningsdatum,\"\"), \"\")","v":""},{"$f":"IFERROR(IF(Ej_Betalat_Lån*Angivna_Värden,Ingående_Saldo,\"\"), \"\")","v":""},{"$f":"IFERROR(IF(Ej_Betalat_Lån*Angivna_Värden,Månadsbetalning,\"\"), \"\")","v":""},{"$f":"IFERROR(IF(Ej_Betalat_Lån*Angivna_Värden,Amortering,\"\"), \"\")","v":""},{"$f":"IFERROR(IF(Ej_Betalat_Lån*Angivna_Värden,Ränta,\"\"), \"\")","v":""},{"$f":"IFERROR(IF(Ej_Betalat_Lån*Angivna_Värden,Utgående_Saldo,\"\"), \"\")","v":""}]
[null,{"$f":"IFERROR(IF(Ej_Betalat_Lån*Angivna_Värden,Betalningsnummer,\"\"), \"\")","v":""},{"$f":"IFERROR(IF(Ej_Betalat_Lån*Angivna_Värden,Betalningsdatum,\"\"), \"\")","v":""},{"$f":"IFERROR(IF(Ej_Betalat_Lån*Angivna_Värden,Ingående_Saldo,\"\"), \"\")","v":""},{"$f":"IFERROR(IF(Ej_Betalat_Lån*Angivna_Värden,Månadsbetalning,\"\"), \"\")","v":""},{"$f":"IFERROR(IF(Ej_Betalat_Lån*Angivna_Värden,Amortering,\"\"), \"\")","v":""},{"$f":"IFERROR(IF(Ej_Betalat_Lån*Angivna_Värden,Ränta,\"\"), \"\")","v":""},{"$f":"IFERROR(IF(Ej_Betalat_Lån*Angivna_Värden,Utgående_Saldo,\"\"), \"\")","v":""}]
[null,{"$f":"IFERROR(IF(Ej_Betalat_Lån*Angivna_Värden,Betalningsnummer,\"\"), \"\")","v":""},{"$f":"IFERROR(IF(Ej_Betalat_Lån*Angivna_Värden,Betalningsdatum,\"\"), \"\")","v":""},{"$f":"IFERROR(IF(Ej_Betalat_Lån*Angivna_Värden,Ingående_Saldo,\"\"), \"\")","v":""},{"$f":"IFERROR(IF(Ej_Betalat_Lån*Angivna_Värden,Månadsbetalning,\"\"), \"\")","v":""},{"$f":"IFERROR(IF(Ej_Betalat_Lån*Angivna_Värden,Amortering,\"\"), \"\")","v":""},{"$f":"IFERROR(IF(Ej_Betalat_Lån*Angivna_Värden,Ränta,\"\"), \"\")","v":""},{"$f":"IFERROR(IF(Ej_Betalat_Lån*Angivna_Värden,Utgående_Saldo,\"\"), \"\")","v":""}]
[null,{"$f":"IFERROR(IF(Ej_Betalat_Lån*Angivna_Värden,Betalningsnummer,\"\"), \"\")","v":""},{"$f":"IFERROR(IF(Ej_Betalat_Lån*Angivna_Värden,Betalningsdatum,\"\"), \"\")","v":""},{"$f":"IFERROR(IF(Ej_Betalat_Lån*Angivna_Värden,Ingående_Saldo,\"\"), \"\")","v":""},{"$f":"IFERROR(IF(Ej_Betalat_Lån*Angivna_Värden,Månadsbetalning,\"\"), \"\")","v":""},{"$f":"IFERROR(IF(Ej_Betalat_Lån*Angivna_Värden,Amortering,\"\"), \"\")","v":""},{"$f":"IFERROR(IF(Ej_Betalat_Lån*Angivna_Värden,Ränta,\"\"), \"\")","v":""},{"$f":"IFERROR(IF(Ej_Betalat_Lån*Angivna_Värden,Utgående_Saldo,\"\"), \"\")","v":""}]
[null,{"$f":"IFERROR(IF(Ej_Betalat_Lån*Angivna_Värden,Betalningsnummer,\"\"), \"\")","v":""},{"$f":"IFERROR(IF(Ej_Betalat_Lån*Angivna_Värden,Betalningsdatum,\"\"), \"\")","v":""},{"$f":"IFERROR(IF(Ej_Betalat_Lån*Angivna_Värden,Ingående_Saldo,\"\"), \"\")","v":""},{"$f":"IFERROR(IF(Ej_Betalat_Lån*Angivna_Värden,Månadsbetalning,\"\"), \"\")","v":""},{"$f":"IFERROR(IF(Ej_Betalat_Lån*Angivna_Värden,Amortering,\"\"), \"\")","v":""},{"$f":"IFERROR(IF(Ej_Betalat_Lån*Angivna_Värden,Ränta,\"\"), \"\")","v":""},{"$f":"IFERROR(IF(Ej_Betalat_Lån*Angivna_Värden,Utgående_Saldo,\"\"), \"\")","v":""}]
[null,{"$f":"IFERROR(IF(Ej_Betalat_Lån*Angivna_Värden,Betalningsnummer,\"\"), \"\")","v":""},{"$f":"IFERROR(IF(Ej_Betalat_Lån*Angivna_Värden,Betalningsdatum,\"\"), \"\")","v":""},{"$f":"IFERROR(IF(Ej_Betalat_Lån*Angivna_Värden,Ingående_Saldo,\"\"), \"\")","v":""},{"$f":"IFERROR(IF(Ej_Betalat_Lån*Angivna_Värden,Månadsbetalning,\"\"), \"\")","v":""},{"$f":"IFERROR(IF(Ej_Betalat_Lån*Angivna_Värden,Amortering,\"\"), \"\")","v":""},{"$f":"IFERROR(IF(Ej_Betalat_Lån*Angivna_Värden,Ränta,\"\"), \"\")","v":""},{"$f":"IFERROR(IF(Ej_Betalat_Lån*Angivna_Värden,Utgående_Saldo,\"\"), \"\")","v":""}]
[null,{"$f":"IFERROR(IF(Ej_Betalat_Lån*Angivna_Värden,Betalningsnummer,\"\"), \"\")","v":""},{"$f":"IFERROR(IF(Ej_Betalat_Lån*Angivna_Värden,Betalningsdatum,\"\"), \"\")","v":""},{"$f":"IFERROR(IF(Ej_Betalat_Lån*Angivna_Värden,Ingående_Saldo,\"\"), \"\")","v":""},{"$f":"IFERROR(IF(Ej_Betalat_Lån*Angivna_Värden,Månadsbetalning,\"\"), \"\")","v":""},{"$f":"IFERROR(IF(Ej_Betalat_Lån*Angivna_Värden,Amortering,\"\"), \"\")","v":""},{"$f":"IFERROR(IF(Ej_Betalat_Lån*Angivna_Värden,Ränta,\"\"), \"\")","v":""},{"$f":"IFERROR(IF(Ej_Betalat_Lån*Angivna_Värden,Utgående_Saldo,\"\"), \"\")","v":""}]
[null,{"$f":"IFERROR(IF(Ej_Betalat_Lån*Angivna_Värden,Betalningsnummer,\"\"), \"\")","v":""},{"$f":"IFERROR(IF(Ej_Betalat_Lån*Angivna_Värden,Betalningsdatum,\"\"), \"\")","v":""},{"$f":"IFERROR(IF(Ej_Betalat_Lån*Angivna_Värden,Ingående_Saldo,\"\"), \"\")","v":""},{"$f":"IFERROR(IF(Ej_Betalat_Lån*Angivna_Värden,Månadsbetalning,\"\"), \"\")","v":""},{"$f":"IFERROR(IF(Ej_Betalat_Lån*Angivna_Värden,Amortering,\"\"), \"\")","v":""},{"$f":"IFERROR(IF(Ej_Betalat_Lån*Angivna_Värden,Ränta,\"\"), \"\")","v":""},{"$f":"IFERROR(IF(Ej_Betalat_Lån*Angivna_Värden,Utgående_Saldo,\"\"), \"\")","v":""}]
[null,{"$f":"IFERROR(IF(Ej_Betalat_Lån*Angivna_Värden,Betalningsnummer,\"\"), \"\")","v":""},{"$f":"IFERROR(IF(Ej_Betalat_Lån*Angivna_Värden,Betalningsdatum,\"\"), \"\")","v":""},{"$f":"IFERROR(IF(Ej_Betalat_Lån*Angivna_Värden,Ingående_Saldo,\"\"), \"\")","v":""},{"$f":"IFERROR(IF(Ej_Betalat_Lån*Angivna_Värden,Månadsbetalning,\"\"), \"\")","v":""},{"$f":"IFERROR(IF(Ej_Betalat_Lån*Angivna_Värden,Amortering,\"\"), \"\")","v":""},{"$f":"IFERROR(IF(Ej_Betalat_Lån*Angivna_Värden,Ränta,\"\"), \"\")","v":""},{"$f":"IFERROR(IF(Ej_Betalat_Lån*Angivna_Värden,Utgående_Saldo,\"\"), \"\")","v":""}]
[null,{"$f":"IFERROR(IF(Ej_Betalat_Lån*Angivna_Värden,Betalningsnummer,\"\"), \"\")","v":""},{"$f":"IFERROR(IF(Ej_Betalat_Lån*Angivna_Värden,Betalningsdatum,\"\"), \"\")","v":""},{"$f":"IFERROR(IF(Ej_Betalat_Lån*Angivna_Värden,Ingående_Saldo,\"\"), \"\")","v":""},{"$f":"IFERROR(IF(Ej_Betalat_Lån*Angivna_Värden,Månadsbetalning,\"\"), \"\")","v":""},{"$f":"IFERROR(IF(Ej_Betalat_Lån*Angivna_Värden,Amortering,\"\"), \"\")","v":""},{"$f":"IFERROR(IF(Ej_Betalat_Lån*Angivna_Värden,Ränta,\"\"), \"\")","v":""},{"$f":"IFERROR(IF(Ej_Betalat_Lån*Angivna_Värden,Utgående_Saldo,\"\"), \"\")","v":""}]
[null,{"$f":"IFERROR(IF(Ej_Betalat_Lån*Angivna_Värden,Betalningsnummer,\"\"), \"\")","v":""},{"$f":"IFERROR(IF(Ej_Betalat_Lån*Angivna_Värden,Betalningsdatum,\"\"), \"\")","v":""},{"$f":"IFERROR(IF(Ej_Betalat_Lån*Angivna_Värden,Ingående_Saldo,\"\"), \"\")","v":""},{"$f":"IFERROR(IF(Ej_Betalat_Lån*Angivna_Värden,Månadsbetalning,\"\"), \"\")","v":""},{"$f":"IFERROR(IF(Ej_Betalat_Lån*Angivna_Värden,Amortering,\"\"), \"\")","v":""},{"$f":"IFERROR(IF(Ej_Betalat_Lån*Angivna_Värden,Ränta,\"\"), \"\")","v":""},{"$f":"IFERROR(IF(Ej_Betalat_Lån*Angivna_Värden,Utgående_Saldo,\"\"), \"\")","v":""}]
[null,{"$f":"IFERROR(IF(Ej_Betalat_Lån*Angivna_Värden,Betalningsnummer,\"\"), \"\")","v":""},{"$f":"IFERROR(IF(Ej_Betalat_Lån*Angivna_Värden,Betalningsdatum,\"\"), \"\")","v":""},{"$f":"IFERROR(IF(Ej_Betalat_Lån*Angivna_Värden,Ingående_Saldo,\"\"), \"\")","v":""},{"$f":"IFERROR(IF(Ej_Betalat_Lån*Angivna_Värden,Månadsbetalning,\"\"), \"\")","v":""},{"$f":"IFERROR(IF(Ej_Betalat_Lån*Angivna_Värden,Amortering,\"\"), \"\")","v":""},{"$f":"IFERROR(IF(Ej_Betalat_Lån*Angivna_Värden,Ränta,\"\"), \"\")","v":""},{"$f":"IFERROR(IF(Ej_Betalat_Lån*Angivna_Värden,Utgående_Saldo,\"\"), \"\")","v":""}]
[null,{"$f":"IFERROR(IF(Ej_Betalat_Lån*Angivna_Värden,Betalningsnummer,\"\"), \"\")","v":""},{"$f":"IFERROR(IF(Ej_Betalat_Lån*Angivna_Värden,Betalningsdatum,\"\"), \"\")","v":""},{"$f":"IFERROR(IF(Ej_Betalat_Lån*Angivna_Värden,Ingående_Saldo,\"\"), \"\")","v":""},{"$f":"IFERROR(IF(Ej_Betalat_Lån*Angivna_Värden,Månadsbetalning,\"\"), \"\")","v":""},{"$f":"IFERROR(IF(Ej_Betalat_Lån*Angivna_Värden,Amortering,\"\"), \"\")","v":""},{"$f":"IFERROR(IF(Ej_Betalat_Lån*Angivna_Värden,Ränta,\"\"), \"\")","v":""},{"$f":"IFERROR(IF(Ej_Betalat_Lån*Angivna_Värden,Utgående_Saldo,\"\"), \"\")","v":""}]
[null,{"$f":"IFERROR(IF(Ej_Betalat_Lån*Angivna_Värden,Betalningsnummer,\"\"), \"\")","v":""},{"$f":"IFERROR(IF(Ej_Betalat_Lån*Angivna_Värden,Betalningsdatum,\"\"), \"\")","v":""},{"$f":"IFERROR(IF(Ej_Betalat_Lån*Angivna_Värden,Ingående_Saldo,\"\"), \"\")","v":""},{"$f":"IFERROR(IF(Ej_Betalat_Lån*Angivna_Värden,Månadsbetalning,\"\"), \"\")","v":""},{"$f":"IFERROR(IF(Ej_Betalat_Lån*Angivna_Värden,Amortering,\"\"), \"\")","v":""},{"$f":"IFERROR(IF(Ej_Betalat_Lån*Angivna_Värden,Ränta,\"\"), \"\")","v":""},{"$f":"IFERROR(IF(Ej_Betalat_Lån*Angivna_Värden,Utgående_Saldo,\"\"), \"\")","v":""}]
[null,{"$f":"IFERROR(IF(Ej_Betalat_Lån*Angivna_Värden,Betalningsnummer,\"\"), \"\")","v":""},{"$f":"IFERROR(IF(Ej_Betalat_Lån*Angivna_Värden,Betalningsdatum,\"\"), \"\")","v":""},{"$f":"IFERROR(IF(Ej_Betalat_Lån*Angivna_Värden,Ingående_Saldo,\"\"), \"\")","v":""},{"$f":"IFERROR(IF(Ej_Betalat_Lån*Angivna_Värden,Månadsbetalning,\"\"), \"\")","v":""},{"$f":"IFERROR(IF(Ej_Betalat_Lån*Angivna_Värden,Amortering,\"\"), \"\")","v":""},{"$f":"IFERROR(IF(Ej_Betalat_Lån*Angivna_Värden,Ränta,\"\"), \"\")","v":""},{"$f":"IFERROR(IF(Ej_Betalat_Lån*Angivna_Värden,Utgående_Saldo,\"\"), \"\")","v":""}]
[null,{"$f":"IFERROR(IF(Ej_Betalat_Lån*Angivna_Värden,Betalningsnummer,\"\"), \"\")","v":""},{"$f":"IFERROR(IF(Ej_Betalat_Lån*Angivna_Värden,Betalningsdatum,\"\"), \"\")","v":""},{"$f":"IFERROR(IF(Ej_Betalat_Lån*Angivna_Värden,Ingående_Saldo,\"\"), \"\")","v":""},{"$f":"IFERROR(IF(Ej_Betalat_Lån*Angivna_Värden,Månadsbetalning,\"\"), \"\")","v":""},{"$f":"IFERROR(IF(Ej_Betalat_Lån*Angivna_Värden,Amortering,\"\"), \"\")","v":""},{"$f":"IFERROR(IF(Ej_Betalat_Lån*Angivna_Värden,Ränta,\"\"), \"\")","v":""},{"$f":"IFERROR(IF(Ej_Betalat_Lån*Angivna_Värden,Utgående_Saldo,\"\"), \"\")","v":""}]
[null,{"$f":"IFERROR(IF(Ej_Betalat_Lån*Angivna_Värden,Betalningsnummer,\"\"), \"\")","v":""},{"$f":"IFERROR(IF(Ej_Betalat_Lån*Angivna_Värden,Betalningsdatum,\"\"), \"\")","v":""},{"$f":"IFERROR(IF(Ej_Betalat_Lån*Angivna_Värden,Ingående_Saldo,\"\"), \"\")","v":""},{"$f":"IFERROR(IF(Ej_Betalat_Lån*Angivna_Värden,Månadsbetalning,\"\"), \"\")","v":""},{"$f":"IFERROR(IF(Ej_Betalat_Lån*Angivna_Värden,Amortering,\"\"), \"\")","v":""},{"$f":"IFERROR(IF(Ej_Betalat_Lån*Angivna_Värden,Ränta,\"\"), \"\")","v":""},{"$f":"IFERROR(IF(Ej_Betalat_Lån*Angivna_Värden,Utgående_Saldo,\"\"), \"\")","v":""}]
[null,{"$f":"IFERROR(IF(Ej_Betalat_Lån*Angivna_Värden,Betalningsnummer,\"\"), \"\")","v":""},{"$f":"IFERROR(IF(Ej_Betalat_Lån*Angivna_Värden,Betalningsdatum,\"\"), \"\")","v":""},{"$f":"IFERROR(IF(Ej_Betalat_Lån*Angivna_Värden,Ingående_Saldo,\"\"), \"\")","v":""},{"$f":"IFERROR(IF(Ej_Betalat_Lån*Angivna_Värden,Månadsbetalning,\"\"), \"\")","v":""},{"$f":"IFERROR(IF(Ej_Betalat_Lån*Angivna_Värden,Amortering,\"\"), \"\")","v":""},{"$f":"IFERROR(IF(Ej_Betalat_Lån*Angivna_Värden,Ränta,\"\"), \"\")","v":""},{"$f":"IFERROR(IF(Ej_Betalat_Lån*Angivna_Värden,Utgående_Saldo,\"\"), \"\")","v":""}]
[null,{"$f":"IFERROR(IF(Ej_Betalat_Lån*Angivna_Värden,Betalningsnummer,\"\"), \"\")","v":""},{"$f":"IFERROR(IF(Ej_Betalat_Lån*Angivna_Värden,Betalningsdatum,\"\"), \"\")","v":""},{"$f":"IFERROR(IF(Ej_Betalat_Lån*Angivna_Värden,Ingående_Saldo,\"\"), \"\")","v":""},{"$f":"IFERROR(IF(Ej_Betalat_Lån*Angivna_Värden,Månadsbetalning,\"\"), \"\")","v":""},{"$f":"IFERROR(IF(Ej_Betalat_Lån*Angivna_Värden,Amortering,\"\"), \"\")","v":""},{"$f":"IFERROR(IF(Ej_Betalat_Lån*Angivna_Värden,Ränta,\"\"), \"\")","v":""},{"$f":"IFERROR(IF(Ej_Betalat_Lån*Angivna_Värden,Utgående_Saldo,\"\"), \"\")","v":""}]
[null,{"$f":"IFERROR(IF(Ej_Betalat_Lån*Angivna_Värden,Betalningsnummer,\"\"), \"\")","v":""},{"$f":"IFERROR(IF(Ej_Betalat_Lån*Angivna_Värden,Betalningsdatum,\"\"), \"\")","v":""},{"$f":"IFERROR(IF(Ej_Betalat_Lån*Angivna_Värden,Ingående_Saldo,\"\"), \"\")","v":""},{"$f":"IFERROR(IF(Ej_Betalat_Lån*Angivna_Värden,Månadsbetalning,\"\"), \"\")","v":""},{"$f":"IFERROR(IF(Ej_Betalat_Lån*Angivna_Värden,Amortering,\"\"), \"\")","v":""},{"$f":"IFERROR(IF(Ej_Betalat_Lån*Angivna_Värden,Ränta,\"\"), \"\")","v":""},{"$f":"IFERROR(IF(Ej_Betalat_Lån*Angivna_Värden,Utgående_Saldo,\"\"), \"\")","v":""}]
[null,{"$f":"IFERROR(IF(Ej_Betalat_Lån*Angivna_Värden,Betalningsnummer,\"\"), \"\")","v":""},{"$f":"IFERROR(IF(Ej_Betalat_Lån*Angivna_Värden,Betalningsdatum,\"\"), \"\")","v":""},{"$f":"IFERROR(IF(Ej_Betalat_Lån*Angivna_Värden,Ingående_Saldo,\"\"), \"\")","v":""},{"$f":"IFERROR(IF(Ej_Betalat_Lån*Angivna_Värden,Månadsbetalning,\"\"), \"\")","v":""},{"$f":"IFERROR(IF(Ej_Betalat_Lån*Angivna_Värden,Amortering,\"\"), \"\")","v":""},{"$f":"IFERROR(IF(Ej_Betalat_Lån*Angivna_Värden,Ränta,\"\"), \"\")","v":""},{"$f":"IFERROR(IF(Ej_Betalat_Lån*Angivna_Värden,Utgående_Saldo,\"\"), \"\")","v":""}]
[null,{"$f":"IFERROR(IF(Ej_Betalat_Lån*Angivna_Värden,Betalningsnummer,\"\"), \"\")","v":""},{"$f":"IFERROR(IF(Ej_Betalat_Lån*Angivna_Värden,Betalningsdatum,\"\"), \"\")","v":""},{"$f":"IFERROR(IF(Ej_Betalat_Lån*Angivna_Värden,Ingående_Saldo,\"\"), \"\")","v":""},{"$f":"IFERROR(IF(Ej_Betalat_Lån*Angivna_Värden,Månadsbetalning,\"\"), \"\")","v":""},{"$f":"IFERROR(IF(Ej_Betalat_Lån*Angivna_Värden,Amortering,\"\"), \"\")","v":""},{"$f":"IFERROR(IF(Ej_Betalat_Lån*Angivna_Värden,Ränta,\"\"), \"\")","v":""},{"$f":"IFERROR(IF(Ej_Betalat_Lån*Angivna_Värden,Utgående_Saldo,\"\"), \"\")","v":""}]
[null,{"$f":"IFERROR(IF(Ej_Betalat_Lån*Angivna_Värden,Betalningsnummer,\"\"), \"\")","v":""},{"$f":"IFERROR(IF(Ej_Betalat_Lån*Angivna_Värden,Betalningsdatum,\"\"), \"\")","v":""},{"$f":"IFERROR(IF(Ej_Betalat_Lån*Angivna_Värden,Ingående_Saldo,\"\"), \"\")","v":""},{"$f":"IFERROR(IF(Ej_Betalat_Lån*Angivna_Värden,Månadsbetalning,\"\"), \"\")","v":""},{"$f":"IFERROR(IF(Ej_Betalat_Lån*Angivna_Värden,Amortering,\"\"), \"\")","v":""},{"$f":"IFERROR(IF(Ej_Betalat_Lån*Angivna_Värden,Ränta,\"\"), \"\")","v":""},{"$f":"IFERROR(IF(Ej_Betalat_Lån*Angivna_Värden,Utgående_Saldo,\"\"), \"\")","v":""}]
[null,{"$f":"IFERROR(IF(Ej_Betalat_Lån*Angivna_Värden,Betalningsnummer,\"\"), \"\")","v":""},{"$f":"IFERROR(IF(Ej_Betalat_Lån*Angivna_Värden,Betalningsdatum,\"\"), \"\")","v":""},{"$f":"IFERROR(IF(Ej_Betalat_Lån*Angivna_Värden,Ingående_Saldo,\"\"), \"\")","v":""},{"$f":"IFERROR(IF(Ej_Betalat_Lån*Angivna_Värden,Månadsbetalning,\"\"), \"\")","v":""},{"$f":"IFERROR(IF(Ej_Betalat_Lån*Angivna_Värden,Amortering,\"\"), \"\")","v":""},{"$f":"IFERROR(IF(Ej_Betalat_Lån*Angivna_Värden,Ränta,\"\"), \"\")","v":""},{"$f":"IFERROR(IF(Ej_Betalat_Lån*Angivna_Värden,Utgående_Saldo,\"\"), \"\")","v":""}]
[null,{"$f":"IFERROR(IF(Ej_Betalat_Lån*Angivna_Värden,Betalningsnummer,\"\"), \"\")","v":""},{"$f":"IFERROR(IF(Ej_Betalat_Lån*Angivna_Värden,Betalningsdatum,\"\"), \"\")","v":""},{"$f":"IFERROR(IF(Ej_Betalat_Lån*Angivna_Värden,Ingående_Saldo,\"\"), \"\")","v":""},{"$f":"IFERROR(IF(Ej_Betalat_Lån*Angivna_Värden,Månadsbetalning,\"\"), \"\")","v":""},{"$f":"IFERROR(IF(Ej_Betalat_Lån*Angivna_Värden,Amortering,\"\"), \"\")","v":""},{"$f":"IFERROR(IF(Ej_Betalat_Lån*Angivna_Värden,Ränta,\"\"), \"\")","v":""},{"$f":"IFERROR(IF(Ej_Betalat_Lån*Angivna_Värden,Utgående_Saldo,\"\"), \"\")","v":""}]
[null,{"$f":"IFERROR(IF(Ej_Betalat_Lån*Angivna_Värden,Betalningsnummer,\"\"), \"\")","v":""},{"$f":"IFERROR(IF(Ej_Betalat_Lån*Angivna_Värden,Betalningsdatum,\"\"), \"\")","v":""},{"$f":"IFERROR(IF(Ej_Betalat_Lån*Angivna_Värden,Ingående_Saldo,\"\"), \"\")","v":""},{"$f":"IFERROR(IF(Ej_Betalat_Lån*Angivna_Värden,Månadsbetalning,\"\"), \"\")","v":""},{"$f":"IFERROR(IF(Ej_Betalat_Lån*Angivna_Värden,Amortering,\"\"), \"\")","v":""},{"$f":"IFERROR(IF(Ej_Betalat_Lån*Angivna_Värden,Ränta,\"\"), \"\")","v":""},{"$f":"IFERROR(IF(Ej_Betalat_Lån*Angivna_Värden,Utgående_Saldo,\"\"), \"\")","v":""}]
[null,{"$f":"IFERROR(IF(Ej_Betalat_Lån*Angivna_Värden,Betalningsnummer,\"\"), \"\")","v":""},{"$f":"IFERROR(IF(Ej_Betalat_Lån*Angivna_Värden,Betalningsdatum,\"\"), \"\")","v":""},{"$f":"IFERROR(IF(Ej_Betalat_Lån*Angivna_Värden,Ingående_Saldo,\"\"), \"\")","v":""},{"$f":"IFERROR(IF(Ej_Betalat_Lån*Angivna_Värden,Månadsbetalning,\"\"), \"\")","v":""},{"$f":"IFERROR(IF(Ej_Betalat_Lån*Angivna_Värden,Amortering,\"\"), \"\")","v":""},{"$f":"IFERROR(IF(Ej_Betalat_Lån*Angivna_Värden,Ränta,\"\"), \"\")","v":""},{"$f":"IFERROR(IF(Ej_Betalat_Lån*Angivna_Värden,Utgående_Saldo,\"\"), \"\")","v":""}]
[null,{"$f":"IFERROR(IF(Ej_Betalat_Lån*Angivna_Värden,Betalningsnummer,\"\"), \"\")","v":""},{"$f":"IFERROR(IF(Ej_Betalat_Lån*Angivna_Värden,Betalningsdatum,\"\"), \"\")","v":""},{"$f":"IFERROR(IF(Ej_Betalat_Lån*Angivna_Värden,Ingående_Saldo,\"\"), \"\")","v":""},{"$f":"IFERROR(IF(Ej_Betalat_Lån*Angivna_Värden,Månadsbetalning,\"\"), \"\")","v":""},{"$f":"IFERROR(IF(Ej_Betalat_Lån*Angivna_Värden,Amortering,\"\"), \"\")","v":""},{"$f":"IFERROR(IF(Ej_Betalat_Lån*Angivna_Värden,Ränta,\"\"), \"\")","v":""},{"$f":"IFERROR(IF(Ej_Betalat_Lån*Angivna_Värden,Utgående_Saldo,\"\"), \"\")","v":""}]
[null,{"$f":"IFERROR(IF(Ej_Betalat_Lån*Angivna_Värden,Betalningsnummer,\"\"), \"\")","v":""},{"$f":"IFERROR(IF(Ej_Betalat_Lån*Angivna_Värden,Betalningsdatum,\"\"), \"\")","v":""},{"$f":"IFERROR(IF(Ej_Betalat_Lån*Angivna_Värden,Ingående_Saldo,\"\"), \"\")","v":""},{"$f":"IFERROR(IF(Ej_Betalat_Lån*Angivna_Värden,Månadsbetalning,\"\"), \"\")","v":""},{"$f":"IFERROR(IF(Ej_Betalat_Lån*Angivna_Värden,Amortering,\"\"), \"\")","v":""},{"$f":"IFERROR(IF(Ej_Betalat_Lån*Angivna_Värden,Ränta,\"\"), \"\")","v":""},{"$f":"IFERROR(IF(Ej_Betalat_Lån*Angivna_Värden,Utgående_Saldo,\"\"), \"\")","v":""}]
[null,{"$f":"IFERROR(IF(Ej_Betalat_Lån*Angivna_Värden,Betalningsnummer,\"\"), \"\")","v":""},{"$f":"IFERROR(IF(Ej_Betalat_Lån*Angivna_Värden,Betalningsdatum,\"\"), \"\")","v":""},{"$f":"IFERROR(IF(Ej_Betalat_Lån*Angivna_Värden,Ingående_Saldo,\"\"), \"\")","v":""},{"$f":"IFERROR(IF(Ej_Betalat_Lån*Angivna_Värden,Månadsbetalning,\"\"), \"\")","v":""},{"$f":"IFERROR(IF(Ej_Betalat_Lån*Angivna_Värden,Amortering,\"\"), \"\")","v":""},{"$f":"IFERROR(IF(Ej_Betalat_Lån*Angivna_Värden,Ränta,\"\"), \"\")","v":""},{"$f":"IFERROR(IF(Ej_Betalat_Lån*Angivna_Värden,Utgående_Saldo,\"\"), \"\")","v":""}]
[null,{"$f":"IFERROR(IF(Ej_Betalat_Lån*Angivna_Värden,Betalningsnummer,\"\"), \"\")","v":""},{"$f":"IFERROR(IF(Ej_Betalat_Lån*Angivna_Värden,Betalningsdatum,\"\"), \"\")","v":""},{"$f":"IFERROR(IF(Ej_Betalat_Lån*Angivna_Värden,Ingående_Saldo,\"\"), \"\")","v":""},{"$f":"IFERROR(IF(Ej_Betalat_Lån*Angivna_Värden,Månadsbetalning,\"\"), \"\")","v":""},{"$f":"IFERROR(IF(Ej_Betalat_Lån*Angivna_Värden,Amortering,\"\"), \"\")","v":""},{"$f":"IFERROR(IF(Ej_Betalat_Lån*Angivna_Värden,Ränta,\"\"), \"\")","v":""},{"$f":"IFERROR(IF(Ej_Betalat_Lån*Angivna_Värden,Utgående_Saldo,\"\"), \"\")","v":""}]
[null,{"$f":"IFERROR(IF(Ej_Betalat_Lån*Angivna_Värden,Betalningsnummer,\"\"), \"\")","v":""},{"$f":"IFERROR(IF(Ej_Betalat_Lån*Angivna_Värden,Betalningsdatum,\"\"), \"\")","v":""},{"$f":"IFERROR(IF(Ej_Betalat_Lån*Angivna_Värden,Ingående_Saldo,\"\"), \"\")","v":""},{"$f":"IFERROR(IF(Ej_Betalat_Lån*Angivna_Värden,Månadsbetalning,\"\"), \"\")","v":""},{"$f":"IFERROR(IF(Ej_Betalat_Lån*Angivna_Värden,Amortering,\"\"), \"\")","v":""},{"$f":"IFERROR(IF(Ej_Betalat_Lån*Angivna_Värden,Ränta,\"\"), \"\")","v":""},{"$f":"IFERROR(IF(Ej_Betalat_Lån*Angivna_Värden,Utgående_Saldo,\"\"), \"\")","v":""}]
[null,{"$f":"IFERROR(IF(Ej_Betalat_Lån*Angivna_Värden,Betalningsnummer,\"\"), \"\")","v":""},{"$f":"IFERROR(IF(Ej_Betalat_Lån*Angivna_Värden,Betalningsdatum,\"\"), \"\")","v":""},{"$f":"IFERROR(IF(Ej_Betalat_Lån*Angivna_Värden,Ingående_Saldo,\"\"), \"\")","v":""},{"$f":"IFERROR(IF(Ej_Betalat_Lån*Angivna_Värden,Månadsbetalning,\"\"), \"\")","v":""},{"$f":"IFERROR(IF(Ej_Betalat_Lån*Angivna_Värden,Amortering,\"\"), \"\")","v":""},{"$f":"IFERROR(IF(Ej_Betalat_Lån*Angivna_Värden,Ränta,\"\"), \"\")","v":""},{"$f":"IFERROR(IF(Ej_Betalat_Lån*Angivna_Värden,Utgående_Saldo,\"\"), \"\")","v":""}]
[null,{"$f":"IFERROR(IF(Ej_Betalat_Lån*Angivna_Värden,Betalningsnummer,\"\"), \"\")","v":""},{"$f":"IFERROR(IF(Ej_Betalat_Lån*Angivna_Värden,Betalningsdatum,\"\"), \"\")","v":""},{"$f":"IFERROR(IF(Ej_Betalat_Lån*Angivna_Värden,Ingående_Saldo,\"\"), \"\")","v":""},{"$f":"IFERROR(IF(Ej_Betalat_Lån*Angivna_Värden,Månadsbetalning,\"\"), \"\")","v":""},{"$f":"IFERROR(IF(Ej_Betalat_Lån*Angivna_Värden,Amortering,\"\"), \"\")","v":""},{"$f":"IFERROR(IF(Ej_Betalat_Lån*Angivna_Värden,Ränta,\"\"), \"\")","v":""},{"$f":"IFERROR(IF(Ej_Betalat_Lån*Angivna_Värden,Utgående_Saldo,\"\"), \"\")","v":""}]
[null,{"$f":"IFERROR(IF(Ej_Betalat_Lån*Angivna_Värden,Betalningsnummer,\"\"), \"\")","v":""},{"$f":"IFERROR(IF(Ej_Betalat_Lån*Angivna_Värden,Betalningsdatum,\"\"), \"\")","v":""},{"$f":"IFERROR(IF(Ej_Betalat_Lån*Angivna_Värden,Ingående_Saldo,\"\"), \"\")","v":""},{"$f":"IFERROR(IF(Ej_Betalat_Lån*Angivna_Värden,Månadsbetalning,\"\"), \"\")","v":""},{"$f":"IFERROR(IF(Ej_Betalat_Lån*Angivna_Värden,Amortering,\"\"), \"\")","v":""},{"$f":"IFERROR(IF(Ej_Betalat_Lån*Angivna_Värden,Ränta,\"\"), \"\")","v":""},{"$f":"IFERROR(IF(Ej_Betalat_Lån*Angivna_Värden,Utgående_Saldo,\"\"), \"\")","v":""}]
[null,{"$f":"IFERROR(IF(Ej_Betalat_Lån*Angivna_Värden,Betalningsnummer,\"\"), \"\")","v":""},{"$f":"IFERROR(IF(Ej_Betalat_Lån*Angivna_Värden,Betalningsdatum,\"\"), \"\")","v":""},{"$f":"IFERROR(IF(Ej_Betalat_Lån*Angivna_Värden,Ingående_Saldo,\"\"), \"\")","v":""},{"$f":"IFERROR(IF(Ej_Betalat_Lån*Angivna_Värden,Månadsbetalning,\"\"), \"\")","v":""},{"$f":"IFERROR(IF(Ej_Betalat_Lån*Angivna_Värden,Amortering,\"\"), \"\")","v":""},{"$f":"IFERROR(IF(Ej_Betalat_Lån*Angivna_Värden,Ränta,\"\"), \"\")","v":""},{"$f":"IFERROR(IF(Ej_Betalat_Lån*Angivna_Värden,Utgående_Saldo,\"\"), \"\")","v":""}]
[null,{"$f":"IFERROR(IF(Ej_Betalat_Lån*Angivna_Värden,Betalningsnummer,\"\"), \"\")","v":""},{"$f":"IFERROR(IF(Ej_Betalat_Lån*Angivna_Värden,Betalningsdatum,\"\"), \"\")","v":""},{"$f":"IFERROR(IF(Ej_Betalat_Lån*Angivna_Värden,Ingående_Saldo,\"\"), \"\")","v":""},{"$f":"IFERROR(IF(Ej_Betalat_Lån*Angivna_Värden,Månadsbetalning,\"\"), \"\")","v":""},{"$f":"IFERROR(IF(Ej_Betalat_Lån*Angivna_Värden,Amortering,\"\"), \"\")","v":""},{"$f":"IFERROR(IF(Ej_Betalat_Lån*Angivna_Värden,Ränta,\"\"), \"\")","v":""},{"$f":"IFERROR(IF(Ej_Betalat_Lån*Angivna_Värden,Utgående_Saldo,\"\"), \"\")","v":""}]
[null,{"$f":"IFERROR(IF(Ej_Betalat_Lån*Angivna_Värden,Betalningsnummer,\"\"), \"\")","v":""},{"$f":"IFERROR(IF(Ej_Betalat_Lån*Angivna_Värden,Betalningsdatum,\"\"), \"\")","v":""},{"$f":"IFERROR(IF(Ej_Betalat_Lån*Angivna_Värden,Ingående_Saldo,\"\"), \"\")","v":""},{"$f":"IFERROR(IF(Ej_Betalat_Lån*Angivna_Värden,Månadsbetalning,\"\"), \"\")","v":""},{"$f":"IFERROR(IF(Ej_Betalat_Lån*Angivna_Värden,Amortering,\"\"), \"\")","v":""},{"$f":"IFERROR(IF(Ej_Betalat_Lån*Angivna_Värden,Ränta,\"\"), \"\")","v":""},{"$f":"IFERROR(IF(Ej_Betalat_Lån*Angivna_Värden,Utgående_Saldo,\"\"), \"\")","v":""}]
[null,{"$f":"IFERROR(IF(Ej_Betalat_Lån*Angivna_Värden,Betalningsnummer,\"\"), \"\")","v":""},{"$f":"IFERROR(IF(Ej_Betalat_Lån*Angivna_Värden,Betalningsdatum,\"\"), \"\")","v":""},{"$f":"IFERROR(IF(Ej_Betalat_Lån*Angivna_Värden,Ingående_Saldo,\"\"), \"\")","v":""},{"$f":"IFERROR(IF(Ej_Betalat_Lån*Angivna_Värden,Månadsbetalning,\"\"), \"\")","v":""},{"$f":"IFERROR(IF(Ej_Betalat_Lån*Angivna_Värden,Amortering,\"\"), \"\")","v":""},{"$f":"IFERROR(IF(Ej_Betalat_Lån*Angivna_Värden,Ränta,\"\"), \"\")","v":""},{"$f":"IFERROR(IF(Ej_Betalat_Lån*Angivna_Värden,Utgående_Saldo,\"\"), \"\")","v":""}]
[null,{"$f":"IFERROR(IF(Ej_Betalat_Lån*Angivna_Värden,Betalningsnummer,\"\"), \"\")","v":""},{"$f":"IFERROR(IF(Ej_Betalat_Lån*Angivna_Värden,Betalningsdatum,\"\"), \"\")","v":""},{"$f":"IFERROR(IF(Ej_Betalat_Lån*Angivna_Värden,Ingående_Saldo,\"\"), \"\")","v":""},{"$f":"IFERROR(IF(Ej_Betalat_Lån*Angivna_Värden,Månadsbetalning,\"\"), \"\")","v":""},{"$f":"IFERROR(IF(Ej_Betalat_Lån*Angivna_Värden,Amortering,\"\"), \"\")","v":""},{"$f":"IFERROR(IF(Ej_Betalat_Lån*Angivna_Värden,Ränta,\"\"), \"\")","v":""},{"$f":"IFERROR(IF(Ej_Betalat_Lån*Angivna_Värden,Utgående_Saldo,\"\"), \"\")","v":""}]
[null,{"$f":"IFERROR(IF(Ej_Betalat_Lån*Angivna_Värden,Betalningsnummer,\"\"), \"\")","v":""},{"$f":"IFERROR(IF(Ej_Betalat_Lån*Angivna_Värden,Betalningsdatum,\"\"), \"\")","v":""},{"$f":"IFERROR(IF(Ej_Betalat_Lån*Angivna_Värden,Ingående_Saldo,\"\"), \"\")","v":""},{"$f":"IFERROR(IF(Ej_Betalat_Lån*Angivna_Värden,Månadsbetalning,\"\"), \"\")","v":""},{"$f":"IFERROR(IF(Ej_Betalat_Lån*Angivna_Värden,Amortering,\"\"), \"\")","v":""},{"$f":"IFERROR(IF(Ej_Betalat_Lån*Angivna_Värden,Ränta,\"\"), \"\")","v":""},{"$f":"IFERROR(IF(Ej_Betalat_Lån*Angivna_Värden,Utgående_Saldo,\"\"), \"\")","v":""}]
[null,{"$f":"IFERROR(IF(Ej_Betalat_Lån*Angivna_Värden,Betalningsnummer,\"\"), \"\")","v":""},{"$f":"IFERROR(IF(Ej_Betalat_Lån*Angivna_Värden,Betalningsdatum,\"\"), \"\")","v":""},{"$f":"IFERROR(IF(Ej_Betalat_Lån*Angivna_Värden,Ingående_Saldo,\"\"), \"\")","v":""},{"$f":"IFERROR(IF(Ej_Betalat_Lån*Angivna_Värden,Månadsbetalning,\"\"), \"\")","v":""},{"$f":"IFERROR(IF(Ej_Betalat_Lån*Angivna_Värden,Amortering,\"\"), \"\")","v":""},{"$f":"IFERROR(IF(Ej_Betalat_Lån*Angivna_Värden,Ränta,\"\"), \"\")","v":""},{"$f":"IFERROR(IF(Ej_Betalat_Lån*Angivna_Värden,Utgående_Saldo,\"\"), \"\")","v":""}]
[null,{"$f":"IFERROR(IF(Ej_Betalat_Lån*Angivna_Värden,Betalningsnummer,\"\"), \"\")","v":""},{"$f":"IFERROR(IF(Ej_Betalat_Lån*Angivna_Värden,Betalningsdatum,\"\"), \"\")","v":""},{"$f":"IFERROR(IF(Ej_Betalat_Lån*Angivna_Värden,Ingående_Saldo,\"\"), \"\")","v":""},{"$f":"IFERROR(IF(Ej_Betalat_Lån*Angivna_Värden,Månadsbetalning,\"\"), \"\")","v":""},{"$f":"IFERROR(IF(Ej_Betalat_Lån*Angivna_Värden,Amortering,\"\"), \"\")","v":""},{"$f":"IFERROR(IF(Ej_Betalat_Lån*Angivna_Värden,Ränta,\"\"), \"\")","v":""},{"$f":"IFERROR(IF(Ej_Betalat_Lån*Angivna_Värden,Utgående_Saldo,\"\"), \"\")","v":""}]
[null,{"$f":"IFERROR(IF(Ej_Betalat_Lån*Angivna_Värden,Betalningsnummer,\"\"), \"\")","v":""},{"$f":"IFERROR(IF(Ej_Betalat_Lån*Angivna_Värden,Betalningsdatum,\"\"), \"\")","v":""},{"$f":"IFERROR(IF(Ej_Betalat_Lån*Angivna_Värden,Ingående_Saldo,\"\"), \"\")","v":""},{"$f":"IFERROR(IF(Ej_Betalat_Lån*Angivna_Värden,Månadsbetalning,\"\"), \"\")","v":""},{"$f":"IFERROR(IF(Ej_Betalat_Lån*Angivna_Värden,Amortering,\"\"), \"\")","v":""},{"$f":"IFERROR(IF(Ej_Betalat_Lån*Angivna_Värden,Ränta,\"\"), \"\")","v":""},{"$f":"IFERROR(IF(Ej_Betalat_Lån*Angivna_Värden,Utgående_Saldo,\"\"), \"\")","v":""}]
[null,{"$f":"IFERROR(IF(Ej_Betalat_Lån*Angivna_Värden,Betalningsnummer,\"\"), \"\")","v":""},{"$f":"IFERROR(IF(Ej_Betalat_Lån*Angivna_Värden,Betalningsdatum,\"\"), \"\")","v":""},{"$f":"IFERROR(IF(Ej_Betalat_Lån*Angivna_Värden,Ingående_Saldo,\"\"), \"\")","v":""},{"$f":"IFERROR(IF(Ej_Betalat_Lån*Angivna_Värden,Månadsbetalning,\"\"), \"\")","v":""},{"$f":"IFERROR(IF(Ej_Betalat_Lån*Angivna_Värden,Amortering,\"\"), \"\")","v":""},{"$f":"IFERROR(IF(Ej_Betalat_Lån*Angivna_Värden,Ränta,\"\"), \"\")","v":""},{"$f":"IFERROR(IF(Ej_Betalat_Lån*Angivna_Värden,Utgående_Saldo,\"\"), \"\")","v":""}]
[null,{"$f":"IFERROR(IF(Ej_Betalat_Lån*Angivna_Värden,Betalningsnummer,\"\"), \"\")","v":""},{"$f":"IFERROR(IF(Ej_Betalat_Lån*Angivna_Värden,Betalningsdatum,\"\"), \"\")","v":""},{"$f":"IFERROR(IF(Ej_Betalat_Lån*Angivna_Värden,Ingående_Saldo,\"\"), \"\")","v":""},{"$f":"IFERROR(IF(Ej_Betalat_Lån*Angivna_Värden,Månadsbetalning,\"\"), \"\")","v":""},{"$f":"IFERROR(IF(Ej_Betalat_Lån*Angivna_Värden,Amortering,\"\"), \"\")","v":""},{"$f":"IFERROR(IF(Ej_Betalat_Lån*Angivna_Värden,Ränta,\"\"), \"\")","v":""},{"$f":"IFERROR(IF(Ej_Betalat_Lån*Angivna_Värden,Utgående_Saldo,\"\"), \"\")","v":""}]
[null,{"$f":"IFERROR(IF(Ej_Betalat_Lån*Angivna_Värden,Betalningsnummer,\"\"), \"\")","v":""},{"$f":"IFERROR(IF(Ej_Betalat_Lån*Angivna_Värden,Betalningsdatum,\"\"), \"\")","v":""},{"$f":"IFERROR(IF(Ej_Betalat_Lån*Angivna_Värden,Ingående_Saldo,\"\"), \"\")","v":""},{"$f":"IFERROR(IF(Ej_Betalat_Lån*Angivna_Värden,Månadsbetalning,\"\"), \"\")","v":""},{"$f":"IFERROR(IF(Ej_Betalat_Lån*Angivna_Värden,Amortering,\"\"), \"\")","v":""},{"$f":"IFERROR(IF(Ej_Betalat_Lån*Angivna_Värden,Ränta,\"\"), \"\")","v":""},{"$f":"IFERROR(IF(Ej_Betalat_Lån*Angivna_Värden,Utgående_Saldo,\"\"), \"\")","v":""}]
[null,{"$f":"IFERROR(IF(Ej_Betalat_Lån*Angivna_Värden,Betalningsnummer,\"\"), \"\")","v":""},{"$f":"IFERROR(IF(Ej_Betalat_Lån*Angivna_Värden,Betalningsdatum,\"\"), \"\")","v":""},{"$f":"IFERROR(IF(Ej_Betalat_Lån*Angivna_Värden,Ingående_Saldo,\"\"), \"\")","v":""},{"$f":"IFERROR(IF(Ej_Betalat_Lån*Angivna_Värden,Månadsbetalning,\"\"), \"\")","v":""},{"$f":"IFERROR(IF(Ej_Betalat_Lån*Angivna_Värden,Amortering,\"\"), \"\")","v":""},{"$f":"IFERROR(IF(Ej_Betalat_Lån*Angivna_Värden,Ränta,\"\"), \"\")","v":""},{"$f":"IFERROR(IF(Ej_Betalat_Lån*Angivna_Värden,Utgående_Saldo,\"\"), \"\")","v":""}]
[null,{"$f":"IFERROR(IF(Ej_Betalat_Lån*Angivna_Värden,Betalningsnummer,\"\"), \"\")","v":""},{"$f":"IFERROR(IF(Ej_Betalat_Lån*Angivna_Värden,Betalningsdatum,\"\"), \"\")","v":""},{"$f":"IFERROR(IF(Ej_Betalat_Lån*Angivna_Värden,Ingående_Saldo,\"\"), \"\")","v":""},{"$f":"IFERROR(IF(Ej_Betalat_Lån*Angivna_Värden,Månadsbetalning,\"\"), \"\")","v":""},{"$f":"IFERROR(IF(Ej_Betalat_Lån*Angivna_Värden,Amortering,\"\"), \"\")","v":""},{"$f":"IFERROR(IF(Ej_Betalat_Lån*Angivna_Värden,Ränta,\"\"), \"\")","v":""},{"$f":"IFERROR(IF(Ej_Betalat_Lån*Angivna_Värden,Utgående_Saldo,\"\"), \"\")","v":""}]